Body Name,Body,Service Label,Service Code,CIPFA Detailed Expenditure Type,CIPFA Detailed Expenditure Code,Date,Transaction Number,Net Amount,Supplier Name
Nottinghamshire County Council,1111/1001,Children and Young People,CYP,Premises Related,BAA,02/01/2020,10-10049,"4,625.85",ARC Property Services Partnership L
Nottinghamshire County Council,1111/1001,Children and Young People,CYP,Premises Related,BAA,02/01/2020,10-10054,9911,ARC Property Services Partnership L
Nottinghamshire County Council,1111/1001,Children and Young People,CYP,Premises Related,BAA,22/01/2020,10-15304,23342.29,ARC Property Services Partnership L
Nottinghamshire County Council,1111/1001,Children and Young People,CYP,Premises Related,BAA,22/01/2020,10-15309,6999.88,ARC Property Services Partnership L
Nottinghamshire County Council,1111/1001,Children and Young People,CYP,Premises Related,BAA,22/01/2020,10-17206,8010,Athelney Group Ltd
Nottinghamshire County Council,1111/1001,Children and Young People,CYP,Premises Related,BAA,28/01/2020,10-15963,"8,752.13",ARC Property Services Partnership L
Nottinghamshire County Council,1111/1001,Children and Young People,CYP,Premises Related,BCA,30/01/2020,10-17139,"1,090.75",Certas Energy UK Ltd T/A Pace Fuelc
Nottinghamshire County Council,1111/1001,Children and Young People,CYP,Premises Related,BCA,30/01/2020,10-17264,1758.18,Centre For Sport & Learning
Nottinghamshire County Council,1111/1001,Children and Young People,CYP,Premises Related,BDA,02/01/2020,10-10002,843.00,Thoresby Estate
Nottinghamshire County Council,1111/1001,Children and Young People,CYP,Premises Related,BDA,02/01/2020,10-10003,8294,Sherwood Forest Hospital NHS Trust
Nottinghamshire County Council,1111/1001,Children and Young People,CYP,Premises Related,BDA,02/01/2020,10-10004,"1,031.00",High Peak Borough Council
Nottinghamshire County Council,1111/1001,Children and Young People,CYP,Premises Related,BDA,02/01/2020,10-10005,710,Derbyshire Dales District Council
Nottinghamshire County Council,1111/1001,Children and Young People,CYP,Premises Related,BDA,02/01/2020,10-10008,650,Jillings Estates Ltd (Bramley Apple
Nottinghamshire County Council,1111/1001,Children and Young People,CYP,Premises Related,BDA,07/01/2020,10-10014,1203.75,Sherwood Forest Hospital NHS Trust
Nottinghamshire County Council,1111/1001,Children and Young People,CYP,Premises Related,BDA,08/01/2020,10-16770,832.50,Venue Lab Ltd T/A The Pumping House
Nottinghamshire County Council,1111/1001,Children and Young People,CYP,Premises Related,BDA,17/01/2020,10-17070,4243.78,Dukeries Academy
Nottinghamshire County Council,1111/1001,Children and Young People,CYP,Premises Related,BDA,22/01/2020,10-17205,2358.35,SLM Fitness & Health Ltd (Everyone
Nottinghamshire County Council,1111/1001,Children and Young People,CYP,Premises Related,BDA,27/01/2020,10-17314,5942.4,Barnsley Premier Leisure
Nottinghamshire County Council,1111/1001,Children and Young People,CYP,Premises Related,BDA,27/01/2020,10-17362,1286.4,TV Conferencing Ltd
Nottinghamshire County Council,1111/1001,Children and Young People,CYP,Premises Related,BDA,29/01/2020,10-16082,3248.74,Mansfield Dist Leisure Trust c/o Se
Nottinghamshire County Council,1111/1001,Children and Young People,CYP,Transport Related,CAA,10/01/2020,10-11753,54.60,Via East Midlands Ltd
Nottinghamshire County Council,1111/1001,Children and Young People,CYP,Transport Related,CAA,13/01/2020,10-11762,48.80,Via East Midlands Ltd
Nottinghamshire County Council,1111/1001,Children and Young People,CYP,Transport Related,CAA,22/01/2020,10-15324,2469.88,Via East Midlands Ltd
Nottinghamshire County Council,1111/1001,Children and Young People,CYP,Transport Related,CAA,22/01/2020,10-15330,"1,305.00",Via East Midlands Ltd
Nottinghamshire County Council,1111/1001,Children and Young People,CYP,Transport Related,CAA,22/01/2020,10-15339,1363,Via East Midlands Ltd
Nottinghamshire County Council,1111/1001,Children and Young People,CYP,Transport Related,CAA,22/01/2020,10-15348,"1,363.00",Via East Midlands Ltd
Nottinghamshire County Council,1111/1001,Children and Young People,CYP,Transport Related,CAA,23/01/2020,10-15604,"4,614.75",Via East Midlands Ltd
Nottinghamshire County Council,1111/1001,Children and Young People,CYP,Transport Related,CAA,31/01/2020,10-16479,126,Via East Midlands Ltd
Nottinghamshire County Council,1111/1001,Children and Young People,CYP,Transport Related,CCA,03/01/2020,10-10042,"1,094.52",MSP Case Management Ltd
Nottinghamshire County Council,1111/1001,Children and Young People,CYP,Transport Related,CCA,06/01/2020,10-10159,648,Alert Cars Ltd
Nottinghamshire County Council,1111/1001,Children and Young People,CYP,Transport Related,CCA,06/01/2020,10-10161,1541.97,Sharpes Of Nottingham
Nottinghamshire County Council,1111/1001,Children and Young People,CYP,Transport Related,CCA,06/01/2020,10-10162,1928.07,Sharpes Of Nottingham
Nottinghamshire County Council,1111/1001,Children and Young People,CYP,Transport Related,CCA,06/01/2020,10-10163,"1,875.00",Sharpes Of Nottingham
Nottinghamshire County Council,1111/1001,Children and Young People,CYP,Transport Related,CCA,06/01/2020,10-10167,2660,Arrow Specialised Transport Ltd
Nottinghamshire County Council,1111/1001,Children and Young People,CYP,Transport Related,CCA,06/01/2020,10-10168,2690,Arrow Specialised Transport Ltd
Nottinghamshire County Council,1111/1001,Children and Young People,CYP,Transport Related,CCA,06/01/2020,10-10169,1953,Arrow Specialised Transport Ltd
Nottinghamshire County Council,1111/1001,Children and Young People,CYP,Transport Related,CCA,06/01/2020,10-10170,919.8,Arrow Specialised Transport Ltd
Nottinghamshire County Council,1111/1001,Children and Young People,CYP,Transport Related,CCA,06/01/2020,10-10171,"1,863.60",Arrow Specialised Transport Ltd
Nottinghamshire County Council,1111/1001,Children and Young People,CYP,Transport Related,CCA,06/01/2020,10-10172,"1,720.50",Arrow Specialised Transport Ltd
Nottinghamshire County Council,1111/1001,Children and Young People,CYP,Transport Related,CCA,06/01/2020,10-10173,3195,Arrow Specialised Transport Ltd
Nottinghamshire County Council,1111/1001,Children and Young People,CYP,Transport Related,CCA,06/01/2020,10-10174,"2,329.35",Arrow Specialised Transport Ltd
Nottinghamshire County Council,1111/1001,Children and Young People,CYP,Transport Related,CCA,06/01/2020,10-10175,"3,011.10",Arrow Specialised Transport Ltd
Nottinghamshire County Council,1111/1001,Children and Young People,CYP,Transport Related,CCA,06/01/2020,10-10176,"1,741.50",Arrow Specialised Transport Ltd
Nottinghamshire County Council,1111/1001,Children and Young People,CYP,Transport Related,CCA,06/01/2020,10-10177,1795.35,Arrow Specialised Transport Ltd
Nottinghamshire County Council,1111/1001,Children and Young People,CYP,Transport Related,CCA,06/01/2020,10-10178,"2,467.65",Arrow Specialised Transport Ltd
Nottinghamshire County Council,1111/1001,Children and Young People,CYP,Transport Related,CCA,06/01/2020,10-10179,1887,Arrow Specialised Transport Ltd
Nottinghamshire County Council,1111/1001,Children and Young People,CYP,Transport Related,CCA,06/01/2020,10-10180,"1,824.00",Arrow Specialised Transport Ltd
Nottinghamshire County Council,1111/1001,Children and Young People,CYP,Transport Related,CCA,06/01/2020,10-10181,2590.65,Arrow Specialised Transport Ltd
Nottinghamshire County Council,1111/1001,Children and Young People,CYP,Transport Related,CCA,06/01/2020,10-10182,2205.9,Arrow Specialised Transport Ltd
Nottinghamshire County Council,1111/1001,Children and Young People,CYP,Transport Related,CCA,06/01/2020,10-10183,1968.9,Arrow Specialised Transport Ltd
Nottinghamshire County Council,1111/1001,Children and Young People,CYP,Transport Related,CCA,06/01/2020,10-10184,"2,375.55",Arrow Specialised Transport Ltd
Nottinghamshire County Council,1111/1001,Children and Young People,CYP,Transport Related,CCA,06/01/2020,10-10185,"1,411.20",Arrow Specialised Transport Ltd
Nottinghamshire County Council,1111/1001,Children and Young People,CYP,Transport Related,CCA,06/01/2020,10-10186,"1,891.50",Arrow Specialised Transport Ltd
Nottinghamshire County Council,1111/1001,Children and Young People,CYP,Transport Related,CCA,06/01/2020,10-10187,1887,Arrow Specialised Transport Ltd
Nottinghamshire County Council,1111/1001,Children and Young People,CYP,Transport Related,CCA,06/01/2020,10-10188,"2,601.30",Arrow Specialised Transport Ltd
Nottinghamshire County Council,1111/1001,Children and Young People,CYP,Transport Related,CCA,06/01/2020,10-10189,"2,523.00",Arrow Specialised Transport Ltd
Nottinghamshire County Council,1111/1001,Children and Young People,CYP,Transport Related,CCA,06/01/2020,10-10190,2169,Arrow Specialised Transport Ltd
Nottinghamshire County Council,1111/1001,Children and Young People,CYP,Transport Related,CCA,06/01/2020,10-10191,2260.2,Arrow Specialised Transport Ltd
Nottinghamshire County Council,1111/1001,Children and Young People,CYP,Transport Related,CCA,06/01/2020,10-10192,1836,Arrow Specialised Transport Ltd
Nottinghamshire County Council,1111/1001,Children and Young People,CYP,Transport Related,CCA,06/01/2020,10-10193,"1,551.00",Arrow Specialised Transport Ltd
Nottinghamshire County Council,1111/1001,Children and Young People,CYP,Transport Related,CCA,06/01/2020,10-10194,"1,924.20",Arrow Specialised Transport Ltd
Nottinghamshire County Council,1111/1001,Children and Young People,CYP,Transport Related,CCA,06/01/2020,10-10195,1978.2,Arrow Specialised Transport Ltd
Nottinghamshire County Council,1111/1001,Children and Young People,CYP,Transport Related,CCA,06/01/2020,10-10196,"2,014.50",Arrow Specialised Transport Ltd
Nottinghamshire County Council,1111/1001,Children and Young People,CYP,Transport Related,CCA,06/01/2020,10-10197,"1,934.10",Arrow Specialised Transport Ltd
Nottinghamshire County Council,1111/1001,Children and Young People,CYP,Transport Related,CCA,06/01/2020,10-10198,2201.1,Arrow Specialised Transport Ltd
Nottinghamshire County Council,1111/1001,Children and Young People,CYP,Transport Related,CCA,06/01/2020,10-10199,"2,631.00",Arrow Specialised Transport Ltd
Nottinghamshire County Council,1111/1001,Children and Young People,CYP,Transport Related,CCA,06/01/2020,10-10200,1815,Arrow Specialised Transport Ltd
Nottinghamshire County Council,1111/1001,Children and Young People,CYP,Transport Related,CCA,06/01/2020,10-10201,1372.05,Arrow Specialised Transport Ltd
Nottinghamshire County Council,1111/1001,Children and Young People,CYP,Transport Related,CCA,06/01/2020,10-10202,"1,108.57",Arrow Specialised Transport Ltd
Nottinghamshire County Council,1111/1001,Children and Young People,CYP,Transport Related,CCA,06/01/2020,10-10204,1914.5,Arrow Specialised Transport Ltd
Nottinghamshire County Council,1111/1001,Children and Young People,CYP,Transport Related,CCA,06/01/2020,10-10205,"2,413.20",Arrow Specialised Transport Ltd
Nottinghamshire County Council,1111/1001,Children and Young People,CYP,Transport Related,CCA,06/01/2020,10-10206,2337.6,Arrow Specialised Transport Ltd
Nottinghamshire County Council,1111/1001,Children and Young People,CYP,Transport Related,CCA,06/01/2020,10-10207,"6,097.50",Arrow Specialised Transport Ltd
Nottinghamshire County Council,1111/1001,Children and Young People,CYP,Transport Related,CCA,06/01/2020,10-10208,3678,Arrow Specialised Transport Ltd
Nottinghamshire County Council,1111/1001,Children and Young People,CYP,Transport Related,CCA,06/01/2020,10-10209,1623.3,Arrow Specialised Transport Ltd
Nottinghamshire County Council,1111/1001,Children and Young People,CYP,Transport Related,CCA,06/01/2020,10-10210,2555.4,Arrow Specialised Transport Ltd
Nottinghamshire County Council,1111/1001,Children and Young People,CYP,Transport Related,CCA,06/01/2020,10-10211,"3,630.30",Arrow Specialised Transport Ltd
Nottinghamshire County Council,1111/1001,Children and Young People,CYP,Transport Related,CCA,06/01/2020,10-10212,2788.65,Arrow Specialised Transport Ltd
Nottinghamshire County Council,1111/1001,Children and Young People,CYP,Transport Related,CCA,06/01/2020,10-10213,"3,358.50",Arrow Specialised Transport Ltd
Nottinghamshire County Council,1111/1001,Children and Young People,CYP,Transport Related,CCA,06/01/2020,10-10214,1995,Arrow Specialised Transport Ltd
Nottinghamshire County Council,1111/1001,Children and Young People,CYP,Transport Related,CCA,06/01/2020,10-10215,1873.5,Arrow Specialised Transport Ltd
Nottinghamshire County Council,1111/1001,Children and Young People,CYP,Transport Related,CCA,06/01/2020,10-10216,1807.2,Arrow Specialised Transport Ltd
Nottinghamshire County Council,1111/1001,Children and Young People,CYP,Transport Related,CCA,06/01/2020,10-10217,1525.5,Arrow Specialised Transport Ltd
Nottinghamshire County Council,1111/1001,Children and Young People,CYP,Transport Related,CCA,06/01/2020,10-10218,1843.5,Arrow Specialised Transport Ltd
Nottinghamshire County Council,1111/1001,Children and Young People,CYP,Transport Related,CCA,06/01/2020,10-10219,2319,Arrow Specialised Transport Ltd
Nottinghamshire County Council,1111/1001,Children and Young People,CYP,Transport Related,CCA,06/01/2020,10-10220,"2,023.20",Arrow Specialised Transport Ltd
Nottinghamshire County Council,1111/1001,Children and Young People,CYP,Transport Related,CCA,06/01/2020,10-10221,"2,416.50",Arrow Specialised Transport Ltd
Nottinghamshire County Council,1111/1001,Children and Young People,CYP,Transport Related,CCA,06/01/2020,10-10222,1962,Arrow Specialised Transport Ltd
Nottinghamshire County Council,1111/1001,Children and Young People,CYP,Transport Related,CCA,06/01/2020,10-10223,"1,287.00",Arrow Specialised Transport Ltd
Nottinghamshire County Council,1111/1001,Children and Young People,CYP,Transport Related,CCA,06/01/2020,10-10224,1705.5,Arrow Specialised Transport Ltd
Nottinghamshire County Council,1111/1001,Children and Young People,CYP,Transport Related,CCA,06/01/2020,10-10225,"2,010.00",Arrow Specialised Transport Ltd
Nottinghamshire County Council,1111/1001,Children and Young People,CYP,Transport Related,CCA,06/01/2020,10-10226,"2,086.00",Arrow Specialised Transport Ltd
Nottinghamshire County Council,1111/1001,Children and Young People,CYP,Transport Related,CCA,06/01/2020,10-10227,1858.5,Arrow Specialised Transport Ltd
Nottinghamshire County Council,1111/1001,Children and Young People,CYP,Transport Related,CCA,06/01/2020,10-10228,"3,279.00",Arrow Specialised Transport Ltd
Nottinghamshire County Council,1111/1001,Children and Young People,CYP,Transport Related,CCA,06/01/2020,10-10229,1737,Arrow Specialised Transport Ltd
Nottinghamshire County Council,1111/1001,Children and Young People,CYP,Transport Related,CCA,06/01/2020,10-10230,2142,Arrow Specialised Transport Ltd
Nottinghamshire County Council,1111/1001,Children and Young People,CYP,Transport Related,CCA,06/01/2020,10-10231,1924.5,Arrow Specialised Transport Ltd
Nottinghamshire County Council,1111/1001,Children and Young People,CYP,Transport Related,CCA,06/01/2020,10-10232,"2,080.05",Arrow Specialised Transport Ltd
Nottinghamshire County Council,1111/1001,Children and Young People,CYP,Transport Related,CCA,06/01/2020,10-10233,2025,Arrow Specialised Transport Ltd
Nottinghamshire County Council,1111/1001,Children and Young People,CYP,Transport Related,CCA,06/01/2020,10-10238,3221.7,Bridges Transport Ltd
Nottinghamshire County Council,1111/1001,Children and Young People,CYP,Transport Related,CCA,06/01/2020,10-10239,1117.62,Bridges Transport Ltd
Nottinghamshire County Council,1111/1001,Children and Young People,CYP,Transport Related,CCA,06/01/2020,10-10241,2221.52,Bridges Transport Ltd
Nottinghamshire County Council,1111/1001,Children and Young People,CYP,Transport Related,CCA,06/01/2020,10-10242,"2,235.00",Bridges Transport Ltd
Nottinghamshire County Council,1111/1001,Children and Young People,CYP,Transport Related,CCA,06/01/2020,10-10243,"2,099.52",Bridges Transport Ltd
Nottinghamshire County Council,1111/1001,Children and Young People,CYP,Transport Related,CCA,06/01/2020,10-10244,2058,Bridges Transport Ltd
Nottinghamshire County Council,1111/1001,Children and Young People,CYP,Transport Related,CCA,06/01/2020,10-10245,"1,723.82",Bridges Transport Ltd
Nottinghamshire County Council,1111/1001,Children and Young People,CYP,Transport Related,CCA,06/01/2020,10-10247,575.00,Ng11 Cars
Nottinghamshire County Council,1111/1001,Children and Young People,CYP,Transport Related,CCA,06/01/2020,10-10248,"2,015.00",Ng11 Cars
Nottinghamshire County Council,1111/1001,Children and Young People,CYP,Transport Related,CCA,06/01/2020,10-10250,812,Ng11 Cars
Nottinghamshire County Council,1111/1001,Children and Young People,CYP,Transport Related,CCA,06/01/2020,10-10251,"1,200.00",Ng11 Cars
Nottinghamshire County Council,1111/1001,Children and Young People,CYP,Transport Related,CCA,06/01/2020,10-10252,2895.6,Stagecoach Services Ltd
Nottinghamshire County Council,1111/1001,Children and Young People,CYP,Transport Related,CCA,06/01/2020,10-10253,"4,032.15",Isle Coaches
Nottinghamshire County Council,1111/1001,Children and Young People,CYP,Transport Related,CCA,06/01/2020,10-10254,1889.85,Nottingham Coaches
Nottinghamshire County Council,1111/1001,Children and Young People,CYP,Transport Related,CCA,06/01/2020,10-10255,660,D Bull T/A DB Cabs
Nottinghamshire County Council,1111/1001,Children and Young People,CYP,Transport Related,CCA,06/01/2020,10-10257,2370,Hammonds Coaches Ltd
Nottinghamshire County Council,1111/1001,Children and Young People,CYP,Transport Related,CCA,06/01/2020,10-10258,"2,475.00",Hammonds Coaches Ltd
Nottinghamshire County Council,1111/1001,Children and Young People,CYP,Transport Related,CCA,06/01/2020,10-10259,"2,100.00",Hammonds Coaches Ltd
Nottinghamshire County Council,1111/1001,Children and Young People,CYP,Transport Related,CCA,06/01/2020,10-10260,540.00,Shiny Sky Ltd T/A Arrow Cars
Nottinghamshire County Council,1111/1001,Children and Young People,CYP,Transport Related,CCA,06/01/2020,10-10261,702,Shiny Sky Ltd T/A Arrow Cars
Nottinghamshire County Council,1111/1001,Children and Young People,CYP,Transport Related,CCA,06/01/2020,10-10262,"1,296.00",Shiny Sky Ltd T/A Arrow Cars
Nottinghamshire County Council,1111/1001,Children and Young People,CYP,Transport Related,CCA,07/01/2020,10-10391,"1,652.40",F4Control Ltd (t/a First4care)
Nottinghamshire County Council,1111/1001,Children and Young People,CYP,Transport Related,CCA,07/01/2020,10-10392,1770.9,F4Control Ltd (t/a First4care)
Nottinghamshire County Council,1111/1001,Children and Young People,CYP,Transport Related,CCA,07/01/2020,10-10393,1790.1,F4Control Ltd (t/a First4care)
Nottinghamshire County Council,1111/1001,Children and Young People,CYP,Transport Related,CCA,07/01/2020,10-10394,1631.25,F4Control Ltd (t/a First4care)
Nottinghamshire County Council,1111/1001,Children and Young People,CYP,Transport Related,CCA,07/01/2020,10-10395,"1,815.60",F4Control Ltd (t/a First4care)
Nottinghamshire County Council,1111/1001,Children and Young People,CYP,Transport Related,CCA,07/01/2020,10-10396,"3,525.00",Johnson Bros Tours Ltd
Nottinghamshire County Council,1111/1001,Children and Young People,CYP,Transport Related,CCA,07/01/2020,10-10397,2925,Johnson Bros Tours Ltd
Nottinghamshire County Council,1111/1001,Children and Young People,CYP,Transport Related,CCA,07/01/2020,10-10398,"2,401.20",Martins Travel
Nottinghamshire County Council,1111/1001,Children and Young People,CYP,Transport Related,CCA,07/01/2020,10-10400,660.00,Acorn Contracts
Nottinghamshire County Council,1111/1001,Children and Young People,CYP,Transport Related,CCA,07/01/2020,10-10401,600,Acorn Contracts
Nottinghamshire County Council,1111/1001,Children and Young People,CYP,Transport Related,CCA,07/01/2020,10-10403,"1,363.50",Alpha Cars
Nottinghamshire County Council,1111/1001,Children and Young People,CYP,Transport Related,CCA,07/01/2020,10-10404,2181.6,Alpha Cars
Nottinghamshire County Council,1111/1001,Children and Young People,CYP,Transport Related,CCA,07/01/2020,10-10405,1851,Alpha Cars
Nottinghamshire County Council,1111/1001,Children and Young People,CYP,Transport Related,CCA,07/01/2020,10-10406,"1,275.00",Alpha Cars
Nottinghamshire County Council,1111/1001,Children and Young People,CYP,Transport Related,CCA,07/01/2020,10-10407,1470,Alpha Cars
Nottinghamshire County Council,1111/1001,Children and Young People,CYP,Transport Related,CCA,07/01/2020,10-10408,"1,655.10",Alpha Cars
Nottinghamshire County Council,1111/1001,Children and Young People,CYP,Transport Related,CCA,07/01/2020,10-10409,1170.4,Alpha Cars
Nottinghamshire County Council,1111/1001,Children and Young People,CYP,Transport Related,CCA,07/01/2020,10-10410,817.74,Alpha Cars
Nottinghamshire County Council,1111/1001,Children and Young People,CYP,Transport Related,CCA,07/01/2020,10-10416,2696.7,Vallances Coaches
Nottinghamshire County Council,1111/1001,Children and Young People,CYP,Transport Related,CCA,07/01/2020,10-10417,2636.1,Vallances Coaches
Nottinghamshire County Council,1111/1001,Children and Young People,CYP,Transport Related,CCA,07/01/2020,10-10418,2696.7,Vallances Coaches
Nottinghamshire County Council,1111/1001,Children and Young People,CYP,Transport Related,CCA,07/01/2020,10-10419,"2,940.00",Vallances Coaches
Nottinghamshire County Council,1111/1001,Children and Young People,CYP,Transport Related,CCA,07/01/2020,10-10420,700,Elkingtons Park Garage
Nottinghamshire County Council,1111/1001,Children and Young People,CYP,Transport Related,CCA,07/01/2020,10-10421,"2,031.30",F4Control Ltd (t/a First4care)
Nottinghamshire County Council,1111/1001,Children and Young People,CYP,Transport Related,CCA,07/01/2020,10-10422,1950,F4Control Ltd (t/a First4care)
Nottinghamshire County Council,1111/1001,Children and Young People,CYP,Transport Related,CCA,07/01/2020,10-10423,3014.85,F4Control Ltd (t/a First4care)
Nottinghamshire County Council,1111/1001,Children and Young People,CYP,Transport Related,CCA,07/01/2020,10-10424,1669.8,F4Control Ltd (t/a First4care)
Nottinghamshire County Council,1111/1001,Children and Young People,CYP,Transport Related,CCA,07/01/2020,10-10425,1693.05,F4Control Ltd (t/a First4care)
Nottinghamshire County Council,1111/1001,Children and Young People,CYP,Transport Related,CCA,07/01/2020,10-10426,1798.65,F4Control Ltd (t/a First4care)
Nottinghamshire County Council,1111/1001,Children and Young People,CYP,Transport Related,CCA,07/01/2020,10-10427,1912.95,F4Control Ltd (t/a First4care)
Nottinghamshire County Council,1111/1001,Children and Young People,CYP,Transport Related,CCA,07/01/2020,10-10428,2035.8,F4Control Ltd (t/a First4care)
Nottinghamshire County Council,1111/1001,Children and Young People,CYP,Transport Related,CCA,07/01/2020,10-10429,1912.95,F4Control Ltd (t/a First4care)
Nottinghamshire County Council,1111/1001,Children and Young People,CYP,Transport Related,CCA,07/01/2020,10-10430,3234.75,BN Gibson Ltd
Nottinghamshire County Council,1111/1001,Children and Young People,CYP,Transport Related,CCA,07/01/2020,10-10431,3543.9,BN Gibson Ltd
Nottinghamshire County Council,1111/1001,Children and Young People,CYP,Transport Related,CCA,07/01/2020,10-10432,1751.55,BN Gibson Ltd
Nottinghamshire County Council,1111/1001,Children and Young People,CYP,Transport Related,CCA,07/01/2020,10-10433,2626.2,BN Gibson Ltd
Nottinghamshire County Council,1111/1001,Children and Young People,CYP,Transport Related,CCA,07/01/2020,10-10435,1566,AOT Coaches Nottingham LLP
Nottinghamshire County Council,1111/1001,Children and Young People,CYP,Transport Related,CCA,07/01/2020,10-10436,6301,AOT Coaches Nottingham LLP
Nottinghamshire County Council,1111/1001,Children and Young People,CYP,Transport Related,CCA,07/01/2020,10-10437,1650,K & R Cars
Nottinghamshire County Council,1111/1001,Children and Young People,CYP,Transport Related,CCA,07/01/2020,10-10438,1623.75,Marshalls Of Sutton On Trent Ltd
Nottinghamshire County Council,1111/1001,Children and Young People,CYP,Transport Related,CCA,07/01/2020,10-10442,2663.85,Marshalls Of Sutton On Trent Ltd
Nottinghamshire County Council,1111/1001,Children and Young People,CYP,Transport Related,CCA,07/01/2020,10-10445,1877.13,Marshalls Of Sutton On Trent Ltd
Nottinghamshire County Council,1111/1001,Children and Young People,CYP,Transport Related,CCA,07/01/2020,10-10447,2625,Marshalls Of Sutton On Trent Ltd
Nottinghamshire County Council,1111/1001,Children and Young People,CYP,Transport Related,CCA,07/01/2020,10-10448,3660,Marshalls Of Sutton On Trent Ltd
Nottinghamshire County Council,1111/1001,Children and Young People,CYP,Transport Related,CCA,07/01/2020,10-10452,2364.6,Nottingham Minibuses & Coaches
Nottinghamshire County Council,1111/1001,Children and Young People,CYP,Transport Related,CCA,07/01/2020,10-10455,1511.1,Nottingham Minibuses & Coaches
Nottinghamshire County Council,1111/1001,Children and Young People,CYP,Transport Related,CCA,07/01/2020,10-10457,2731.9,Silverdale Tours Nottm Ltd
Nottinghamshire County Council,1111/1001,Children and Young People,CYP,Transport Related,CCA,07/01/2020,10-10458,2338.9,Silverdale Tours Nottm Ltd
Nottinghamshire County Council,1111/1001,Children and Young People,CYP,Transport Related,CCA,07/01/2020,10-10459,1449.5,Silverdale Tours Nottm Ltd
Nottinghamshire County Council,1111/1001,Children and Young People,CYP,Transport Related,CCA,07/01/2020,10-10460,2429,Travel Wright Ltd
Nottinghamshire County Council,1111/1001,Children and Young People,CYP,Transport Related,CCA,07/01/2020,10-10461,2255.5,Travel Wright Ltd
Nottinghamshire County Council,1111/1001,Children and Young People,CYP,Transport Related,CCA,07/01/2020,10-10462,2657.2,Travel Wright Ltd
Nottinghamshire County Council,1111/1001,Children and Young People,CYP,Transport Related,CCA,07/01/2020,10-10467,1917,Travel Wright Ltd
Nottinghamshire County Council,1111/1001,Children and Young People,CYP,Transport Related,CCA,07/01/2020,10-10468,2364,Travel Wright Ltd
Nottinghamshire County Council,1111/1001,Children and Young People,CYP,Transport Related,CCA,07/01/2020,10-10469,2232,Travel Wright Ltd
Nottinghamshire County Council,1111/1001,Children and Young People,CYP,Transport Related,CCA,07/01/2020,10-10472,7200,Wilfreda Beehive
Nottinghamshire County Council,1111/1001,Children and Young People,CYP,Transport Related,CCA,07/01/2020,10-10473,2235,Aj Travel
Nottinghamshire County Council,1111/1001,Children and Young People,CYP,Transport Related,CCA,07/01/2020,10-10474,2417,Freeway Coaches Ltd
Nottinghamshire County Council,1111/1001,Children and Young People,CYP,Transport Related,CCA,07/01/2020,10-10475,2550,Freeway Coaches Ltd
Nottinghamshire County Council,1111/1001,Children and Young People,CYP,Transport Related,CCA,07/01/2020,10-10476,1429.35,Wallis Coachways
Nottinghamshire County Council,1111/1001,Children and Young People,CYP,Transport Related,CCA,07/01/2020,10-10477,1295,Ace Cars & Minibuses Ltd
Nottinghamshire County Council,1111/1001,Children and Young People,CYP,Transport Related,CCA,07/01/2020,10-10479,1212,Eastwood Cars (UK) Ltd
Nottinghamshire County Council,1111/1001,Children and Young People,CYP,Transport Related,CCA,07/01/2020,10-10480,560,Eastwood Cars (UK) Ltd
Nottinghamshire County Council,1111/1001,Children and Young People,CYP,Transport Related,CCA,07/01/2020,10-10481,1200,Eastwood Cars (UK) Ltd
Nottinghamshire County Council,1111/1001,Children and Young People,CYP,Transport Related,CCA,07/01/2020,10-10482,720,Eastwood Cars (UK) Ltd
Nottinghamshire County Council,1111/1001,Children and Young People,CYP,Transport Related,CCA,07/01/2020,10-10483,1087.5,Sean's Taxi Services
Nottinghamshire County Council,1111/1001,Children and Young People,CYP,Transport Related,CCA,07/01/2020,10-10485,1083.88,Nunns Taxis Ltd
Nottinghamshire County Council,1111/1001,Children and Young People,CYP,Transport Related,CCA,07/01/2020,10-10486,789,Nunns Taxis Ltd
Nottinghamshire County Council,1111/1001,Children and Young People,CYP,Transport Related,CCA,07/01/2020,10-10488,532.8,Nunns Taxis Ltd
Nottinghamshire County Council,1111/1001,Children and Young People,CYP,Transport Related,CCA,07/01/2020,10-10489,550,Gxpress Cars
Nottinghamshire County Council,1111/1001,Children and Young People,CYP,Transport Related,CCA,07/01/2020,10-10490,3024.17,Millennium Travel (Mansfield) Ltd
Nottinghamshire County Council,1111/1001,Children and Young People,CYP,Transport Related,CCA,07/01/2020,10-10492,2155.2,APC Travel
Nottinghamshire County Council,1111/1001,Children and Young People,CYP,Transport Related,CCA,08/01/2020,10-11455,1474.37,Sharpes Of Nottingham
Nottinghamshire County Council,1111/1001,Children and Young People,CYP,Transport Related,CCA,08/01/2020,10-11456,1540.22,Sharpes Of Nottingham
Nottinghamshire County Council,1111/1001,Children and Young People,CYP,Transport Related,CCA,08/01/2020,10-11457,1713.35,Sharpes Of Nottingham
Nottinghamshire County Council,1111/1001,Children and Young People,CYP,Transport Related,CCA,08/01/2020,10-11458,1942.67,Sharpes Of Nottingham
Nottinghamshire County Council,1111/1001,Children and Young People,CYP,Transport Related,CCA,08/01/2020,10-11459,2692.35,Sharpes Of Nottingham
Nottinghamshire County Council,1111/1001,Children and Young People,CYP,Transport Related,CCA,08/01/2020,10-11460,2556.45,Sharpes Of Nottingham
Nottinghamshire County Council,1111/1001,Children and Young People,CYP,Transport Related,CCA,08/01/2020,10-11463,1634.85,F4Control Ltd (t/a First4care)
Nottinghamshire County Council,1111/1001,Children and Young People,CYP,Transport Related,CCA,08/01/2020,10-11464,1856.25,F4Control Ltd (t/a First4care)
Nottinghamshire County Council,1111/1001,Children and Young People,CYP,Transport Related,CCA,08/01/2020,10-11465,1750,Wrights Coaches T/A Little Transpor
Nottinghamshire County Council,1111/1001,Children and Young People,CYP,Transport Related,CCA,08/01/2020,10-11472,988,200 Cars Ltd
Nottinghamshire County Council,1111/1001,Children and Young People,CYP,Transport Related,CCA,08/01/2020,10-11473,680,Acorn Contracts
Nottinghamshire County Council,1111/1001,Children and Young People,CYP,Transport Related,CCA,08/01/2020,10-11474,720,Acorn Contracts
Nottinghamshire County Council,1111/1001,Children and Young People,CYP,Transport Related,CCA,08/01/2020,10-11477,1199.88,Alpha Cars
Nottinghamshire County Council,1111/1001,Children and Young People,CYP,Transport Related,CCA,08/01/2020,10-11480,3249.4,Arrow Specialised Transport Ltd
Nottinghamshire County Council,1111/1001,Children and Young People,CYP,Transport Related,CCA,08/01/2020,10-11481,2437.05,Arrow Specialised Transport Ltd
Nottinghamshire County Council,1111/1001,Children and Young People,CYP,Transport Related,CCA,08/01/2020,10-11482,3306.9,Arrow Specialised Transport Ltd
Nottinghamshire County Council,1111/1001,Children and Young People,CYP,Transport Related,CCA,08/01/2020,10-11483,2018.25,Arrow Specialised Transport Ltd
Nottinghamshire County Council,1111/1001,Children and Young People,CYP,Transport Related,CCA,08/01/2020,10-11485,4417.5,Arrow Specialised Transport Ltd
Nottinghamshire County Council,1111/1001,Children and Young People,CYP,Transport Related,CCA,08/01/2020,10-11486,1636.8,Arrow Specialised Transport Ltd
Nottinghamshire County Council,1111/1001,Children and Young People,CYP,Transport Related,CCA,08/01/2020,10-11487,2037.75,Arrow Specialised Transport Ltd
Nottinghamshire County Council,1111/1001,Children and Young People,CYP,Transport Related,CCA,08/01/2020,10-11488,1194.5,Arrow Specialised Transport Ltd
Nottinghamshire County Council,1111/1001,Children and Young People,CYP,Transport Related,CCA,08/01/2020,10-11489,1647,Arrow Specialised Transport Ltd
Nottinghamshire County Council,1111/1001,Children and Young People,CYP,Transport Related,CCA,08/01/2020,10-11492,12023.7,Erewash Community Transport
Nottinghamshire County Council,1111/1001,Children and Young People,CYP,Transport Related,CCA,08/01/2020,10-11493,597,Galaxy Cabs Ltd
Nottinghamshire County Council,1111/1001,Children and Young People,CYP,Transport Related,CCA,08/01/2020,10-11496,656.1,Galaxy Cabs Ltd
Nottinghamshire County Council,1111/1001,Children and Young People,CYP,Transport Related,CCA,08/01/2020,10-11499,1068,Galaxy Cabs Ltd
Nottinghamshire County Council,1111/1001,Children and Young People,CYP,Transport Related,CCA,08/01/2020,10-11501,1372,Galaxy Cabs Ltd
Nottinghamshire County Council,1111/1001,Children and Young People,CYP,Transport Related,CCA,08/01/2020,10-11502,1647,Galaxy Cabs Ltd
Nottinghamshire County Council,1111/1001,Children and Young People,CYP,Transport Related,CCA,08/01/2020,10-11504,1260,Ng11 Cars
Nottinghamshire County Council,1111/1001,Children and Young People,CYP,Transport Related,CCA,08/01/2020,10-11505,1923.9,Vallances Coaches
Nottinghamshire County Council,1111/1001,Children and Young People,CYP,Transport Related,CCA,08/01/2020,10-11506,1866.48,F4Control Ltd (t/a First4care)
Nottinghamshire County Council,1111/1001,Children and Young People,CYP,Transport Related,CCA,08/01/2020,10-11507,2263.08,F4Control Ltd (t/a First4care)
Nottinghamshire County Council,1111/1001,Children and Young People,CYP,Transport Related,CCA,08/01/2020,10-11509,1885.95,F4Control Ltd (t/a First4care)
Nottinghamshire County Council,1111/1001,Children and Young People,CYP,Transport Related,CCA,08/01/2020,10-11511,2291.25,F4Control Ltd (t/a First4care)
Nottinghamshire County Council,1111/1001,Children and Young People,CYP,Transport Related,CCA,08/01/2020,10-11513,1593,F4Control Ltd (t/a First4care)
Nottinghamshire County Council,1111/1001,Children and Young People,CYP,Transport Related,CCA,08/01/2020,10-11514,1901.25,F4Control Ltd (t/a First4care)
Nottinghamshire County Council,1111/1001,Children and Young People,CYP,Transport Related,CCA,08/01/2020,10-11515,1887.45,F4Control Ltd (t/a First4care)
Nottinghamshire County Council,1111/1001,Children and Young People,CYP,Transport Related,CCA,08/01/2020,10-11516,1459.35,F4Control Ltd (t/a First4care)
Nottinghamshire County Council,1111/1001,Children and Young People,CYP,Transport Related,CCA,08/01/2020,10-11517,2481,F4Control Ltd (t/a First4care)
Nottinghamshire County Council,1111/1001,Children and Young People,CYP,Transport Related,CCA,08/01/2020,10-11518,1532.05,F4Control Ltd (t/a First4care)
Nottinghamshire County Council,1111/1001,Children and Young People,CYP,Transport Related,CCA,08/01/2020,10-11519,2212.95,F4Control Ltd (t/a First4care)
Nottinghamshire County Council,1111/1001,Children and Young People,CYP,Transport Related,CCA,08/01/2020,10-11520,1724.16,F4Control Ltd (t/a First4care)
Nottinghamshire County Council,1111/1001,Children and Young People,CYP,Transport Related,CCA,08/01/2020,10-11521,2212.95,F4Control Ltd (t/a First4care)
Nottinghamshire County Council,1111/1001,Children and Young People,CYP,Transport Related,CCA,08/01/2020,10-11522,2305.8,F4Control Ltd (t/a First4care)
Nottinghamshire County Council,1111/1001,Children and Young People,CYP,Transport Related,CCA,08/01/2020,10-11523,1618.3,F4Control Ltd (t/a First4care)
Nottinghamshire County Council,1111/1001,Children and Young People,CYP,Transport Related,CCA,08/01/2020,10-11524,9875.97,BN Gibson Ltd
Nottinghamshire County Council,1111/1001,Children and Young People,CYP,Transport Related,CCA,08/01/2020,10-11525,1953,AOT Coaches Nottingham LLP
Nottinghamshire County Council,1111/1001,Children and Young People,CYP,Transport Related,CCA,08/01/2020,10-11532,2014.2,Silverdale Tours Nottm Ltd
Nottinghamshire County Council,1111/1001,Children and Young People,CYP,Transport Related,CCA,08/01/2020,10-11533,2210.1,Silverdale Tours Nottm Ltd
Nottinghamshire County Council,1111/1001,Children and Young People,CYP,Transport Related,CCA,08/01/2020,10-11534,2251.5,Silverdale Tours Nottm Ltd
Nottinghamshire County Council,1111/1001,Children and Young People,CYP,Transport Related,CCA,08/01/2020,10-11535,2156.6,Silverdale Tours Nottm Ltd
Nottinghamshire County Council,1111/1001,Children and Young People,CYP,Transport Related,CCA,08/01/2020,10-11536,2059.2,Silverdale Tours Nottm Ltd
Nottinghamshire County Council,1111/1001,Children and Young People,CYP,Transport Related,CCA,08/01/2020,10-11538,2327.6,Travel Wright Ltd
Nottinghamshire County Council,1111/1001,Children and Young People,CYP,Transport Related,CCA,08/01/2020,10-11539,2135.95,Travel Wright Ltd
Nottinghamshire County Council,1111/1001,Children and Young People,CYP,Transport Related,CCA,08/01/2020,10-11541,5241,Freeway Coaches Ltd
Nottinghamshire County Council,1111/1001,Children and Young People,CYP,Transport Related,CCA,08/01/2020,10-11542,2360,Freeway Coaches Ltd
Nottinghamshire County Council,1111/1001,Children and Young People,CYP,Transport Related,CCA,08/01/2020,10-11543,1265.4,Bassetlaw Action Centre
Nottinghamshire County Council,1111/1001,Children and Young People,CYP,Transport Related,CCA,08/01/2020,10-11544,530.1,Bassetlaw Action Centre
Nottinghamshire County Council,1111/1001,Children and Young People,CYP,Transport Related,CCA,08/01/2020,10-11545,742,Bassetlaw Action Centre
Nottinghamshire County Council,1111/1001,Children and Young People,CYP,Transport Related,CCA,08/01/2020,10-11549,6456.8,Nottingham Coaches
Nottinghamshire County Council,1111/1001,Children and Young People,CYP,Transport Related,CCA,08/01/2020,10-11550,8792.75,Nottingham Coaches
Nottinghamshire County Council,1111/1001,Children and Young People,CYP,Transport Related,CCA,08/01/2020,10-11551,1875,Trevor Bailey t/a Trevor Bailey Tra
Nottinghamshire County Council,1111/1001,Children and Young People,CYP,Transport Related,CCA,08/01/2020,10-11552,2414.23,Hammonds Coaches Ltd
Nottinghamshire County Council,1111/1001,Children and Young People,CYP,Transport Related,CCA,08/01/2020,10-11553,1675.88,Hammonds Coaches Ltd
Nottinghamshire County Council,1111/1001,Children and Young People,CYP,Transport Related,CCA,08/01/2020,10-11554,884,Reliable Cars Ltd
Nottinghamshire County Council,1111/1001,Children and Young People,CYP,Transport Related,CCA,08/01/2020,10-11555,2811.5,Millennium Travel (Mansfield) Ltd
Nottinghamshire County Council,1111/1001,Children and Young People,CYP,Transport Related,CCA,08/01/2020,10-11556,772.5,AJ's Taxis
Nottinghamshire County Council,1111/1001,Children and Young People,CYP,Transport Related,CCA,08/01/2020,10-11557,1239,AJ's Taxis
Nottinghamshire County Council,1111/1001,Children and Young People,CYP,Transport Related,CCA,09/01/2020,10-11566,9178.01,Via East Midlands Ltd
Nottinghamshire County Council,1111/1001,Children and Young People,CYP,Transport Related,CCA,09/01/2020,10-11579,2590.65,Taxicover Uk Ltd
Nottinghamshire County Council,1111/1001,Children and Young People,CYP,Transport Related,CCA,09/01/2020,10-11580,3211.8,Taxicover Uk Ltd
Nottinghamshire County Council,1111/1001,Children and Young People,CYP,Transport Related,CCA,09/01/2020,10-11581,1590,Taxicover Uk Ltd
Nottinghamshire County Council,1111/1001,Children and Young People,CYP,Transport Related,CCA,09/01/2020,10-11582,1800,Taxicover Uk Ltd
Nottinghamshire County Council,1111/1001,Children and Young People,CYP,Transport Related,CCA,09/01/2020,10-11583,1230,Taxicover Uk Ltd
Nottinghamshire County Council,1111/1001,Children and Young People,CYP,Transport Related,CCA,09/01/2020,10-11585,2393.7,Taxicover Uk Ltd
Nottinghamshire County Council,1111/1001,Children and Young People,CYP,Transport Related,CCA,09/01/2020,10-11586,1787.7,Taxicover Uk Ltd
Nottinghamshire County Council,1111/1001,Children and Young People,CYP,Transport Related,CCA,09/01/2020,10-11587,3083.1,Taxicover Uk Ltd
Nottinghamshire County Council,1111/1001,Children and Young People,CYP,Transport Related,CCA,09/01/2020,10-11588,2898.75,Taxicover Uk Ltd
Nottinghamshire County Council,1111/1001,Children and Young People,CYP,Transport Related,CCA,09/01/2020,10-11589,1896.72,Taxicover Uk Ltd
Nottinghamshire County Council,1111/1001,Children and Young People,CYP,Transport Related,CCA,09/01/2020,10-11590,2329.88,Taxicover Uk Ltd
Nottinghamshire County Council,1111/1001,Children and Young People,CYP,Transport Related,CCA,09/01/2020,10-11591,2636.1,Taxicover Uk Ltd
Nottinghamshire County Council,1111/1001,Children and Young People,CYP,Transport Related,CCA,09/01/2020,10-11592,2740.35,Taxicover Uk Ltd
Nottinghamshire County Council,1111/1001,Children and Young People,CYP,Transport Related,CCA,09/01/2020,10-11593,2438.7,Taxicover Uk Ltd
Nottinghamshire County Council,1111/1001,Children and Young People,CYP,Transport Related,CCA,09/01/2020,10-11594,2454.3,Taxicover Uk Ltd
Nottinghamshire County Council,1111/1001,Children and Young People,CYP,Transport Related,CCA,09/01/2020,10-11595,2999.7,Taxicover Uk Ltd
Nottinghamshire County Council,1111/1001,Children and Young People,CYP,Transport Related,CCA,09/01/2020,10-11596,2700,Glenn Ryder Coaches
Nottinghamshire County Council,1111/1001,Children and Young People,CYP,Transport Related,CCA,09/01/2020,10-11597,2610.7,Glenn Ryder Coaches
Nottinghamshire County Council,1111/1001,Children and Young People,CYP,Transport Related,CCA,09/01/2020,10-11598,975.5,Ace Of Mansfield Ltd
Nottinghamshire County Council,1111/1001,Children and Young People,CYP,Transport Related,CCA,09/01/2020,10-11599,540.00,Ace Of Mansfield Ltd
Nottinghamshire County Council,1111/1001,Children and Young People,CYP,Transport Related,CCA,09/01/2020,10-11600,909,Ace Of Mansfield Ltd
Nottinghamshire County Council,1111/1001,Children and Young People,CYP,Transport Related,CCA,09/01/2020,10-11601,1818,Ace Of Mansfield Ltd
Nottinghamshire County Council,1111/1001,Children and Young People,CYP,Transport Related,CCA,09/01/2020,10-11602,"6,285.00",Butler Brothers Ltd
Nottinghamshire County Council,1111/1001,Children and Young People,CYP,Transport Related,CCA,09/01/2020,10-11603,565,Fozcabs Newark Taxis
Nottinghamshire County Council,1111/1001,Children and Young People,CYP,Transport Related,CCA,09/01/2020,10-11604,1540,Fozcabs Newark Taxis
Nottinghamshire County Council,1111/1001,Children and Young People,CYP,Transport Related,CCA,09/01/2020,10-11605,810,Fozcabs Newark Taxis
Nottinghamshire County Council,1111/1001,Children and Young People,CYP,Transport Related,CCA,09/01/2020,10-11606,1265,Fozcabs Newark Taxis
Nottinghamshire County Council,1111/1001,Children and Young People,CYP,Transport Related,CCA,09/01/2020,10-11607,700.00,Fozcabs Newark Taxis
Nottinghamshire County Council,1111/1001,Children and Young People,CYP,Transport Related,CCA,09/01/2020,10-11609,"1,725.00",Fozcabs Newark Taxis
Nottinghamshire County Council,1111/1001,Children and Young People,CYP,Transport Related,CCA,09/01/2020,10-11610,"1,440.00",Fozcabs Newark Taxis
Nottinghamshire County Council,1111/1001,Children and Young People,CYP,Transport Related,CCA,09/01/2020,10-11611,"1,590.00",Fozcabs Newark Taxis
Nottinghamshire County Council,1111/1001,Children and Young People,CYP,Transport Related,CCA,09/01/2020,10-11613,"2,333.10",Horizon Travel
Nottinghamshire County Council,1111/1001,Children and Young People,CYP,Transport Related,CCA,09/01/2020,10-11615,"1,741.95",BN Gibson Ltd
Nottinghamshire County Council,1111/1001,Children and Young People,CYP,Transport Related,CCA,09/01/2020,10-11616,"2,288.25",BN Gibson Ltd
Nottinghamshire County Council,1111/1001,Children and Young People,CYP,Transport Related,CCA,09/01/2020,10-11617,1689,BN Gibson Ltd
Nottinghamshire County Council,1111/1001,Children and Young People,CYP,Transport Related,CCA,09/01/2020,10-11618,"3,717.45",BN Gibson Ltd
Nottinghamshire County Council,1111/1001,Children and Young People,CYP,Transport Related,CCA,09/01/2020,10-11619,2230.65,BN Gibson Ltd
Nottinghamshire County Council,1111/1001,Children and Young People,CYP,Transport Related,CCA,09/01/2020,10-11620,2963.25,BN Gibson Ltd
Nottinghamshire County Council,1111/1001,Children and Young People,CYP,Transport Related,CCA,09/01/2020,10-11621,"2,868.45",BN Gibson Ltd
Nottinghamshire County Council,1111/1001,Children and Young People,CYP,Transport Related,CCA,09/01/2020,10-11622,"1,959.00",BN Gibson Ltd
Nottinghamshire County Council,1111/1001,Children and Young People,CYP,Transport Related,CCA,09/01/2020,10-11623,2005.8,BN Gibson Ltd
Nottinghamshire County Council,1111/1001,Children and Young People,CYP,Transport Related,CCA,09/01/2020,10-11624,"3,537.60",BN Gibson Ltd
Nottinghamshire County Council,1111/1001,Children and Young People,CYP,Transport Related,CCA,09/01/2020,10-11625,"2,682.00",BN Gibson Ltd
Nottinghamshire County Council,1111/1001,Children and Young People,CYP,Transport Related,CCA,09/01/2020,10-11626,"2,854.80",BN Gibson Ltd
Nottinghamshire County Council,1111/1001,Children and Young People,CYP,Transport Related,CCA,09/01/2020,10-11627,"4,402.80",BN Gibson Ltd
Nottinghamshire County Council,1111/1001,Children and Young People,CYP,Transport Related,CCA,09/01/2020,10-11628,2881.5,BN Gibson Ltd
Nottinghamshire County Council,1111/1001,Children and Young People,CYP,Transport Related,CCA,09/01/2020,10-11629,"2,473.65",BN Gibson Ltd
Nottinghamshire County Council,1111/1001,Children and Young People,CYP,Transport Related,CCA,09/01/2020,10-11630,1824.9,BN Gibson Ltd
Nottinghamshire County Council,1111/1001,Children and Young People,CYP,Transport Related,CCA,09/01/2020,10-11631,1921.05,BN Gibson Ltd
Nottinghamshire County Council,1111/1001,Children and Young People,CYP,Transport Related,CCA,09/01/2020,10-11632,2146.95,BN Gibson Ltd
Nottinghamshire County Council,1111/1001,Children and Young People,CYP,Transport Related,CCA,09/01/2020,10-11633,1663.95,BN Gibson Ltd
Nottinghamshire County Council,1111/1001,Children and Young People,CYP,Transport Related,CCA,09/01/2020,10-11634,1620.15,BN Gibson Ltd
Nottinghamshire County Council,1111/1001,Children and Young People,CYP,Transport Related,CCA,09/01/2020,10-11635,2308.05,BN Gibson Ltd
Nottinghamshire County Council,1111/1001,Children and Young People,CYP,Transport Related,CCA,09/01/2020,10-11636,"2,816.40",BN Gibson Ltd
Nottinghamshire County Council,1111/1001,Children and Young People,CYP,Transport Related,CCA,09/01/2020,10-11637,"1,986.00",BN Gibson Ltd
Nottinghamshire County Council,1111/1001,Children and Young People,CYP,Transport Related,CCA,09/01/2020,10-11638,"2,546.25",BN Gibson Ltd
Nottinghamshire County Council,1111/1001,Children and Young People,CYP,Transport Related,CCA,09/01/2020,10-11639,1738.52,BN Gibson Ltd
Nottinghamshire County Council,1111/1001,Children and Young People,CYP,Transport Related,CCA,09/01/2020,10-11640,2104.35,K & S Coaches
Nottinghamshire County Council,1111/1001,Children and Young People,CYP,Transport Related,CCA,09/01/2020,10-11641,1449.63,Midfield Travel
Nottinghamshire County Council,1111/1001,Children and Young People,CYP,Transport Related,CCA,09/01/2020,10-11642,"2,190.45",Midfield Travel
Nottinghamshire County Council,1111/1001,Children and Young People,CYP,Transport Related,CCA,09/01/2020,10-11643,1035,Meden Travel
Nottinghamshire County Council,1111/1001,Children and Young People,CYP,Transport Related,CCA,09/01/2020,10-11644,"5,355.00",Kettlewell Retford Ltd
Nottinghamshire County Council,1111/1001,Children and Young People,CYP,Transport Related,CCA,09/01/2020,10-11645,2160,Kettlewell Retford Ltd
Nottinghamshire County Council,1111/1001,Children and Young People,CYP,Transport Related,CCA,09/01/2020,10-11646,2325,Kettlewell Retford Ltd
Nottinghamshire County Council,1111/1001,Children and Young People,CYP,Transport Related,CCA,09/01/2020,10-11647,"1,695.00",Kettlewell Retford Ltd
Nottinghamshire County Council,1111/1001,Children and Young People,CYP,Transport Related,CCA,09/01/2020,10-11648,"2,460.00",Kettlewell Retford Ltd
Nottinghamshire County Council,1111/1001,Children and Young People,CYP,Transport Related,CCA,09/01/2020,10-11649,2775,Kettlewell Retford Ltd
Nottinghamshire County Council,1111/1001,Children and Young People,CYP,Transport Related,CCA,09/01/2020,10-11650,5250,Kettlewell Retford Ltd
Nottinghamshire County Council,1111/1001,Children and Young People,CYP,Transport Related,CCA,09/01/2020,10-11651,"2,460.00",Kettlewell Retford Ltd
Nottinghamshire County Council,1111/1001,Children and Young People,CYP,Transport Related,CCA,09/01/2020,10-11652,3166.9,Kettlewell Retford Ltd
Nottinghamshire County Council,1111/1001,Children and Young People,CYP,Transport Related,CCA,09/01/2020,10-11656,3000,C W Moxon Ltd
Nottinghamshire County Council,1111/1001,Children and Young People,CYP,Transport Related,CCA,09/01/2020,10-11658,8827,C W Moxon Ltd
Nottinghamshire County Council,1111/1001,Children and Young People,CYP,Transport Related,CCA,09/01/2020,10-11660,599.90,Rio Cabs
Nottinghamshire County Council,1111/1001,Children and Young People,CYP,Transport Related,CCA,09/01/2020,10-11661,1935,Rio Cabs
Nottinghamshire County Council,1111/1001,Children and Young People,CYP,Transport Related,CCA,09/01/2020,10-11662,654,Rio Cabs
Nottinghamshire County Council,1111/1001,Children and Young People,CYP,Transport Related,CCA,09/01/2020,10-11663,519.20,Rio Cabs
Nottinghamshire County Council,1111/1001,Children and Young People,CYP,Transport Related,CCA,09/01/2020,10-11664,717.6,Rio Cabs
Nottinghamshire County Council,1111/1001,Children and Young People,CYP,Transport Related,CCA,09/01/2020,10-11665,"1,867.80",Rio Cabs
Nottinghamshire County Council,1111/1001,Children and Young People,CYP,Transport Related,CCA,09/01/2020,10-11666,700.00,AAA Cabs
Nottinghamshire County Council,1111/1001,Children and Young People,CYP,Transport Related,CCA,09/01/2020,10-11668,1575,Travel Liner
Nottinghamshire County Council,1111/1001,Children and Young People,CYP,Transport Related,CCA,09/01/2020,10-11669,2108.4,Target Taxis
Nottinghamshire County Council,1111/1001,Children and Young People,CYP,Transport Related,CCA,09/01/2020,10-11670,720,Target Taxis
Nottinghamshire County Council,1111/1001,Children and Young People,CYP,Transport Related,CCA,09/01/2020,10-11672,576.3,Ideal Cars (Private Hire) Ltd
Nottinghamshire County Council,1111/1001,Children and Young People,CYP,Transport Related,CCA,09/01/2020,10-11673,"1,885.00",Ideal Cars (Private Hire) Ltd
Nottinghamshire County Council,1111/1001,Children and Young People,CYP,Transport Related,CCA,09/01/2020,10-11674,714.00,Ideal Cars (Private Hire) Ltd
Nottinghamshire County Council,1111/1001,Children and Young People,CYP,Transport Related,CCA,09/01/2020,10-11675,1008,Ideal Cars (Private Hire) Ltd
Nottinghamshire County Council,1111/1001,Children and Young People,CYP,Transport Related,CCA,09/01/2020,10-11676,"1,104.00",Reliable Cars Ltd
Nottinghamshire County Council,1111/1001,Children and Young People,CYP,Transport Related,CCA,09/01/2020,10-11677,1132.2,Reliable Cars Ltd
Nottinghamshire County Council,1111/1001,Children and Young People,CYP,Transport Related,CCA,09/01/2020,10-11679,575.00,Reliable Cars Ltd
Nottinghamshire County Council,1111/1001,Children and Young People,CYP,Transport Related,CCA,09/01/2020,10-11680,1595,Reliable Cars Ltd
Nottinghamshire County Council,1111/1001,Children and Young People,CYP,Transport Related,CCA,09/01/2020,10-11681,962,Forest Cars
Nottinghamshire County Council,1111/1001,Children and Young People,CYP,Transport Related,CCA,09/01/2020,10-11682,868.13,Forest Cars
Nottinghamshire County Council,1111/1001,Children and Young People,CYP,Transport Related,CCA,09/01/2020,10-11684,1157,Forest Cars
Nottinghamshire County Council,1111/1001,Children and Young People,CYP,Transport Related,CCA,09/01/2020,10-11685,1110,Forest Cars
Nottinghamshire County Council,1111/1001,Children and Young People,CYP,Transport Related,CCA,09/01/2020,10-11686,"1,344.00",Forest Cars
Nottinghamshire County Council,1111/1001,Children and Young People,CYP,Transport Related,CCA,09/01/2020,10-11687,"1,185.00",Forest Cars
Nottinghamshire County Council,1111/1001,Children and Young People,CYP,Transport Related,CCA,09/01/2020,10-11688,"2,115.00",Forest Cars
Nottinghamshire County Council,1111/1001,Children and Young People,CYP,Transport Related,CCA,09/01/2020,10-11689,1320,Forest Cars
Nottinghamshire County Council,1111/1001,Children and Young People,CYP,Transport Related,CCA,09/01/2020,10-11690,"1,170.00",Forest Cars
Nottinghamshire County Council,1111/1001,Children and Young People,CYP,Transport Related,CCA,09/01/2020,10-11691,994,Forest Cars
Nottinghamshire County Council,1111/1001,Children and Young People,CYP,Transport Related,CCA,09/01/2020,10-11692,"1,485.00",Forest Cars
Nottinghamshire County Council,1111/1001,Children and Young People,CYP,Transport Related,CCA,09/01/2020,10-11693,"1,560.00",Forest Cars
Nottinghamshire County Council,1111/1001,Children and Young People,CYP,Transport Related,CCA,09/01/2020,10-11694,1320,Forest Cars
Nottinghamshire County Council,1111/1001,Children and Young People,CYP,Transport Related,CCA,09/01/2020,10-11695,1020,Forest Cars
Nottinghamshire County Council,1111/1001,Children and Young People,CYP,Transport Related,CCA,09/01/2020,10-11696,"1,680.00",Forest Cars
Nottinghamshire County Council,1111/1001,Children and Young People,CYP,Transport Related,CCA,09/01/2020,10-11698,1008,Forest Cars
Nottinghamshire County Council,1111/1001,Children and Young People,CYP,Transport Related,CCA,09/01/2020,10-11699,1128,Forest Cars
Nottinghamshire County Council,1111/1001,Children and Young People,CYP,Transport Related,CCA,09/01/2020,10-11700,1320,Forest Cars
Nottinghamshire County Council,1111/1001,Children and Young People,CYP,Transport Related,CCA,09/01/2020,10-11701,945.36,Forest Cars
Nottinghamshire County Council,1111/1001,Children and Young People,CYP,Transport Related,CCA,09/01/2020,10-11702,1410,Forest Cars
Nottinghamshire County Council,1111/1001,Children and Young People,CYP,Transport Related,CCA,09/01/2020,10-11703,1110,Forest Cars
Nottinghamshire County Council,1111/1001,Children and Young People,CYP,Transport Related,CCA,09/01/2020,10-11704,2160,Forest Cars
Nottinghamshire County Council,1111/1001,Children and Young People,CYP,Transport Related,CCA,09/01/2020,10-11705,1346.55,Forest Cars
Nottinghamshire County Council,1111/1001,Children and Young People,CYP,Transport Related,CCA,09/01/2020,10-11706,"1,620.00",Forest Cars
Nottinghamshire County Council,1111/1001,Children and Young People,CYP,Transport Related,CCA,09/01/2020,10-11707,566.18,Forest Cars
Nottinghamshire County Council,1111/1001,Children and Young People,CYP,Transport Related,CCA,09/01/2020,10-11709,1485,Forest Cars
Nottinghamshire County Council,1111/1001,Children and Young People,CYP,Transport Related,CCA,09/01/2020,10-11710,"1,410.00",Forest Cars
Nottinghamshire County Council,1111/1001,Children and Young People,CYP,Transport Related,CCA,09/01/2020,10-11711,1470,Forest Cars
Nottinghamshire County Council,1111/1001,Children and Young People,CYP,Transport Related,CCA,09/01/2020,10-11712,"1,260.00",Forest Cars
Nottinghamshire County Council,1111/1001,Children and Young People,CYP,Transport Related,CCA,09/01/2020,10-11713,952.00,Forest Cars
Nottinghamshire County Council,1111/1001,Children and Young People,CYP,Transport Related,CCA,09/01/2020,10-11714,1470,Forest Cars
Nottinghamshire County Council,1111/1001,Children and Young People,CYP,Transport Related,CCA,09/01/2020,10-11715,"1,110.00",Forest Cars
Nottinghamshire County Council,1111/1001,Children and Young People,CYP,Transport Related,CCA,09/01/2020,10-11716,1260,Forest Cars
Nottinghamshire County Council,1111/1001,Children and Young People,CYP,Transport Related,CCA,09/01/2020,10-11717,2205,Forest Cars
Nottinghamshire County Council,1111/1001,Children and Young People,CYP,Transport Related,CCA,09/01/2020,10-11718,870,Forest Cars
Nottinghamshire County Council,1111/1001,Children and Young People,CYP,Transport Related,CCA,09/01/2020,10-11719,"1,386.00",Forest Cars
Nottinghamshire County Council,1111/1001,Children and Young People,CYP,Transport Related,CCA,09/01/2020,10-11720,"1,512.00",Forest Cars
Nottinghamshire County Council,1111/1001,Children and Young People,CYP,Transport Related,CCA,09/01/2020,10-11721,852.05,Forest Cars
Nottinghamshire County Council,1111/1001,Children and Young People,CYP,Transport Related,CCA,09/01/2020,10-11723,"2,420.64",Forest Cars
Nottinghamshire County Council,1111/1001,Children and Young People,CYP,Transport Related,CCA,09/01/2020,10-11724,972,Forest Cars
Nottinghamshire County Council,1111/1001,Children and Young People,CYP,Transport Related,CCA,09/01/2020,10-11725,"1,680.00",Forest Cars
Nottinghamshire County Council,1111/1001,Children and Young People,CYP,Transport Related,CCA,09/01/2020,10-11726,"2,050.35",Forest Cars
Nottinghamshire County Council,1111/1001,Children and Young People,CYP,Transport Related,CCA,09/01/2020,10-11727,1020,Forest Cars
Nottinghamshire County Council,1111/1001,Children and Young People,CYP,Transport Related,CCA,09/01/2020,10-11730,1303.5,SM Travel Yorkshire Ltd
Nottinghamshire County Council,1111/1001,Children and Young People,CYP,Transport Related,CCA,09/01/2020,10-11732,"1,245.60",SM Travel Yorkshire Ltd
Nottinghamshire County Council,1111/1001,Children and Young People,CYP,Transport Related,CCA,09/01/2020,10-11733,2964,SM Travel Yorkshire Ltd
Nottinghamshire County Council,1111/1001,Children and Young People,CYP,Transport Related,CCA,09/01/2020,10-11734,1864.5,SM Travel Yorkshire Ltd
Nottinghamshire County Council,1111/1001,Children and Young People,CYP,Transport Related,CCA,09/01/2020,10-11735,2427.6,SM Travel Yorkshire Ltd
Nottinghamshire County Council,1111/1001,Children and Young People,CYP,Transport Related,CCA,09/01/2020,10-11736,1684.5,SM Travel Yorkshire Ltd
Nottinghamshire County Council,1111/1001,Children and Young People,CYP,Transport Related,CCA,09/01/2020,10-11737,"1,517.60",SM Travel Yorkshire Ltd
Nottinghamshire County Council,1111/1001,Children and Young People,CYP,Transport Related,CCA,09/01/2020,10-11738,"2,064.00",SM Travel Yorkshire Ltd
Nottinghamshire County Council,1111/1001,Children and Young People,CYP,Transport Related,CCA,09/01/2020,10-11739,"1,253.70",SM Travel Yorkshire Ltd
Nottinghamshire County Council,1111/1001,Children and Young People,CYP,Transport Related,CCA,09/01/2020,10-11740,"1,303.40",SM Travel Yorkshire Ltd
Nottinghamshire County Council,1111/1001,Children and Young People,CYP,Transport Related,CCA,09/01/2020,10-11741,"1,603.20",SM Travel Yorkshire Ltd
Nottinghamshire County Council,1111/1001,Children and Young People,CYP,Transport Related,CCA,09/01/2020,10-11742,1035.6,SM Travel Yorkshire Ltd
Nottinghamshire County Council,1111/1001,Children and Young People,CYP,Transport Related,CCA,09/01/2020,10-11743,2520,Unity Coaches Ltd
Nottinghamshire County Council,1111/1001,Children and Young People,CYP,Transport Related,CCA,09/01/2020,10-11744,630,Carriage Solutions Ltd
Nottinghamshire County Council,1111/1001,Children and Young People,CYP,Transport Related,CCA,09/01/2020,10-11745,745.5,Carriage Solutions Ltd
Nottinghamshire County Council,1111/1001,Children and Young People,CYP,Transport Related,CCA,13/01/2020,10-11762,24456.85,Via East Midlands Ltd
Nottinghamshire County Council,1111/1001,Children and Young People,CYP,Transport Related,CCA,13/01/2020,10-11772,"1,275.00",Southside Cars Ltd
Nottinghamshire County Council,1111/1001,Children and Young People,CYP,Transport Related,CCA,13/01/2020,10-11773,"1,521.00",Southside Cars Ltd
Nottinghamshire County Council,1111/1001,Children and Young People,CYP,Transport Related,CCA,13/01/2020,10-11774,1104,Southside Cars Ltd
Nottinghamshire County Council,1111/1001,Children and Young People,CYP,Transport Related,CCA,13/01/2020,10-11775,"1,424.10",Southside Cars Ltd
Nottinghamshire County Council,1111/1001,Children and Young People,CYP,Transport Related,CCA,13/01/2020,10-11776,1560,Southside Cars Ltd
Nottinghamshire County Council,1111/1001,Children and Young People,CYP,Transport Related,CCA,13/01/2020,10-11777,1785,Southside Cars Ltd
Nottinghamshire County Council,1111/1001,Children and Young People,CYP,Transport Related,CCA,13/01/2020,10-11778,"1,312.80",Southside Cars Ltd
Nottinghamshire County Council,1111/1001,Children and Young People,CYP,Transport Related,CCA,13/01/2020,10-11779,1434.05,Southside Cars Ltd
Nottinghamshire County Council,1111/1001,Children and Young People,CYP,Transport Related,CCA,13/01/2020,10-11781,825,Southside Cars Ltd
Nottinghamshire County Council,1111/1001,Children and Young People,CYP,Transport Related,CCA,13/01/2020,10-11782,1560,Southside Cars Ltd
Nottinghamshire County Council,1111/1001,Children and Young People,CYP,Transport Related,CCA,13/01/2020,10-11783,"1,781.40",Southside Cars Ltd
Nottinghamshire County Council,1111/1001,Children and Young People,CYP,Transport Related,CCA,13/01/2020,10-11785,2670,Southside Cars Ltd
Nottinghamshire County Council,1111/1001,Children and Young People,CYP,Transport Related,CCA,13/01/2020,10-11786,1890,Southside Cars Ltd
Nottinghamshire County Council,1111/1001,Children and Young People,CYP,Transport Related,CCA,13/01/2020,10-11787,"1,440.00",Southside Cars Ltd
Nottinghamshire County Council,1111/1001,Children and Young People,CYP,Transport Related,CCA,13/01/2020,10-11788,"2,400.00",Southside Cars Ltd
Nottinghamshire County Council,1111/1001,Children and Young People,CYP,Transport Related,CCA,13/01/2020,10-11789,1050,Central Cars Nottm Ltd
Nottinghamshire County Council,1111/1001,Children and Young People,CYP,Transport Related,CCA,13/01/2020,10-11790,1363.5,Central Cars Nottm Ltd
Nottinghamshire County Council,1111/1001,Children and Young People,CYP,Transport Related,CCA,13/01/2020,10-11791,1260,Central Cars Nottm Ltd
Nottinghamshire County Council,1111/1001,Children and Young People,CYP,Transport Related,CCA,13/01/2020,10-11792,1470,Central Cars Nottm Ltd
Nottinghamshire County Council,1111/1001,Children and Young People,CYP,Transport Related,CCA,13/01/2020,10-11796,4130,Johnson Bros Tours Ltd
Nottinghamshire County Council,1111/1001,Children and Young People,CYP,Transport Related,CCA,13/01/2020,10-11797,"6,106.05",Johnson Bros Tours Ltd
Nottinghamshire County Council,1111/1001,Children and Young People,CYP,Transport Related,CCA,13/01/2020,10-11798,"2,100.00",Arnold Acorn Travel
Nottinghamshire County Council,1111/1001,Children and Young People,CYP,Transport Related,CCA,13/01/2020,10-11799,"1,120.00",Shelleys Taxis Ltd
Nottinghamshire County Council,1111/1001,Children and Young People,CYP,Transport Related,CCA,13/01/2020,10-11800,"1,050.00",Shelleys Taxis Ltd
Nottinghamshire County Council,1111/1001,Children and Young People,CYP,Transport Related,CCA,13/01/2020,10-11801,1470,Shelleys Taxis Ltd
Nottinghamshire County Council,1111/1001,Children and Young People,CYP,Transport Related,CCA,13/01/2020,10-11802,1060.5,Shelleys Taxis Ltd
Nottinghamshire County Council,1111/1001,Children and Young People,CYP,Transport Related,CCA,13/01/2020,10-11803,960,Shelleys Taxis Ltd
Nottinghamshire County Council,1111/1001,Children and Young People,CYP,Transport Related,CCA,13/01/2020,10-11804,675,Shelleys Taxis Ltd
Nottinghamshire County Council,1111/1001,Children and Young People,CYP,Transport Related,CCA,13/01/2020,10-11806,1680,Shelleys Taxis Ltd
Nottinghamshire County Council,1111/1001,Children and Young People,CYP,Transport Related,CCA,13/01/2020,10-11807,"1,560.00",Shelleys Taxis Ltd
Nottinghamshire County Council,1111/1001,Children and Young People,CYP,Transport Related,CCA,13/01/2020,10-11808,1308,Shelleys Taxis Ltd
Nottinghamshire County Council,1111/1001,Children and Young People,CYP,Transport Related,CCA,13/01/2020,10-11809,"1,176.00",Shelleys Taxis Ltd
Nottinghamshire County Council,1111/1001,Children and Young People,CYP,Transport Related,CCA,13/01/2020,10-11810,2146.95,BN Gibson Ltd
Nottinghamshire County Council,1111/1001,Children and Young People,CYP,Transport Related,CCA,13/01/2020,10-11811,"3,116.25",BN Gibson Ltd
Nottinghamshire County Council,1111/1001,Children and Young People,CYP,Transport Related,CCA,13/01/2020,10-11812,"2,862.15",BN Gibson Ltd
Nottinghamshire County Council,1111/1001,Children and Young People,CYP,Transport Related,CCA,13/01/2020,10-11813,2472.75,BN Gibson Ltd
Nottinghamshire County Council,1111/1001,Children and Young People,CYP,Transport Related,CCA,13/01/2020,10-11814,1818.45,BN Gibson Ltd
Nottinghamshire County Council,1111/1001,Children and Young People,CYP,Transport Related,CCA,13/01/2020,10-11815,"2,167.50",BN Gibson Ltd
Nottinghamshire County Council,1111/1001,Children and Young People,CYP,Transport Related,CCA,13/01/2020,10-11816,"1,921.05",BN Gibson Ltd
Nottinghamshire County Council,1111/1001,Children and Young People,CYP,Transport Related,CCA,13/01/2020,10-11817,"2,655.10",BN Gibson Ltd
Nottinghamshire County Council,1111/1001,Children and Young People,CYP,Transport Related,CCA,13/01/2020,10-11818,"1,807.95",BN Gibson Ltd
Nottinghamshire County Council,1111/1001,Children and Young People,CYP,Transport Related,CCA,13/01/2020,10-11819,1921.05,BN Gibson Ltd
Nottinghamshire County Council,1111/1001,Children and Young People,CYP,Transport Related,CCA,13/01/2020,10-11820,"1,776.90",BN Gibson Ltd
Nottinghamshire County Council,1111/1001,Children and Young People,CYP,Transport Related,CCA,13/01/2020,10-11821,1663.95,BN Gibson Ltd
Nottinghamshire County Council,1111/1001,Children and Young People,CYP,Transport Related,CCA,13/01/2020,10-11822,2383.8,BN Gibson Ltd
Nottinghamshire County Council,1111/1001,Children and Young People,CYP,Transport Related,CCA,13/01/2020,10-11823,"2,291.40",BN Gibson Ltd
Nottinghamshire County Council,1111/1001,Children and Young People,CYP,Transport Related,CCA,13/01/2020,10-11825,"2,395.56",BN Gibson Ltd
Nottinghamshire County Council,1111/1001,Children and Young People,CYP,Transport Related,CCA,13/01/2020,10-11827,2303.25,BN Gibson Ltd
Nottinghamshire County Council,1111/1001,Children and Young People,CYP,Transport Related,CCA,13/01/2020,10-11828,"2,055.00",D G Private Hire Ltd
Nottinghamshire County Council,1111/1001,Children and Young People,CYP,Transport Related,CCA,13/01/2020,10-11829,900,D G Private Hire Ltd
Nottinghamshire County Council,1111/1001,Children and Young People,CYP,Transport Related,CCA,13/01/2020,10-11830,900,D G Private Hire Ltd
Nottinghamshire County Council,1111/1001,Children and Young People,CYP,Transport Related,CCA,13/01/2020,10-11836,900.00,Abacus Cars
Nottinghamshire County Council,1111/1001,Children and Young People,CYP,Transport Related,CCA,13/01/2020,10-11842,1885,Abacus Cars
Nottinghamshire County Council,1111/1001,Children and Young People,CYP,Transport Related,CCA,13/01/2020,10-11843,600.00,Abacus Cars
Nottinghamshire County Council,1111/1001,Children and Young People,CYP,Transport Related,CCA,13/01/2020,10-11844,"1,092.60",Abacus Cars
Nottinghamshire County Council,1111/1001,Children and Young People,CYP,Transport Related,CCA,13/01/2020,10-11846,"1,695.60",Abacus Cars
Nottinghamshire County Council,1111/1001,Children and Young People,CYP,Transport Related,CCA,13/01/2020,10-11848,"1,380.00",Abacus Cars
Nottinghamshire County Council,1111/1001,Children and Young People,CYP,Transport Related,CCA,13/01/2020,10-11849,800.05,Abacus Cars
Nottinghamshire County Council,1111/1001,Children and Young People,CYP,Transport Related,CCA,13/01/2020,10-11851,1500,Abacus Cars
Nottinghamshire County Council,1111/1001,Children and Young People,CYP,Transport Related,CCA,13/01/2020,10-11852,1650,Abacus Cars
Nottinghamshire County Council,1111/1001,Children and Young People,CYP,Transport Related,CCA,13/01/2020,10-11853,1530,Abacus Cars
Nottinghamshire County Council,1111/1001,Children and Young People,CYP,Transport Related,CCA,13/01/2020,10-11854,"1,950.00",Abacus Cars
Nottinghamshire County Council,1111/1001,Children and Young People,CYP,Transport Related,CCA,13/01/2020,10-11855,2121,Abacus Cars
Nottinghamshire County Council,1111/1001,Children and Young People,CYP,Transport Related,CCA,13/01/2020,10-11859,"3,962.00",Gem Mini Travel Ltd
Nottinghamshire County Council,1111/1001,Children and Young People,CYP,Transport Related,CCA,13/01/2020,10-11860,3517,Gem Mini Travel Ltd
Nottinghamshire County Council,1111/1001,Children and Young People,CYP,Transport Related,CCA,13/01/2020,10-11861,2850,Gem Mini Travel Ltd
Nottinghamshire County Council,1111/1001,Children and Young People,CYP,Transport Related,CCA,13/01/2020,10-11862,2774,Gem Mini Travel Ltd
Nottinghamshire County Council,1111/1001,Children and Young People,CYP,Transport Related,CCA,13/01/2020,10-11863,"3,781.00",Gem Mini Travel Ltd
Nottinghamshire County Council,1111/1001,Children and Young People,CYP,Transport Related,CCA,13/01/2020,10-11864,2520,JB Tours Watnall Ltd
Nottinghamshire County Council,1111/1001,Children and Young People,CYP,Transport Related,CCA,13/01/2020,10-11865,"2,580.00",JB Tours Watnall Ltd
Nottinghamshire County Council,1111/1001,Children and Young People,CYP,Transport Related,CCA,13/01/2020,10-11866,"2,352.50",JB Tours Watnall Ltd
Nottinghamshire County Council,1111/1001,Children and Young People,CYP,Transport Related,CCA,13/01/2020,10-11869,"3,298.40",Stagecoach Services Ltd
Nottinghamshire County Council,1111/1001,Children and Young People,CYP,Transport Related,CCA,13/01/2020,10-11870,2353.33,Stagecoach Services Ltd
Nottinghamshire County Council,1111/1001,Children and Young People,CYP,Transport Related,CCA,13/01/2020,10-11872,4008.43,Stagecoach Services Ltd
Nottinghamshire County Council,1111/1001,Children and Young People,CYP,Transport Related,CCA,13/01/2020,10-11877,2624,Tiger European Uk Ltd
Nottinghamshire County Council,1111/1001,Children and Young People,CYP,Transport Related,CCA,13/01/2020,10-11878,2247.9,Tiger European Uk Ltd
Nottinghamshire County Council,1111/1001,Children and Young People,CYP,Transport Related,CCA,13/01/2020,10-11879,"2,450.00",Tiger European Uk Ltd
Nottinghamshire County Council,1111/1001,Children and Young People,CYP,Transport Related,CCA,13/01/2020,10-11880,2080,Tiger European Uk Ltd
Nottinghamshire County Council,1111/1001,Children and Young People,CYP,Transport Related,CCA,13/01/2020,10-11881,"1,862.00",Tiger European Uk Ltd
Nottinghamshire County Council,1111/1001,Children and Young People,CYP,Transport Related,CCA,13/01/2020,10-11882,4485,Tiger European Uk Ltd
Nottinghamshire County Council,1111/1001,Children and Young People,CYP,Transport Related,CCA,13/01/2020,10-11883,"2,535.00",Tiger European Uk Ltd
Nottinghamshire County Council,1111/1001,Children and Young People,CYP,Transport Related,CCA,13/01/2020,10-11884,"2,405.00",Tiger European Uk Ltd
Nottinghamshire County Council,1111/1001,Children and Young People,CYP,Transport Related,CCA,13/01/2020,10-11885,4355,Tiger European Uk Ltd
Nottinghamshire County Council,1111/1001,Children and Young People,CYP,Transport Related,CCA,13/01/2020,10-11886,"2,888.00",K Matthews Travel
Nottinghamshire County Council,1111/1001,Children and Young People,CYP,Transport Related,CCA,13/01/2020,10-11887,"2,627.25",K Matthews Travel
Nottinghamshire County Council,1111/1001,Children and Young People,CYP,Transport Related,CCA,13/01/2020,10-11888,2472.75,K Matthews Travel
Nottinghamshire County Council,1111/1001,Children and Young People,CYP,Transport Related,CCA,13/01/2020,10-11889,2280,K Matthews Travel
Nottinghamshire County Council,1111/1001,Children and Young People,CYP,Transport Related,CCA,13/01/2020,10-11891,1867.5,Ace Cars & Minibuses Ltd
Nottinghamshire County Council,1111/1001,Children and Young People,CYP,Transport Related,CCA,13/01/2020,10-11892,1792.5,Ace Cars & Minibuses Ltd
Nottinghamshire County Council,1111/1001,Children and Young People,CYP,Transport Related,CCA,13/01/2020,10-11893,"1,962.00",Ace Cars & Minibuses Ltd
Nottinghamshire County Council,1111/1001,Children and Young People,CYP,Transport Related,CCA,13/01/2020,10-11894,"1,867.50",Ace Cars & Minibuses Ltd
Nottinghamshire County Council,1111/1001,Children and Young People,CYP,Transport Related,CCA,13/01/2020,10-11895,"1,942.50",Ace Cars & Minibuses Ltd
Nottinghamshire County Council,1111/1001,Children and Young People,CYP,Transport Related,CCA,13/01/2020,10-11896,"1,792.50",Ace Cars & Minibuses Ltd
Nottinghamshire County Council,1111/1001,Children and Young People,CYP,Transport Related,CCA,13/01/2020,10-11897,"1,826.00",Ace Cars & Minibuses Ltd
Nottinghamshire County Council,1111/1001,Children and Young People,CYP,Transport Related,CCA,13/01/2020,10-11899,"1,810.50",Ace Cars & Minibuses Ltd
Nottinghamshire County Council,1111/1001,Children and Young People,CYP,Transport Related,CCA,13/01/2020,10-11900,"2,092.50",Ace Cars & Minibuses Ltd
Nottinghamshire County Council,1111/1001,Children and Young People,CYP,Transport Related,CCA,13/01/2020,10-11901,"1,255.50",Ace Cars & Minibuses Ltd
Nottinghamshire County Council,1111/1001,Children and Young People,CYP,Transport Related,CCA,13/01/2020,10-11902,2024.1,Ace Cars & Minibuses Ltd
Nottinghamshire County Council,1111/1001,Children and Young People,CYP,Transport Related,CCA,13/01/2020,10-11903,1674,Ace Cars & Minibuses Ltd
Nottinghamshire County Council,1111/1001,Children and Young People,CYP,Transport Related,CCA,13/01/2020,10-11904,"1,165.50",Ace Cars & Minibuses Ltd
Nottinghamshire County Council,1111/1001,Children and Young People,CYP,Transport Related,CCA,13/01/2020,10-11905,1135.25,Ace Cars & Minibuses Ltd
Nottinghamshire County Council,1111/1001,Children and Young People,CYP,Transport Related,CCA,13/01/2020,10-11907,2242.5,Ace Cars & Minibuses Ltd
Nottinghamshire County Council,1111/1001,Children and Young People,CYP,Transport Related,CCA,13/01/2020,10-11908,2390,Ace Cars & Minibuses Ltd
Nottinghamshire County Council,1111/1001,Children and Young People,CYP,Transport Related,CCA,13/01/2020,10-11909,2390,Ace Cars & Minibuses Ltd
Nottinghamshire County Council,1111/1001,Children and Young People,CYP,Transport Related,CCA,13/01/2020,10-11910,547.5,Ace Cars & Minibuses Ltd
Nottinghamshire County Council,1111/1001,Children and Young People,CYP,Transport Related,CCA,13/01/2020,10-11911,2542.5,Ace Cars & Minibuses Ltd
Nottinghamshire County Council,1111/1001,Children and Young People,CYP,Transport Related,CCA,13/01/2020,10-11912,3590,Ace Cars & Minibuses Ltd
Nottinghamshire County Council,1111/1001,Children and Young People,CYP,Transport Related,CCA,13/01/2020,10-11913,2349.75,L A Travel
Nottinghamshire County Council,1111/1001,Children and Young People,CYP,Transport Related,CCA,13/01/2020,10-11914,"1,380.50",Nottingham Coaches
Nottinghamshire County Council,1111/1001,Children and Young People,CYP,Transport Related,CCA,13/01/2020,10-11915,1488,A Travel
Nottinghamshire County Council,1111/1001,Children and Young People,CYP,Transport Related,CCA,13/01/2020,10-11916,1642.5,Rushcliffe Travel Ltd
Nottinghamshire County Council,1111/1001,Children and Young People,CYP,Transport Related,CCA,13/01/2020,10-11917,2896,Rushcliffe Travel Ltd
Nottinghamshire County Council,1111/1001,Children and Young People,CYP,Transport Related,CCA,13/01/2020,10-11918,"2,242.50",Rushcliffe Travel Ltd
Nottinghamshire County Council,1111/1001,Children and Young People,CYP,Transport Related,CCA,13/01/2020,10-11919,"1,500.00",Rushcliffe Travel Ltd
Nottinghamshire County Council,1111/1001,Children and Young People,CYP,Transport Related,CCA,13/01/2020,10-11920,"1,792.50",Rushcliffe Travel Ltd
Nottinghamshire County Council,1111/1001,Children and Young People,CYP,Transport Related,CCA,13/01/2020,10-11921,2571,Rushcliffe Travel Ltd
Nottinghamshire County Council,1111/1001,Children and Young People,CYP,Transport Related,CCA,13/01/2020,10-11922,3674,Rushcliffe Travel Ltd
Nottinghamshire County Council,1111/1001,Children and Young People,CYP,Transport Related,CCA,13/01/2020,10-11923,2755.5,Rushcliffe Travel Ltd
Nottinghamshire County Council,1111/1001,Children and Young People,CYP,Transport Related,CCA,13/01/2020,10-11924,2242.5,Rushcliffe Travel Ltd
Nottinghamshire County Council,1111/1001,Children and Young People,CYP,Transport Related,CCA,13/01/2020,10-11925,2175,Rushcliffe Travel Ltd
Nottinghamshire County Council,1111/1001,Children and Young People,CYP,Transport Related,CCA,13/01/2020,10-11926,"2,025.00",Rushcliffe Travel Ltd
Nottinghamshire County Council,1111/1001,Children and Young People,CYP,Transport Related,CCA,13/01/2020,10-11927,"1,725.00",CT4N Ltd
Nottinghamshire County Council,1111/1001,Children and Young People,CYP,Transport Related,CCA,13/01/2020,10-11928,"1,650.00",CT4N Ltd
Nottinghamshire County Council,1111/1001,Children and Young People,CYP,Transport Related,CCA,13/01/2020,10-11929,2400,CT4N Ltd
Nottinghamshire County Council,1111/1001,Children and Young People,CYP,Transport Related,CCA,13/01/2020,10-11931,1666,CT4N Ltd
Nottinghamshire County Council,1111/1001,Children and Young People,CYP,Transport Related,CCA,13/01/2020,10-11933,"1,742.25",CT4N Ltd
Nottinghamshire County Council,1111/1001,Children and Young People,CYP,Transport Related,CCA,13/01/2020,10-11934,612.00,Cathedral Cars Lincoln Ltd
Nottinghamshire County Council,1111/1001,Children and Young People,CYP,Transport Related,CCA,13/01/2020,10-11936,2558,Vectare Ltd
Nottinghamshire County Council,1111/1001,Children and Young People,CYP,Transport Related,CCA,13/01/2020,10-11941,"1,563.30",Southside Cars Ltd
Nottinghamshire County Council,1111/1001,Children and Young People,CYP,Transport Related,CCA,13/01/2020,10-11942,720,Southside Cars Ltd
Nottinghamshire County Council,1111/1001,Children and Young People,CYP,Transport Related,CCA,13/01/2020,10-11943,842.67,Southside Cars Ltd
Nottinghamshire County Council,1111/1001,Children and Young People,CYP,Transport Related,CCA,13/01/2020,10-11944,"1,794.30",Southside Cars Ltd
Nottinghamshire County Council,1111/1001,Children and Young People,CYP,Transport Related,CCA,13/01/2020,10-11945,748,Southside Cars Ltd
Nottinghamshire County Council,1111/1001,Children and Young People,CYP,Transport Related,CCA,13/01/2020,10-11946,928.20,Southside Cars Ltd
Nottinghamshire County Council,1111/1001,Children and Young People,CYP,Transport Related,CCA,13/01/2020,10-11947,912,6 Five 2s
Nottinghamshire County Council,1111/1001,Children and Young People,CYP,Transport Related,CCA,13/01/2020,10-11949,757.8,6 Five 2s
Nottinghamshire County Council,1111/1001,Children and Young People,CYP,Transport Related,CCA,13/01/2020,10-11950,649.6,6 Five 2s
Nottinghamshire County Council,1111/1001,Children and Young People,CYP,Transport Related,CCA,13/01/2020,10-11951,870.00,D G Private Hire Ltd
Nottinghamshire County Council,1111/1001,Children and Young People,CYP,Transport Related,CCA,13/01/2020,10-11952,900.00,D G Private Hire Ltd
Nottinghamshire County Council,1111/1001,Children and Young People,CYP,Transport Related,CCA,13/01/2020,10-11953,1036,Stagecoach Services Ltd
Nottinghamshire County Council,1111/1001,Children and Young People,CYP,Transport Related,CCA,13/01/2020,10-11954,3611.79,Stagecoach Services Ltd
Nottinghamshire County Council,1111/1001,Children and Young People,CYP,Transport Related,CCA,13/01/2020,10-11962,4035,Stagecoach Services Ltd
Nottinghamshire County Council,1111/1001,Children and Young People,CYP,Transport Related,CCA,13/01/2020,10-11964,4248,Stagecoach Services Ltd
Nottinghamshire County Council,1111/1001,Children and Young People,CYP,Transport Related,CCA,13/01/2020,10-11970,3026.6,Stagecoach Services Ltd
Nottinghamshire County Council,1111/1001,Children and Young People,CYP,Transport Related,CCA,13/01/2020,10-11971,2275,Stagecoach Services Ltd
Nottinghamshire County Council,1111/1001,Children and Young People,CYP,Transport Related,CCA,13/01/2020,10-11972,"3,367.10",Stagecoach Services Ltd
Nottinghamshire County Council,1111/1001,Children and Young People,CYP,Transport Related,CCA,13/01/2020,10-11975,1882.14,Stagecoach Services Ltd
Nottinghamshire County Council,1111/1001,Children and Young People,CYP,Transport Related,CCA,13/01/2020,10-11977,"3,735.00",Stagecoach Services Ltd
Nottinghamshire County Council,1111/1001,Children and Young People,CYP,Transport Related,CCA,13/01/2020,10-11978,3731.6,Stagecoach Services Ltd
Nottinghamshire County Council,1111/1001,Children and Young People,CYP,Transport Related,CCA,13/01/2020,10-11979,1661.7,Stagecoach Services Ltd
Nottinghamshire County Council,1111/1001,Children and Young People,CYP,Transport Related,CCA,13/01/2020,10-11985,3525,Stagecoach Services Ltd
Nottinghamshire County Council,1111/1001,Children and Young People,CYP,Transport Related,CCA,13/01/2020,10-11987,"11,542.50",Travel Wright Ltd
Nottinghamshire County Council,1111/1001,Children and Young People,CYP,Transport Related,CCA,13/01/2020,10-11988,"1,015.50",Travel Wright Ltd
Nottinghamshire County Council,1111/1001,Children and Young People,CYP,Transport Related,CCA,13/01/2020,10-11989,540,Travel Wright Ltd
Nottinghamshire County Council,1111/1001,Children and Young People,CYP,Transport Related,CCA,13/01/2020,10-11991,658,Nottingham Cars Ltd
Nottinghamshire County Council,1111/1001,Children and Young People,CYP,Transport Related,CCA,13/01/2020,10-11993,696,Nottingham Cars Ltd
Nottinghamshire County Council,1111/1001,Children and Young People,CYP,Transport Related,CCA,13/01/2020,10-11994,"1,499.85",Reliable Cars Ltd
Nottinghamshire County Council,1111/1001,Children and Young People,CYP,Transport Related,CCA,13/01/2020,10-11995,972.00,Reliable Cars Ltd
Nottinghamshire County Council,1111/1001,Children and Young People,CYP,Transport Related,CCA,14/01/2020,10-12152,4996.33,Stagecoach Services Ltd
Nottinghamshire County Council,1111/1001,Children and Young People,CYP,Transport Related,CCA,15/01/2020,10-12175,"1,120.00",Alert Cars Ltd
Nottinghamshire County Council,1111/1001,Children and Young People,CYP,Transport Related,CCA,15/01/2020,10-12176,1530,Alert Cars Ltd
Nottinghamshire County Council,1111/1001,Children and Young People,CYP,Transport Related,CCA,15/01/2020,10-12177,976.92,Alert Cars Ltd
Nottinghamshire County Council,1111/1001,Children and Young People,CYP,Transport Related,CCA,15/01/2020,10-12178,750,6 Five 2s
Nottinghamshire County Council,1111/1001,Children and Young People,CYP,Transport Related,CCA,15/01/2020,10-12179,525.00,6 Five 2s
Nottinghamshire County Council,1111/1001,Children and Young People,CYP,Transport Related,CCA,15/01/2020,10-12181,510,6 Five 2s
Nottinghamshire County Council,1111/1001,Children and Young People,CYP,Transport Related,CCA,15/01/2020,10-12182,"1,439.25",6 Five 2s
Nottinghamshire County Council,1111/1001,Children and Young People,CYP,Transport Related,CCA,15/01/2020,10-12183,"1,351.35",6 Five 2s
Nottinghamshire County Council,1111/1001,Children and Young People,CYP,Transport Related,CCA,15/01/2020,10-12184,"1,666.50",6 Five 2s
Nottinghamshire County Council,1111/1001,Children and Young People,CYP,Transport Related,CCA,15/01/2020,10-12185,"1,410.00",6 Five 2s
Nottinghamshire County Council,1111/1001,Children and Young People,CYP,Transport Related,CCA,15/01/2020,10-12186,684.00,6 Five 2s
Nottinghamshire County Council,1111/1001,Children and Young People,CYP,Transport Related,CCA,15/01/2020,10-12187,900,6 Five 2s
Nottinghamshire County Council,1111/1001,Children and Young People,CYP,Transport Related,CCA,15/01/2020,10-12188,"2,169.22",Johnson Bros Tours Ltd
Nottinghamshire County Council,1111/1001,Children and Young People,CYP,Transport Related,CCA,15/01/2020,10-12189,455.63,200 Cars Ltd
Nottinghamshire County Council,1111/1001,Children and Young People,CYP,Transport Related,CCA,15/01/2020,10-12191,"4,900.00",Gem Mini Travel Ltd
Nottinghamshire County Council,1111/1001,Children and Young People,CYP,Transport Related,CCA,15/01/2020,10-12192,1623.12,Silverdale Tours Nottm Ltd
Nottinghamshire County Council,1111/1001,Children and Young People,CYP,Transport Related,CCA,15/01/2020,10-12193,"2,590.00",Stagecoach Services Ltd
Nottinghamshire County Council,1111/1001,Children and Young People,CYP,Transport Related,CCA,15/01/2020,10-12194,547.00,Travel Wright Ltd
Nottinghamshire County Council,1111/1001,Children and Young People,CYP,Transport Related,CCA,15/01/2020,10-12195,1980,Freeway Coaches Ltd
Nottinghamshire County Council,1111/1001,Children and Young People,CYP,Transport Related,CCA,15/01/2020,10-12196,3125,Freeway Coaches Ltd
Nottinghamshire County Council,1111/1001,Children and Young People,CYP,Transport Related,CCA,15/01/2020,10-12197,910,Nottingham Coaches
Nottinghamshire County Council,1111/1001,Children and Young People,CYP,Transport Related,CCA,15/01/2020,10-12198,274.75,Shiny Sky Ltd T/A Arrow Cars
Nottinghamshire County Council,1111/1001,Children and Young People,CYP,Transport Related,CCA,15/01/2020,10-12200,1601.6,SM Travel Yorkshire Ltd
Nottinghamshire County Council,1111/1001,Children and Young People,CYP,Transport Related,CCA,20/01/2020,10-13106,"1,800.00",All Wayz Travel
Nottinghamshire County Council,1111/1001,Children and Young People,CYP,Transport Related,CCA,20/01/2020,10-13107,"1,950.00",All Wayz Travel
Nottinghamshire County Council,1111/1001,Children and Young People,CYP,Transport Related,CCA,20/01/2020,10-13108,1500,All Wayz Travel
Nottinghamshire County Council,1111/1001,Children and Young People,CYP,Transport Related,CCA,20/01/2020,10-13109,1969.5,All Wayz Travel
Nottinghamshire County Council,1111/1001,Children and Young People,CYP,Transport Related,CCA,20/01/2020,10-13112,600.00,Freeway Coaches Ltd
Nottinghamshire County Council,1111/1001,Children and Young People,CYP,Transport Related,CCA,20/01/2020,10-13113,24318.9,Ace Cars & Minibuses Ltd
Nottinghamshire County Council,1111/1001,Children and Young People,CYP,Transport Related,CCA,20/01/2020,10-13114,"2,460.00",Ace Cars & Minibuses Ltd
Nottinghamshire County Council,1111/1001,Children and Young People,CYP,Transport Related,CCA,20/01/2020,10-13115,1369.5,Ace Cars & Minibuses Ltd
Nottinghamshire County Council,1111/1001,Children and Young People,CYP,Transport Related,CCA,20/01/2020,10-13116,1792.5,Ace Cars & Minibuses Ltd
Nottinghamshire County Council,1111/1001,Children and Young People,CYP,Transport Related,CCA,20/01/2020,10-13117,896.25,Ace Cars & Minibuses Ltd
Nottinghamshire County Council,1111/1001,Children and Young People,CYP,Transport Related,CCA,20/01/2020,10-17011,"2,849.91",Esp Systex Ltd
Nottinghamshire County Council,1111/1001,Children and Young People,CYP,Transport Related,CCA,20/01/2020,10-17012,530.13,Esp Systex Ltd
Nottinghamshire County Council,1111/1001,Children and Young People,CYP,Transport Related,CCA,21/01/2020,10-15274,787.50,Bridges Transport Ltd
Nottinghamshire County Council,1111/1001,Children and Young People,CYP,Transport Related,CCA,21/01/2020,10-15275,1255,D G Private Hire Ltd
Nottinghamshire County Council,1111/1001,Children and Young People,CYP,Transport Related,CCA,21/01/2020,10-15277,620.00,Galaxy Cabs Ltd
Nottinghamshire County Council,1111/1001,Children and Young People,CYP,Transport Related,CCA,21/01/2020,10-15282,715,Abacus Cars
Nottinghamshire County Council,1111/1001,Children and Young People,CYP,Transport Related,CCA,22/01/2020,10-15436,"1,068.00",Southside Cars Ltd
Nottinghamshire County Council,1111/1001,Children and Young People,CYP,Transport Related,CCA,22/01/2020,10-15441,1221.93,Southside Cars Ltd
Nottinghamshire County Council,1111/1001,Children and Young People,CYP,Transport Related,CCA,22/01/2020,10-15443,2340,Southside Cars Ltd
Nottinghamshire County Council,1111/1001,Children and Young People,CYP,Transport Related,CCA,22/01/2020,10-15444,"1,755.00",Southside Cars Ltd
Nottinghamshire County Council,1111/1001,Children and Young People,CYP,Transport Related,CCA,22/01/2020,10-15445,"1,012.00",200 Cars Ltd
Nottinghamshire County Council,1111/1001,Children and Young People,CYP,Transport Related,CCA,22/01/2020,10-15456,"2,365.50",Ace Cars & Minibuses Ltd
Nottinghamshire County Council,1111/1001,Children and Young People,CYP,Transport Related,CCA,22/01/2020,10-15457,"1,867.50",Ace Cars & Minibuses Ltd
Nottinghamshire County Council,1111/1001,Children and Young People,CYP,Transport Related,CCA,22/01/2020,10-15458,1642.5,Ace Cars & Minibuses Ltd
Nottinghamshire County Council,1111/1001,Children and Young People,CYP,Transport Related,CCA,22/01/2020,10-15459,"1,673.00",Ace Cars & Minibuses Ltd
Nottinghamshire County Council,1111/1001,Children and Young People,CYP,Transport Related,CCA,22/01/2020,10-15460,2692.5,Ace Cars & Minibuses Ltd
Nottinghamshire County Council,1111/1001,Children and Young People,CYP,Transport Related,CCA,23/01/2020,10-15597,"10,037.51",Via East Midlands Ltd
Nottinghamshire County Council,1111/1001,Children and Young People,CYP,Transport Related,CCA,23/01/2020,10-15610,1815.3,Arrow Specialised Transport Ltd
Nottinghamshire County Council,1111/1001,Children and Young People,CYP,Transport Related,CCA,23/01/2020,10-15611,1980,Arrow Specialised Transport Ltd
Nottinghamshire County Council,1111/1001,Children and Young People,CYP,Transport Related,CCA,23/01/2020,10-15612,"1,843.20",Arrow Specialised Transport Ltd
Nottinghamshire County Council,1111/1001,Children and Young People,CYP,Transport Related,CCA,23/01/2020,10-15614,750,Fair Fares Ltd
Nottinghamshire County Council,1111/1001,Children and Young People,CYP,Transport Related,CCA,27/01/2020,10-15950,"2,025.00",Rushcliffe Travel Ltd
Nottinghamshire County Council,1111/1001,Children and Young People,CYP,Transport Related,CCA,27/01/2020,10-15951,804,Forest Cars
Nottinghamshire County Council,1111/1001,Children and Young People,CYP,Transport Related,CCA,28/01/2020,10-16080,1440,ADF Cars Ltd
Nottinghamshire County Council,1111/1001,Children and Young People,CYP,Transport Related,CCA,28/01/2020,10-16081,"2,721.12",Forest Cars
Nottinghamshire County Council,1111/1001,Children and Young People,CYP,Transport Related,CCA,30/01/2020,10-11547,1852.2,Marks Specialised Transport Ltd
Nottinghamshire County Council,1111/1001,Children and Young People,CYP,Transport Related,CDA,06/01/2020,10-10164,4256,Johnson Bros Tours Ltd
Nottinghamshire County Council,1111/1001,Children and Young People,CYP,Transport Related,CDA,06/01/2020,10-10165,"2,181.20",Johnson Bros Tours Ltd
Nottinghamshire County Council,1111/1001,Children and Young People,CYP,Transport Related,CDA,06/01/2020,10-10166,1805,Johnson Bros Tours Ltd
Nottinghamshire County Council,1111/1001,Children and Young People,CYP,Transport Related,CDA,06/01/2020,10-10202,38.18,Arrow Specialised Transport Ltd
Nottinghamshire County Council,1111/1001,Children and Young People,CYP,Transport Related,CDA,06/01/2020,10-10235,"2,625.00",Bridges Transport Ltd
Nottinghamshire County Council,1111/1001,Children and Young People,CYP,Transport Related,CDA,06/01/2020,10-10249,"1,536.00",Ng11 Cars
Nottinghamshire County Council,1111/1001,Children and Young People,CYP,Transport Related,CDA,07/01/2020,10-10413,675.00,Alpha Cars
Nottinghamshire County Council,1111/1001,Children and Young People,CYP,Transport Related,CDA,07/01/2020,10-10434,"2,706.00",AOT Coaches Nottingham LLP
Nottinghamshire County Council,1111/1001,Children and Young People,CYP,Transport Related,CDA,07/01/2020,10-10449,4368,Marshalls Of Sutton On Trent Ltd
Nottinghamshire County Council,1111/1001,Children and Young People,CYP,Transport Related,CDA,07/01/2020,10-10450,"2,100.00",Nottingham Minibuses & Coaches
Nottinghamshire County Council,1111/1001,Children and Young People,CYP,Transport Related,CDA,07/01/2020,10-10451,1820,Nottingham Minibuses & Coaches
Nottinghamshire County Council,1111/1001,Children and Young People,CYP,Transport Related,CDA,07/01/2020,10-10453,1272.6,Nottingham Minibuses & Coaches
Nottinghamshire County Council,1111/1001,Children and Young People,CYP,Transport Related,CDA,07/01/2020,10-10454,"1,170.00",Nottingham Minibuses & Coaches
Nottinghamshire County Council,1111/1001,Children and Young People,CYP,Transport Related,CDA,07/01/2020,10-10483,1087.5,Sean's Taxi Services
Nottinghamshire County Council,1111/1001,Children and Young People,CYP,Transport Related,CDA,07/01/2020,10-10490,193.03,Millennium Travel (Mansfield) Ltd
Nottinghamshire County Council,1111/1001,Children and Young People,CYP,Transport Related,CDA,08/01/2020,10-11471,630.00,200 Cars Ltd
Nottinghamshire County Council,1111/1001,Children and Young People,CYP,Transport Related,CDA,08/01/2020,10-11483,224.25,Arrow Specialised Transport Ltd
Nottinghamshire County Council,1111/1001,Children and Young People,CYP,Transport Related,CDA,08/01/2020,10-11496,"1,530.90",Galaxy Cabs Ltd
Nottinghamshire County Council,1111/1001,Children and Young People,CYP,Transport Related,CDA,08/01/2020,10-11502,549.00,Galaxy Cabs Ltd
Nottinghamshire County Council,1111/1001,Children and Young People,CYP,Transport Related,CDA,08/01/2020,10-11527,"1,384.60",Nottingham Minibuses & Coaches
Nottinghamshire County Council,1111/1001,Children and Young People,CYP,Transport Related,CDA,08/01/2020,10-11528,1330,Nottingham Minibuses & Coaches
Nottinghamshire County Council,1111/1001,Children and Young People,CYP,Transport Related,CDA,08/01/2020,10-11529,1750,Nottingham Minibuses & Coaches
Nottinghamshire County Council,1111/1001,Children and Young People,CYP,Transport Related,CDA,08/01/2020,10-11530,1614.6,Nottingham Minibuses & Coaches
Nottinghamshire County Council,1111/1001,Children and Young People,CYP,Transport Related,CDA,08/01/2020,10-11531,"8,418.00",Nottingham Minibuses & Coaches
Nottinghamshire County Council,1111/1001,Children and Young People,CYP,Transport Related,CDA,08/01/2020,10-11537,9900,Silverdale Tours Nottm Ltd
Nottinghamshire County Council,1111/1001,Children and Young People,CYP,Transport Related,CDA,09/01/2020,10-11584,1500,Taxicover Uk Ltd
Nottinghamshire County Council,1111/1001,Children and Young People,CYP,Transport Related,CDA,09/01/2020,10-11653,"5,136.00",Paul S Winson Coaches
Nottinghamshire County Council,1111/1001,Children and Young People,CYP,Transport Related,CDA,09/01/2020,10-11654,9270,C W Moxon Ltd
Nottinghamshire County Council,1111/1001,Children and Young People,CYP,Transport Related,CDA,09/01/2020,10-11655,3375,C W Moxon Ltd
Nottinghamshire County Council,1111/1001,Children and Young People,CYP,Transport Related,CDA,09/01/2020,10-11657,1890,C W Moxon Ltd
Nottinghamshire County Council,1111/1001,Children and Young People,CYP,Transport Related,CDA,09/01/2020,10-11682,868.12,Forest Cars
Nottinghamshire County Council,1111/1001,Children and Young People,CYP,Transport Related,CDA,09/01/2020,10-11707,566.17,Forest Cars
Nottinghamshire County Council,1111/1001,Children and Young People,CYP,Transport Related,CDA,09/01/2020,10-11731,1473.23,SM Travel Yorkshire Ltd
Nottinghamshire County Council,1111/1001,Children and Young People,CYP,Transport Related,CDA,13/01/2020,10-11780,696,Southside Cars Ltd
Nottinghamshire County Council,1111/1001,Children and Young People,CYP,Transport Related,CDA,13/01/2020,10-11793,3360,Johnson Bros Tours Ltd
Nottinghamshire County Council,1111/1001,Children and Young People,CYP,Transport Related,CDA,13/01/2020,10-11794,1722,Johnson Bros Tours Ltd
Nottinghamshire County Council,1111/1001,Children and Young People,CYP,Transport Related,CDA,13/01/2020,10-11795,1425,Johnson Bros Tours Ltd
Nottinghamshire County Council,1111/1001,Children and Young People,CYP,Transport Related,CDA,13/01/2020,10-11838,616,Abacus Cars
Nottinghamshire County Council,1111/1001,Children and Young People,CYP,Transport Related,CDA,13/01/2020,10-11875,1312.5,Tiger European Uk Ltd
Nottinghamshire County Council,1111/1001,Children and Young People,CYP,Transport Related,CDA,13/01/2020,10-11876,2212.5,Tiger European Uk Ltd
Nottinghamshire County Council,1111/1001,Children and Young People,CYP,Transport Related,CDA,13/01/2020,10-11905,1135.25,Ace Cars & Minibuses Ltd
Nottinghamshire County Council,1111/1001,Children and Young People,CYP,Transport Related,CDA,13/01/2020,10-11940,1380,Southside Cars Ltd
Nottinghamshire County Council,1111/1001,Children and Young People,CYP,Transport Related,CDA,15/01/2020,10-12189,455.62,200 Cars Ltd
Nottinghamshire County Council,1111/1001,Children and Young People,CYP,Transport Related,CDA,15/01/2020,10-12198,274.75,Shiny Sky Ltd T/A Arrow Cars
Nottinghamshire County Council,1111/1001,Children and Young People,CYP,Transport Related,CDA,20/01/2020,10-13117,896.25,Ace Cars & Minibuses Ltd
Nottinghamshire County Council,1111/1001,Children and Young People,CYP,Transport Related,CDA,23/01/2020,10-15613,2108,Shelleys Taxis Ltd
Nottinghamshire County Council,1111/1001,Children and Young People,CYP,Transport Related,CDA,24/01/2020,10-17170,543.75,Quayside Childcare Ltd
Nottinghamshire County Council,1111/1001,Children and Young People,CYP,Transport Related,CDA,28/01/2020,10-17071,2100,Quayside Childcare Ltd
Nottinghamshire County Council,1111/1001,Children and Young People,CYP,Transport Related,CDA,31/01/2020,10-16489,514.00,[Redacted]
Nottinghamshire County Council,1111/1001,Children and Young People,CYP,Transport Related,CEA,03/01/2020,10-10062,"5,937.99",Reed Employment Plc
Nottinghamshire County Council,1111/1001,Children and Young People,CYP,Transport Related,CEA,10/01/2020,10-11562,"2,053.24",Reed Employment Plc
Nottinghamshire County Council,1111/1001,Children and Young People,CYP,Transport Related,CEA,13/01/2020,10-11762,29.90,Via East Midlands Ltd
Nottinghamshire County Council,1111/1001,Children and Young People,CYP,Transport Related,CEA,17/01/2020,10-11365,1770.58,Reed Employment Plc
Nottinghamshire County Council,1111/1001,Children and Young People,CYP,Transport Related,CEA,21/01/2020,10-13122,24740.13,Via East Midlands Ltd
Nottinghamshire County Council,1111/1001,Children and Young People,CYP,Transport Related,CEA,24/01/2020,10-12286,"2,935.32",Reed Employment Plc
Nottinghamshire County Council,1111/1001,Children and Young People,CYP,Transport Related,CEA,31/01/2020,10-15361,"3,179.04",Reed Employment Plc
Nottinghamshire County Council,1111/1001,Children and Young People,CYP,Supplies & Services,DDA,22/01/2020,10-17228,534.76,Baker Ross Ltd
Nottinghamshire County Council,1111/1001,Children and Young People,CYP,Supplies & Services,DEA,02/01/2020,10-16662,1050,Sally Eagle Ltd
Nottinghamshire County Council,1111/1001,Children and Young People,CYP,Supplies & Services,DEA,02/01/2020,10-16663,990.00,[Redacted]
Nottinghamshire County Council,1111/1001,Children and Young People,CYP,Supplies & Services,DEA,02/01/2020,10-16668,750,Tiptoes Child Therapy Services Ltd
Nottinghamshire County Council,1111/1001,Children and Young People,CYP,Supplies & Services,DEA,02/01/2020,10-16677,750,[Redacted]
Nottinghamshire County Council,1111/1001,Children and Young People,CYP,Supplies & Services,DEA,03/01/2020,10-16635,770,[Redacted]
Nottinghamshire County Council,1111/1001,Children and Young People,CYP,Supplies & Services,DEA,03/01/2020,10-16643,"1,500.00",[Redacted]
Nottinghamshire County Council,1111/1001,Children and Young People,CYP,Supplies & Services,DEA,03/01/2020,10-16680,"1,080.00",ARC Property Services Partnership L
Nottinghamshire County Council,1111/1001,Children and Young People,CYP,Supplies & Services,DEA,03/01/2020,10-16688,509.53,ARC Property Services Partnership L
Nottinghamshire County Council,1111/1001,Children and Young People,CYP,Supplies & Services,DEA,06/01/2020,10-16727,770.00,Bright Green Learning Ltd
Nottinghamshire County Council,1111/1001,Children and Young People,CYP,Supplies & Services,DEA,06/01/2020,10-16729,2791.17,Childrens Sensory Therapy Ltd
Nottinghamshire County Council,1111/1001,Children and Young People,CYP,Supplies & Services,DEA,06/01/2020,10-16730,2336.33,Childrens Sensory Therapy Ltd
Nottinghamshire County Council,1111/1001,Children and Young People,CYP,Supplies & Services,DEA,06/01/2020,10-16771,900.00,Lotus Therapy Ltd
Nottinghamshire County Council,1111/1001,Children and Young People,CYP,Supplies & Services,DEA,07/01/2020,10-16659,1200,[Redacted]
Nottinghamshire County Council,1111/1001,Children and Young People,CYP,Supplies & Services,DEA,07/01/2020,10-16724,880.00,[Redacted]
Nottinghamshire County Council,1111/1001,Children and Young People,CYP,Supplies & Services,DEA,07/01/2020,10-16735,770,Bright Green Learning Ltd
Nottinghamshire County Council,1111/1001,Children and Young People,CYP,Supplies & Services,DEA,07/01/2020,10-16736,900,[Redacted]
Nottinghamshire County Council,1111/1001,Children and Young People,CYP,Supplies & Services,DEA,07/01/2020,10-16740,2475,Fox Education Service Ltd
Nottinghamshire County Council,1111/1001,Children and Young People,CYP,Supplies & Services,DEA,07/01/2020,10-16784,"3,185.00",Randox Laboratories Ltd T/A Randox
Nottinghamshire County Council,1111/1001,Children and Young People,CYP,Supplies & Services,DEA,08/01/2020,10-16708,550,Sally Eagle Ltd
Nottinghamshire County Council,1111/1001,Children and Young People,CYP,Supplies & Services,DEA,08/01/2020,10-16737,1950,[Redacted]
Nottinghamshire County Council,1111/1001,Children and Young People,CYP,Supplies & Services,DEA,08/01/2020,10-16792,"1,170.00",[Redacted]
Nottinghamshire County Council,1111/1001,Children and Young People,CYP,Supplies & Services,DEA,08/01/2020,10-16815,"2,925.00",Fox Education Service Ltd
Nottinghamshire County Council,1111/1001,Children and Young People,CYP,Supplies & Services,DEA,09/01/2020,10-16854,4156.67,Childrens Sensory Therapy Ltd
Nottinghamshire County Council,1111/1001,Children and Young People,CYP,Supplies & Services,DEA,09/01/2020,10-16856,765,C Brewer T/A Imagine Arts Therapy
Nottinghamshire County Council,1111/1001,Children and Young People,CYP,Supplies & Services,DEA,09/01/2020,10-16857,540.00,Lotus Therapy Ltd
Nottinghamshire County Council,1111/1001,Children and Young People,CYP,Supplies & Services,DEA,10/01/2020,10-16893,"3,600.00",H Daft Consultant in Social Care Lt
Nottinghamshire County Council,1111/1001,Children and Young People,CYP,Supplies & Services,DEA,10/01/2020,10-16894,3661.17,Childrens Sensory Therapy Ltd
Nottinghamshire County Council,1111/1001,Children and Young People,CYP,Supplies & Services,DEA,10/01/2020,10-16895,780.00,C Brewer T/A Imagine Arts Therapy
Nottinghamshire County Council,1111/1001,Children and Young People,CYP,Supplies & Services,DEA,10/01/2020,10-16896,"3,782.33",Childrens Sensory Therapy Ltd
Nottinghamshire County Council,1111/1001,Children and Young People,CYP,Supplies & Services,DEA,10/01/2020,10-16901,1768,Children's Choice Therapy Services
Nottinghamshire County Council,1111/1001,Children and Young People,CYP,Supplies & Services,DEA,10/01/2020,10-16906,"1,039.50",Children's Choice Therapy Services
Nottinghamshire County Council,1111/1001,Children and Young People,CYP,Supplies & Services,DEA,10/01/2020,10-16910,675.00,Heymann Primary School
Nottinghamshire County Council,1111/1001,Children and Young People,CYP,Supplies & Services,DEA,13/01/2020,10-16840,"2,310.00",[Redacted]
Nottinghamshire County Council,1111/1001,Children and Young People,CYP,Supplies & Services,DEA,13/01/2020,10-16944,509.53,ARC Property Services Partnership L
Nottinghamshire County Council,1111/1001,Children and Young People,CYP,Supplies & Services,DEA,14/01/2020,10-16982,6075,Schofield Education
Nottinghamshire County Council,1111/1001,Children and Young People,CYP,Supplies & Services,DEA,14/01/2020,10-16983,3600,[Redacted]
Nottinghamshire County Council,1111/1001,Children and Young People,CYP,Supplies & Services,DEA,15/01/2020,10-17007,10125,[Redacted]
Nottinghamshire County Council,1111/1001,Children and Young People,CYP,Supplies & Services,DEA,16/01/2020,10-17030,600,Marie Strawther Educational Psychol
Nottinghamshire County Council,1111/1001,Children and Young People,CYP,Supplies & Services,DEA,17/01/2020,10-16978,550,Sally Eagle Ltd
Nottinghamshire County Council,1111/1001,Children and Young People,CYP,Supplies & Services,DEA,17/01/2020,10-16979,770,Bright Green Learning Ltd
Nottinghamshire County Council,1111/1001,Children and Young People,CYP,Supplies & Services,DEA,17/01/2020,10-16980,770,Bright Green Learning Ltd
Nottinghamshire County Council,1111/1001,Children and Young People,CYP,Supplies & Services,DEA,17/01/2020,10-17010,770.00,Bright Green Learning Ltd
Nottinghamshire County Council,1111/1001,Children and Young People,CYP,Supplies & Services,DEA,17/01/2020,10-17022,600.00,Mojatu Foundation Ltd
Nottinghamshire County Council,1111/1001,Children and Young People,CYP,Supplies & Services,DEA,17/01/2020,10-17081,"3,825.00",CPD Education Ltd
Nottinghamshire County Council,1111/1001,Children and Young People,CYP,Supplies & Services,DEA,17/01/2020,10-17084,2025,[Redacted]
Nottinghamshire County Council,1111/1001,Children and Young People,CYP,Supplies & Services,DEA,17/01/2020,10-17086,1125,[Redacted]
Nottinghamshire County Council,1111/1001,Children and Young People,CYP,Supplies & Services,DEA,17/01/2020,10-17087,2062,Childrens Sensory Therapy Ltd
Nottinghamshire County Council,1111/1001,Children and Young People,CYP,Supplies & Services,DEA,17/01/2020,10-17090,910,Lotus Therapy Ltd
Nottinghamshire County Council,1111/1001,Children and Young People,CYP,Supplies & Services,DEA,20/01/2020,10-17116,1914.16,Childrens Sensory Therapy Ltd
Nottinghamshire County Council,1111/1001,Children and Young People,CYP,Supplies & Services,DEA,20/01/2020,10-17132,687.50,Children's Choice Therapy Services
Nottinghamshire County Council,1111/1001,Children and Young People,CYP,Supplies & Services,DEA,20/01/2020,10-17134,"1,647.00",Children's Choice Therapy Services
Nottinghamshire County Council,1111/1001,Children and Young People,CYP,Supplies & Services,DEA,20/01/2020,10-17140,3329.9,Family Action Enterprises Ltd
Nottinghamshire County Council,1111/1001,Children and Young People,CYP,Supplies & Services,DEA,20/01/2020,10-17154,555.00,[Redacted]
Nottinghamshire County Council,1111/1001,Children and Young People,CYP,Supplies & Services,DEA,20/01/2020,10-17155,555.00,[Redacted]
Nottinghamshire County Council,1111/1001,Children and Young People,CYP,Supplies & Services,DEA,21/01/2020,10-17184,2000,This Is Focus Ltd
Nottinghamshire County Council,1111/1001,Children and Young People,CYP,Supplies & Services,DEA,22/01/2020,10-17201,525,Silver Fox Training Ltd
Nottinghamshire County Council,1111/1001,Children and Young People,CYP,Supplies & Services,DEA,22/01/2020,10-17225,"1,080.00",ARC Property Services Partnership L
Nottinghamshire County Council,1111/1001,Children and Young People,CYP,Supplies & Services,DEA,22/01/2020,10-17260,750,[Redacted]
Nottinghamshire County Council,1111/1001,Children and Young People,CYP,Supplies & Services,DEA,23/01/2020,10-16841,920.00,Early Intervention Foundation
Nottinghamshire County Council,1111/1001,Children and Young People,CYP,Supplies & Services,DEA,23/01/2020,10-16888,795,Talking Life
Nottinghamshire County Council,1111/1001,Children and Young People,CYP,Supplies & Services,DEA,23/01/2020,10-17075,795.00,Talking Life
Nottinghamshire County Council,1111/1001,Children and Young People,CYP,Supplies & Services,DEA,23/01/2020,10-17166,1430,Omega Solutions
Nottinghamshire County Council,1111/1001,Children and Young People,CYP,Supplies & Services,DEA,23/01/2020,10-17207,595.50,Neptune Lifesaving Club
Nottinghamshire County Council,1111/1001,Children and Young People,CYP,Supplies & Services,DEA,23/01/2020,10-17288,1354.47,[Redacted]
Nottinghamshire County Council,1111/1001,Children and Young People,CYP,Supplies & Services,DEA,24/01/2020,10-16760,675,RMH Associates
Nottinghamshire County Council,1111/1001,Children and Young People,CYP,Supplies & Services,DEA,24/01/2020,10-16761,675.00,RMH Associates
Nottinghamshire County Council,1111/1001,Children and Young People,CYP,Supplies & Services,DEA,24/01/2020,10-16763,675.00,RMH Associates
Nottinghamshire County Council,1111/1001,Children and Young People,CYP,Supplies & Services,DEA,24/01/2020,10-16764,675.00,RMH Associates
Nottinghamshire County Council,1111/1001,Children and Young People,CYP,Supplies & Services,DEA,24/01/2020,10-16769,900.00,RMH Associates
Nottinghamshire County Council,1111/1001,Children and Young People,CYP,Supplies & Services,DEA,24/01/2020,10-16992,"1,350.00",Quinn Education Development (QED) L
Nottinghamshire County Council,1111/1001,Children and Young People,CYP,Supplies & Services,DEA,24/01/2020,10-17334,900,Quinn Education Development (QED) L
Nottinghamshire County Council,1111/1001,Children and Young People,CYP,Supplies & Services,DEA,24/01/2020,10-17347,3863,Ofsted
Nottinghamshire County Council,1111/1001,Children and Young People,CYP,Supplies & Services,DEA,27/01/2020,10-17357,775.00,Lotus Therapy Ltd
Nottinghamshire County Council,1111/1001,Children and Young People,CYP,Supplies & Services,DEA,27/01/2020,10-17378,594.35,ARC Property Services Partnership L
Nottinghamshire County Council,1111/1001,Children and Young People,CYP,Supplies & Services,DEA,28/01/2020,10-17397,1602.75,Carter Brown - The Expert Service L
Nottinghamshire County Council,1111/1001,Children and Young People,CYP,Supplies & Services,DEA,29/01/2020,10-17269,550,Sally Eagle Ltd
Nottinghamshire County Council,1111/1001,Children and Young People,CYP,Supplies & Services,DEA,29/01/2020,10-17335,770.00,Bright Green Learning Ltd
Nottinghamshire County Council,1111/1001,Children and Young People,CYP,Supplies & Services,DEA,29/01/2020,10-17345,660.00,[Redacted]
Nottinghamshire County Council,1111/1001,Children and Young People,CYP,Supplies & Services,DEA,29/01/2020,10-17381,1100,Ellipsis Consultants Ltd
Nottinghamshire County Council,1111/1001,Children and Young People,CYP,Supplies & Services,DEA,29/01/2020,10-17411,3375,[Redacted]
Nottinghamshire County Council,1111/1001,Children and Young People,CYP,Supplies & Services,DEA,30/01/2020,10-16699,"1,045.00",Bright Light Therapy/Elaine M Spenc
Nottinghamshire County Council,1111/1001,Children and Young People,CYP,Supplies & Services,DEA,30/01/2020,10-16774,712.5,Bright Light Therapy/Elaine M Spenc
Nottinghamshire County Council,1111/1001,Children and Young People,CYP,Supplies & Services,DEA,30/01/2020,10-16858,"1,940.00",Tiptoes Child Therapy Services Ltd
Nottinghamshire County Council,1111/1001,Children and Young People,CYP,Supplies & Services,DEA,30/01/2020,10-16860,1940,Tiptoes Child Therapy Services Ltd
Nottinghamshire County Council,1111/1001,Children and Young People,CYP,Supplies & Services,DEA,30/01/2020,10-17002,1581.25,Chris Few Consultancy Ltd
Nottinghamshire County Council,1111/1001,Children and Young People,CYP,Supplies & Services,DEA,30/01/2020,10-17127,670,Jogo Behaviour Support Ltd
Nottinghamshire County Council,1111/1001,Children and Young People,CYP,Supplies & Services,DEA,30/01/2020,10-17150,1005.1,Enhance EHC Ltd
Nottinghamshire County Council,1111/1001,Children and Young People,CYP,Supplies & Services,DEA,30/01/2020,10-17152,555.00,[Redacted]
Nottinghamshire County Council,1111/1001,Children and Young People,CYP,Supplies & Services,DEA,31/01/2020,10-11759,8610.84,Cambridge Education / Mott Macdonal
Nottinghamshire County Council,1111/1001,Children and Young People,CYP,Supplies & Services,DEA,31/01/2020,10-17341,7781,University College London
Nottinghamshire County Council,1111/1001,Children and Young People,CYP,Supplies & Services,DFA,09/01/2020,10-11565,621.11,Lantec Services Ltd
Nottinghamshire County Council,1111/1001,Children and Young People,CYP,Supplies & Services,DFA,22/01/2020,10-16814,1926.32,Reliance High-Tech Ltd
Nottinghamshire County Council,1111/1001,Children and Young People,CYP,Supplies & Services,DHA,07/01/2020,10-10379,"7,379.50",Bronbury Services Ltd
Nottinghamshire County Council,1111/1001,Children and Young People,CYP,Supplies & Services,DHA,17/01/2020,10-17079,"2,835.00",Ofsted
Nottinghamshire County Council,1111/1001,Children and Young People,CYP,Supplies & Services,DKA,08/01/2020,10-11370,500.75,West Midlands Housing Ltd
Nottinghamshire County Council,1111/1001,Children and Young People,CYP,Supplies & Services,DKA,08/01/2020,10-11559,2119.23,Mansfield Property Services LtdT/A
Nottinghamshire County Council,1111/1001,Children and Young People,CYP,Supplies & Services,DKA,09/01/2020,10-11566,619.87,Via East Midlands Ltd
Nottinghamshire County Council,1111/1001,Children and Young People,CYP,Supplies & Services,DKA,13/01/2020,10-11762,3124.27,Via East Midlands Ltd
Nottinghamshire County Council,1111/1001,Children and Young People,CYP,Supplies & Services,DKA,13/01/2020,10-16933,3733.75,Transform Schools (Bassetlaw) Ltd
Nottinghamshire County Council,1111/1001,Children and Young People,CYP,Supplies & Services,DKA,14/01/2020,10-16934,3733.75,Transform Schools (Bassetlaw) Ltd
Nottinghamshire County Council,1111/1001,Children and Young People,CYP,Supplies & Services,DKA,15/01/2020,10-12253,900,[Redacted]
Nottinghamshire County Council,1111/1001,Children and Young People,CYP,Supplies & Services,DKA,15/01/2020,10-12254,500.75,West Midlands Housing Ltd
Nottinghamshire County Council,1111/1001,Children and Young People,CYP,Supplies & Services,DKA,21/01/2020,10-17190,"3,733.77",Transform Schools (Bassetlaw) Ltd
Nottinghamshire County Council,1111/1001,Children and Young People,CYP,Supplies & Services,DKA,22/01/2020,10-15322,500.75,West Midlands Housing Ltd
Nottinghamshire County Council,1111/1001,Children and Young People,CYP,Supplies & Services,DKA,22/01/2020,10-15323,510,Countrywide Residental Lettings
Nottinghamshire County Council,1111/1001,Children and Young People,CYP,Supplies & Services,DKA,23/01/2020,10-15597,"1,260.39",Via East Midlands Ltd
Nottinghamshire County Council,1111/1001,Children and Young People,CYP,Supplies & Services,DKA,29/01/2020,10-16092,697.96,ADG Management
Nottinghamshire County Council,1111/1001,Children and Young People,CYP,Supplies & Services,DKA,29/01/2020,10-16093,5610.75,West Midlands Housing Ltd
Nottinghamshire County Council,1111/1001,Children and Young People,CYP,Supplies & Services,DKA,29/01/2020,10-16094,514.39,Student Lodge Lettings Company Ltd
Nottinghamshire County Council,1111/1001,Children and Young People,CYP,Supplies & Services,DKA,29/01/2020,10-16095,650,Jillings Estates Ltd (Bramley Apple
Nottinghamshire County Council,1111/1001,Children and Young People,CYP,Third Party Payments,EBA,20/01/2020,10-17141,"22,666.66",Bridge House Independent School
Nottinghamshire County Council,1111/1001,Children and Young People,CYP,Third Party Payments,EBA,20/01/2020,10-17142,"22,666.66",Bridge House Independent School
Nottinghamshire County Council,1111/1001,Children and Young People,CYP,Third Party Payments,EBA,22/01/2020,10-17211,180291.56,East Leake Schools Ltd
Nottinghamshire County Council,1111/1001,Children and Young People,CYP,Third Party Payments,EBA,27/01/2020,10-17280,67500,Nottm Community Housing Assoc
Nottinghamshire County Council,1111/1001,Children and Young People,CYP,Third Party Payments,EBA,31/01/2020,10-17279,"67,500.00",Nottm Community Housing Assoc
Nottinghamshire County Council,1111/1001,Children and Young People,CYP,Third Party Payments,ECA,08/01/2020,10-16806,14105.83,Nottinghamshire Womens Aid Ltd
Nottinghamshire County Council,1111/1001,Children and Young People,CYP,Third Party Payments,EDA,02/01/2020,10-10023,5192,Hillside Academy
Nottinghamshire County Council,1111/1001,Children and Young People,CYP,Third Party Payments,EDA,02/01/2020,10-10024,"5,769.00",Sparken Hill Academy
Nottinghamshire County Council,1111/1001,Children and Young People,CYP,Third Party Payments,EDA,02/01/2020,10-10025,"1,250.00",Brunts Academy
Nottinghamshire County Council,1111/1001,Children and Young People,CYP,Third Party Payments,EDA,02/01/2020,10-10026,"5,769.00",Holy Trinity Catholic Voluntary Aca
Nottinghamshire County Council,1111/1001,Children and Young People,CYP,Third Party Payments,EDA,02/01/2020,10-10027,1875,Flying High Trust Beeston Fields Pr
Nottinghamshire County Council,1111/1001,Children and Young People,CYP,Third Party Payments,EDA,02/01/2020,10-10028,2500,Holy Trinity Catholic Voluntary Aca
Nottinghamshire County Council,1111/1001,Children and Young People,CYP,Third Party Payments,EDA,02/01/2020,10-10029,"5,769.00",Willow Farm Primary Academy
Nottinghamshire County Council,1111/1001,Children and Young People,CYP,Third Party Payments,EDA,02/01/2020,10-10030,5769,Greenwood Primary & Nursery School
Nottinghamshire County Council,1111/1001,Children and Young People,CYP,Third Party Payments,EDA,02/01/2020,10-10031,"5,769.00",Heymann Primary School
Nottinghamshire County Council,1111/1001,Children and Young People,CYP,Third Party Payments,EDA,02/01/2020,10-10032,6320,Carlton Le Willows Academy
Nottinghamshire County Council,1111/1001,Children and Young People,CYP,Third Party Payments,EDA,02/01/2020,10-10033,"8,876.00",Rushcliffe School (Spencer Academie
Nottinghamshire County Council,1111/1001,Children and Young People,CYP,Third Party Payments,EDA,02/01/2020,10-10034,"3,846.00",The Elizabethan Academy
Nottinghamshire County Council,1111/1001,Children and Young People,CYP,Third Party Payments,EDA,02/01/2020,10-10035,10962,The Minster School (Academy)
Nottinghamshire County Council,1111/1001,Children and Young People,CYP,Third Party Payments,EDA,02/01/2020,10-10036,"10,962.00",Tuxford Academy
Nottinghamshire County Council,1111/1001,Children and Young People,CYP,Third Party Payments,EDA,02/01/2020,10-10037,5769,Tuxford Academy
Nottinghamshire County Council,1111/1001,Children and Young People,CYP,Third Party Payments,EDA,02/01/2020,10-10038,4231,Carlton Junior Academy
Nottinghamshire County Council,1111/1001,Children and Young People,CYP,Third Party Payments,EDA,02/01/2020,10-10039,3462,Samworth Church Academy
Nottinghamshire County Council,1111/1001,Children and Young People,CYP,Third Party Payments,EDA,13/01/2020,10-16932,7770,Kesteven & Grantham Girls School
Nottinghamshire County Council,1111/1001,Children and Young People,CYP,Third Party Payments,EDA,14/01/2020,10-12149,2000,Coddington C Of E Primary School
Nottinghamshire County Council,1111/1001,Children and Young People,CYP,Third Party Payments,EDA,14/01/2020,10-12150,7000,Chuter Ede Primary School
Nottinghamshire County Council,1111/1001,Children and Young People,CYP,Third Party Payments,EDA,14/01/2020,10-12151,7171,Quarrydale Academy
Nottinghamshire County Council,1111/1001,Children and Young People,CYP,Third Party Payments,EDA,14/01/2020,10-12159,"8,333.33",Foxwood Academy
Nottinghamshire County Council,1111/1001,Children and Young People,CYP,Third Party Payments,EDA,14/01/2020,10-12160,"89,943.00",Foxwood Academy
Nottinghamshire County Council,1111/1001,Children and Young People,CYP,Third Party Payments,EDA,14/01/2020,10-12161,10000,Redgate Primary Academy
Nottinghamshire County Council,1111/1001,Children and Young People,CYP,Third Party Payments,EDA,14/01/2020,10-12162,27500,Beech Academy
Nottinghamshire County Council,1111/1001,Children and Young People,CYP,Third Party Payments,EDA,14/01/2020,10-12163,4167,Beech Academy
Nottinghamshire County Council,1111/1001,Children and Young People,CYP,Third Party Payments,EDA,14/01/2020,10-12164,"71,825.00",Beech Academy
Nottinghamshire County Council,1111/1001,Children and Young People,CYP,Third Party Payments,EDA,14/01/2020,10-12165,"52,344.00",Redgate Primary Academy
Nottinghamshire County Council,1111/1001,Children and Young People,CYP,Third Party Payments,EDA,14/01/2020,10-12166,2500,Yeoman Park Academy
Nottinghamshire County Council,1111/1001,Children and Young People,CYP,Third Party Payments,EDA,14/01/2020,10-12167,900.00,Yeoman Park Academy
Nottinghamshire County Council,1111/1001,Children and Young People,CYP,Third Party Payments,EDA,14/01/2020,10-16981,"6,128.00",Warren Wood Academy (Mayflower Trus
Nottinghamshire County Council,1111/1001,Children and Young People,CYP,Third Party Payments,EDA,15/01/2020,10-12229,101125,Yeoman Park Academy
Nottinghamshire County Council,1111/1001,Children and Young People,CYP,Third Party Payments,EDA,16/01/2020,10-10278,14126,St Patricks Catholic Voluntary Acad
Nottinghamshire County Council,1111/1001,Children and Young People,CYP,Third Party Payments,EDA,16/01/2020,10-10279,"7,116.00",St Josephs Catholic Primary Sch Aca
Nottinghamshire County Council,1111/1001,Children and Young People,CYP,Third Party Payments,EDA,16/01/2020,10-10280,11930,St Patricks Catholic Voluntary Acad
Nottinghamshire County Council,1111/1001,Children and Young People,CYP,Third Party Payments,EDA,16/01/2020,10-10281,9603,St Josephs Catholic Primary Sch Aca
Nottinghamshire County Council,1111/1001,Children and Young People,CYP,Third Party Payments,EDA,16/01/2020,10-10282,10000,Dukeries Academy
Nottinghamshire County Council,1111/1001,Children and Young People,CYP,Third Party Payments,EDA,16/01/2020,10-10292,"21,236.00",Holgate Academy
Nottinghamshire County Council,1111/1001,Children and Young People,CYP,Third Party Payments,EDA,16/01/2020,10-11937,"1,000.00",The Carlton Academy
Nottinghamshire County Council,1111/1001,Children and Young People,CYP,Third Party Payments,EDA,16/01/2020,10-11938,10854,Holy Trinity Catholic Voluntary Aca
Nottinghamshire County Council,1111/1001,Children and Young People,CYP,Third Party Payments,EDA,16/01/2020,10-11939,16005,St Philip Neri with St Bede Vol Aca
Nottinghamshire County Council,1111/1001,Children and Young People,CYP,Third Party Payments,EDA,17/01/2020,10-10283,"8,259.00",The Bramcote School
Nottinghamshire County Council,1111/1001,Children and Young People,CYP,Third Party Payments,EDA,17/01/2020,10-10284,"8,678.00",The Carlton Academy
Nottinghamshire County Council,1111/1001,Children and Young People,CYP,Third Party Payments,EDA,17/01/2020,10-10285,842.00,The Carlton Academy
Nottinghamshire County Council,1111/1001,Children and Young People,CYP,Third Party Payments,EDA,17/01/2020,10-10286,"3,100.00",South Nottinghamshire Academy
Nottinghamshire County Council,1111/1001,Children and Young People,CYP,Third Party Payments,EDA,17/01/2020,10-10287,"8,678.00",Redhill Academy
Nottinghamshire County Council,1111/1001,Children and Young People,CYP,Third Party Payments,EDA,17/01/2020,10-10288,842.00,Redhill Academy
Nottinghamshire County Council,1111/1001,Children and Young People,CYP,Third Party Payments,EDA,17/01/2020,10-10289,"8,678.00",Rushcliffe School (Spencer Academie
Nottinghamshire County Council,1111/1001,Children and Young People,CYP,Third Party Payments,EDA,17/01/2020,10-10290,842,Rushcliffe School (Spencer Academie
Nottinghamshire County Council,1111/1001,Children and Young People,CYP,Third Party Payments,EDA,17/01/2020,10-10291,600,Rushcliffe School (Spencer Academie
Nottinghamshire County Council,1111/1001,Children and Young People,CYP,Third Party Payments,EDA,20/01/2020,10-13126,"9,871.79",William Gladstone C of E Primary Ac
Nottinghamshire County Council,1111/1001,Children and Young People,CYP,Third Party Payments,EDA,20/01/2020,10-13127,"7,521.36",Kingston Park Academy
Nottinghamshire County Council,1111/1001,Children and Young People,CYP,Third Party Payments,EDA,20/01/2020,10-13128,23316.22,Kirkby Woodhouse Academy School
Nottinghamshire County Council,1111/1001,Children and Young People,CYP,Third Party Payments,EDA,20/01/2020,10-13129,"16,452.98",Peafield Lane Academy
Nottinghamshire County Council,1111/1001,Children and Young People,CYP,Third Party Payments,EDA,20/01/2020,10-13130,"24,444.42",Mapplewells Primary & Nursery Acada
Nottinghamshire County Council,1111/1001,Children and Young People,CYP,Third Party Payments,EDA,20/01/2020,10-13131,19273.49,Leamington Primary & Nursery Academ
Nottinghamshire County Council,1111/1001,Children and Young People,CYP,Third Party Payments,EDA,20/01/2020,10-13132,"14,102.55",Birklands Primary (Academy)
Nottinghamshire County Council,1111/1001,Children and Young People,CYP,Third Party Payments,EDA,20/01/2020,10-13277,"9,401.70",Haddon Primary School (Academy)
Nottinghamshire County Council,1111/1001,Children and Young People,CYP,Third Party Payments,EDA,20/01/2020,10-13379,"20,683.74",Central Infant Academy
Nottinghamshire County Council,1111/1001,Children and Young People,CYP,Third Party Payments,EDA,20/01/2020,10-13467,"9,119.65",Sunnyside Spencer Academy
Nottinghamshire County Council,1111/1001,Children and Young People,CYP,Third Party Payments,EDA,20/01/2020,10-13600,24444.42,Alderman Pounder Academy(Flying Hig
Nottinghamshire County Council,1111/1001,Children and Young People,CYP,Third Party Payments,EDA,20/01/2020,10-13690,31025.61,Norbridge Academy Trust
Nottinghamshire County Council,1111/1001,Children and Young People,CYP,Third Party Payments,EDA,20/01/2020,10-13795,940.17,Flintham Primary Academy School
Nottinghamshire County Council,1111/1001,Children and Young People,CYP,Third Party Payments,EDA,20/01/2020,10-13928,12692.3,KImberely Primary & Nursery School
Nottinghamshire County Council,1111/1001,Children and Young People,CYP,Third Party Payments,EDA,20/01/2020,10-14047,25384.59,Greenwood Primary & Nursery School
Nottinghamshire County Council,1111/1001,Children and Young People,CYP,Third Party Payments,EDA,20/01/2020,10-14149,15512.81,West Park Academy
Nottinghamshire County Council,1111/1001,Children and Young People,CYP,Third Party Payments,EDA,20/01/2020,10-14284,5984.18,Keyworth Primary & Nursery School
Nottinghamshire County Council,1111/1001,Children and Young People,CYP,Third Party Payments,EDA,20/01/2020,10-14418,"31,025.61",Sparken Hill Academy
Nottinghamshire County Council,1111/1001,Children and Young People,CYP,Third Party Payments,EDA,20/01/2020,10-14516,"14,196.57",Bilsthorpe Flying High Academ (Flyi
Nottinghamshire County Council,1111/1001,Children and Young People,CYP,Third Party Payments,EDA,20/01/2020,10-14661,"16,923.06",Flying High Trust Beeston Fields Pr
Nottinghamshire County Council,1111/1001,Children and Young People,CYP,Third Party Payments,EDA,20/01/2020,10-14753,16735.03,St Johns C of E Academy
Nottinghamshire County Council,1111/1001,Children and Young People,CYP,Third Party Payments,EDA,20/01/2020,10-14894,6454.27,St Peters C of E Academy
Nottinghamshire County Council,1111/1001,Children and Young People,CYP,Third Party Payments,EDA,20/01/2020,10-15218,30555.53,Sir Donald Bailey Academy (Forge Tr
Nottinghamshire County Council,1111/1001,Children and Young People,CYP,Third Party Payments,EDA,20/01/2020,10-15232,17393.15,Langold Dyscarr Community Academy
Nottinghamshire County Council,1111/1001,Children and Young People,CYP,Third Party Payments,EDA,20/01/2020,10-15233,11752.13,St Peters C of E Academy Mansfield
Nottinghamshire County Council,1111/1001,Children and Young People,CYP,Third Party Payments,EDA,20/01/2020,10-15234,"3,290.60",Burntstump Seely CofE Primary Acade
Nottinghamshire County Council,1111/1001,Children and Young People,CYP,Third Party Payments,EDA,20/01/2020,10-15235,"3,290.60",Archbishop Cranmer C of E Academy
Nottinghamshire County Council,1111/1001,Children and Young People,CYP,Third Party Payments,EDA,20/01/2020,10-15236,2458.54,Gunthorpe C OF E Primary Academy
Nottinghamshire County Council,1111/1001,Children and Young People,CYP,Third Party Payments,EDA,20/01/2020,10-15237,"13,162.38",Sacred Heart Catholic Voluntary Aca
Nottinghamshire County Council,1111/1001,Children and Young People,CYP,Third Party Payments,EDA,20/01/2020,10-15238,"11,752.13",St Joseph's RC Primary Academy
Nottinghamshire County Council,1111/1001,Children and Young People,CYP,Third Party Payments,EDA,20/01/2020,10-15239,14102.55,Holy Trinity Catholic Voluntary Aca
Nottinghamshire County Council,1111/1001,Children and Young People,CYP,Third Party Payments,EDA,20/01/2020,10-15240,23504.25,St Philip Neri with St Bede Vol Aca
Nottinghamshire County Council,1111/1001,Children and Young People,CYP,Third Party Payments,EDA,20/01/2020,10-15241,"22,094.00",Worksop Priory CE Primary Academy
Nottinghamshire County Council,1111/1001,Children and Young People,CYP,Third Party Payments,EDA,20/01/2020,10-15242,11470.07,Oak Tree Lane Primary Academy
Nottinghamshire County Council,1111/1001,Children and Young People,CYP,Third Party Payments,EDA,20/01/2020,10-15243,"19,743.57",Awsworth Primary & Nursery Sch (Aca
Nottinghamshire County Council,1111/1001,Children and Young People,CYP,Third Party Payments,EDA,20/01/2020,10-15244,4888.88,Python Hill Academy (Forge Trust)
Nottinghamshire County Council,1111/1001,Children and Young People,CYP,Third Party Payments,EDA,20/01/2020,10-15245,"6,581.19",Arnbrook Primary Academy
Nottinghamshire County Council,1111/1001,Children and Young People,CYP,Third Party Payments,EDA,20/01/2020,10-15246,31965.78,Netherfield Primary School (Academy
Nottinghamshire County Council,1111/1001,Children and Young People,CYP,Third Party Payments,EDA,20/01/2020,10-15247,"34,095.27",Candleby Lane School
Nottinghamshire County Council,1111/1001,Children and Young People,CYP,Third Party Payments,EDA,20/01/2020,10-15248,23504.25,Hillside Academy
Nottinghamshire County Council,1111/1001,Children and Young People,CYP,Third Party Payments,EDA,20/01/2020,10-15249,26009.8,The Flying High Academy
Nottinghamshire County Council,1111/1001,Children and Young People,CYP,Third Party Payments,EDA,20/01/2020,10-15250,"24,444.42",Serlby Park Academy
Nottinghamshire County Council,1111/1001,Children and Young People,CYP,Third Party Payments,EDA,20/01/2020,10-15251,"18,333.32",St Josephs Catholic Primary Sch Aca
Nottinghamshire County Council,1111/1001,Children and Young People,CYP,Third Party Payments,EDA,20/01/2020,10-15252,"12,222.21",St Patricks Catholic Voluntary Acad
Nottinghamshire County Council,1111/1001,Children and Young People,CYP,Third Party Payments,EDA,20/01/2020,10-15253,"31,965.78",Barnby Road Academy Prim & Nursery
Nottinghamshire County Council,1111/1001,Children and Young People,CYP,Third Party Payments,EDA,20/01/2020,10-15254,"16,217.93",Tuxford Primary Academy
Nottinghamshire County Council,1111/1001,Children and Young People,CYP,Third Party Payments,EDA,20/01/2020,10-15255,15512.81,Samuel Barlow Primary Academy
Nottinghamshire County Council,1111/1001,Children and Young People,CYP,Third Party Payments,EDA,20/01/2020,10-15256,20213.66,Heymann Primary School
Nottinghamshire County Council,1111/1001,Children and Young People,CYP,Third Party Payments,EDA,20/01/2020,10-15257,"13,162.38",Bishop Alexander LEAD Academy
Nottinghamshire County Council,1111/1001,Children and Young People,CYP,Third Party Payments,EDA,20/01/2020,10-15258,"13,632.47",Bracken Lane Primary Academy
Nottinghamshire County Council,1111/1001,Children and Young People,CYP,Third Party Payments,EDA,20/01/2020,10-15259,14572.64,Thrumpton Primary Academy
Nottinghamshire County Council,1111/1001,Children and Young People,CYP,Third Party Payments,EDA,20/01/2020,10-15260,16452.98,Robert Mellors Primary & Nursery Ac
Nottinghamshire County Council,1111/1001,Children and Young People,CYP,Third Party Payments,EDA,20/01/2020,10-15261,"29,991.42",Richard Bonnington Primary Academy(
Nottinghamshire County Council,1111/1001,Children and Young People,CYP,Third Party Payments,EDA,20/01/2020,10-15262,"16,452.98",DALP T/A Wainwright Primary Academy
Nottinghamshire County Council,1111/1001,Children and Young People,CYP,Third Party Payments,EDA,20/01/2020,10-15263,11282.04,Mansfield Primary Academy
Nottinghamshire County Council,1111/1001,Children and Young People,CYP,Third Party Payments,EDA,23/01/2020,10-15591,2500,Parkdale Primary Academy
Nottinghamshire County Council,1111/1001,Children and Young People,CYP,Third Party Payments,EDA,23/01/2020,10-15592,"2,500.00",George Spencer Academy
Nottinghamshire County Council,1111/1001,Children and Young People,CYP,Third Party Payments,EDA,29/01/2020,10-10143,10344,The Bramcote School
Nottinghamshire County Council,1111/1001,Children and Young People,CYP,Third Party Payments,EDA,29/01/2020,10-10144,"3,269.00",St Philip Neri with St Bede Vol Aca
Nottinghamshire County Council,1111/1001,Children and Young People,CYP,Third Party Payments,EDA,29/01/2020,10-10145,2500,The Bramcote School
Nottinghamshire County Council,1111/1001,Children and Young People,CYP,Third Party Payments,EDA,29/01/2020,10-10146,5769,Redhill Academy
Nottinghamshire County Council,1111/1001,Children and Young People,CYP,Third Party Payments,EDA,29/01/2020,10-10147,5769,Carlton Le Willows Academy
Nottinghamshire County Council,1111/1001,Children and Young People,CYP,Third Party Payments,EDA,29/01/2020,10-10148,1250,Priory Catholic Academy(St Ralph Sh
Nottinghamshire County Council,1111/1001,Children and Young People,CYP,Third Party Payments,EDA,29/01/2020,10-10149,"8,654.00",Sutton Community Academy
Nottinghamshire County Council,1111/1001,Children and Young People,CYP,Third Party Payments,EDA,29/01/2020,10-10150,5769,Worksop Priory CE Primary Academy
Nottinghamshire County Council,1111/1001,Children and Young People,CYP,Third Party Payments,EDA,29/01/2020,10-10151,5769,South Nottinghamshire Academy
Nottinghamshire County Council,1111/1001,Children and Young People,CYP,Third Party Payments,EDA,29/01/2020,10-10152,"5,769.00",Carlton Le Willows Academy
Nottinghamshire County Council,1111/1001,Children and Young People,CYP,Third Party Payments,EDA,29/01/2020,10-10153,5769,Kirkby College
Nottinghamshire County Council,1111/1001,Children and Young People,CYP,Third Party Payments,EDA,29/01/2020,10-10154,"5,769.00",Forest View Academy (Forge Trust)
Nottinghamshire County Council,1111/1001,Children and Young People,CYP,Third Party Payments,EDA,29/01/2020,10-10155,"5,769.00",Carlton Le Willows Academy
Nottinghamshire County Council,1111/1001,Children and Young People,CYP,Third Party Payments,EDA,29/01/2020,10-10156,"5,769.00",Samworth Church Academy
Nottinghamshire County Council,1111/1001,Children and Young People,CYP,Third Party Payments,EDA,29/01/2020,10-10157,2885,South Wolds Academy & Sixth Form
Nottinghamshire County Council,1111/1001,Children and Young People,CYP,Third Party Payments,EDA,29/01/2020,10-10158,5769,Selston High Academy
Nottinghamshire County Council,1111/1001,Children and Young People,CYP,Third Party Payments,EDA,29/01/2020,10-10160,5769,Garibaldi School (Academy)
Nottinghamshire County Council,1111/1001,Children and Young People,CYP,Third Party Payments,EDA,29/01/2020,10-10234,5769,Kimberley School (Academy)
Nottinghamshire County Council,1111/1001,Children and Young People,CYP,Third Party Payments,EDA,29/01/2020,10-10256,10962,East Leake Academy
Nottinghamshire County Council,1111/1001,Children and Young People,CYP,Third Party Payments,EDA,29/01/2020,10-10263,5769,Newark Academy
Nottinghamshire County Council,1111/1001,Children and Young People,CYP,Third Party Payments,EDA,29/01/2020,10-10264,"5,769.00",The Carlton Academy
Nottinghamshire County Council,1111/1001,Children and Young People,CYP,Third Party Payments,EDA,29/01/2020,10-10265,"5,769.00",The Elizabethan Academy
Nottinghamshire County Council,1111/1001,Children and Young People,CYP,Third Party Payments,EDA,29/01/2020,10-10266,3269,Toothill Academy
Nottinghamshire County Council,1111/1001,Children and Young People,CYP,Third Party Payments,EDA,29/01/2020,10-10267,5769,Carlton Junior Academy
Nottinghamshire County Council,1111/1001,Children and Young People,CYP,Third Party Payments,EDA,29/01/2020,10-10268,"1,643.00",Carlton Junior Academy
Nottinghamshire County Council,1111/1001,Children and Young People,CYP,Third Party Payments,EDA,29/01/2020,10-10269,3750,Netherfield Primary School (Academy
Nottinghamshire County Council,1111/1001,Children and Young People,CYP,Third Party Payments,EDA,29/01/2020,10-10270,4808,Christ The King Catholic Voluntary
Nottinghamshire County Council,1111/1001,Children and Young People,CYP,Third Party Payments,EDA,29/01/2020,10-10271,8077,KImberely Primary & Nursery School
Nottinghamshire County Council,1111/1001,Children and Young People,CYP,Third Party Payments,EDA,29/01/2020,10-10272,5769,Sutton Community Academy
Nottinghamshire County Council,1111/1001,Children and Young People,CYP,Third Party Payments,EDA,29/01/2020,10-10273,"5,769.00",Sutton Community Academy
Nottinghamshire County Council,1111/1001,Children and Young People,CYP,Third Party Payments,EDA,29/01/2020,10-10274,"1,875.00",William Gladstone C of E Primary Ac
Nottinghamshire County Council,1111/1001,Children and Young People,CYP,Third Party Payments,EDA,29/01/2020,10-10275,2500,Forest View Academy (Forge Trust)
Nottinghamshire County Council,1111/1001,Children and Young People,CYP,Third Party Payments,EDA,29/01/2020,10-10276,2500,DALP T/A Wainwright Primary Academy
Nottinghamshire County Council,1111/1001,Children and Young People,CYP,Third Party Payments,EDA,29/01/2020,10-10277,"5,769.00",Serlby Park Academy
Nottinghamshire County Council,1111/1001,Children and Young People,CYP,Third Party Payments,EDA,29/01/2020,10-15266,3597,Leverton C Of E Academy
Nottinghamshire County Council,1111/1001,Children and Young People,CYP,Third Party Payments,EDA,29/01/2020,10-16085,1000,Gamston C Of E Primary School
Nottinghamshire County Council,1111/1001,Children and Young People,CYP,Third Party Payments,EFA,02/01/2020,10-16628,"12,000.00",Demeter House Ltd
Nottinghamshire County Council,1111/1001,Children and Young People,CYP,Third Party Payments,EFA,02/01/2020,10-16669,"17,154.24",Teaching Personnel Ltd
Nottinghamshire County Council,1111/1001,Children and Young People,CYP,Third Party Payments,EFA,03/01/2020,10-16646,"54,652.00",The Place Young Peoples Company Ltd
Nottinghamshire County Council,1111/1001,Children and Young People,CYP,Third Party Payments,EFA,03/01/2020,10-16647,54652,The Place Young Peoples Company Ltd
Nottinghamshire County Council,1111/1001,Children and Young People,CYP,Third Party Payments,EFA,03/01/2020,10-16648,54652,The Place Young Peoples Company Ltd
Nottinghamshire County Council,1111/1001,Children and Young People,CYP,Third Party Payments,EFA,03/01/2020,10-16649,"14,109.00",St John's Catholic School for the D
Nottinghamshire County Council,1111/1001,Children and Young People,CYP,Third Party Payments,EFA,03/01/2020,10-16693,6535,I Can Services Ltd
Nottinghamshire County Council,1111/1001,Children and Young People,CYP,Third Party Payments,EFA,03/01/2020,10-16697,"1,467.50",A P E Ltd (Alternative Programme Ed
Nottinghamshire County Council,1111/1001,Children and Young People,CYP,Third Party Payments,EFA,06/01/2020,10-16720,17172.67,Landmarks Ltd
Nottinghamshire County Council,1111/1001,Children and Young People,CYP,Third Party Payments,EFA,06/01/2020,10-16726,"43,092.84",Landmarks Ltd
Nottinghamshire County Council,1111/1001,Children and Young People,CYP,Third Party Payments,EFA,07/01/2020,10-16776,"3,094.00",Teaching Personnel Ltd
Nottinghamshire County Council,1111/1001,Children and Young People,CYP,Third Party Payments,EFA,08/01/2020,10-16812,855,Venture Learning Ltd
Nottinghamshire County Council,1111/1001,Children and Young People,CYP,Third Party Payments,EFA,09/01/2020,10-16859,"2,567.31",TBAC Consultants Ltd
Nottinghamshire County Council,1111/1001,Children and Young People,CYP,Third Party Payments,EFA,09/01/2020,10-16862,2160,TBAC Consultants Ltd
Nottinghamshire County Council,1111/1001,Children and Young People,CYP,Third Party Payments,EFA,09/01/2020,10-16863,855,Venture Learning Ltd
Nottinghamshire County Council,1111/1001,Children and Young People,CYP,Third Party Payments,EFA,10/01/2020,10-16909,11823,Doncaster Deaf Trust
Nottinghamshire County Council,1111/1001,Children and Young People,CYP,Third Party Payments,EFA,10/01/2020,10-16929,1403.2,Teaching Personnel Ltd
Nottinghamshire County Council,1111/1001,Children and Young People,CYP,Third Party Payments,EFA,14/01/2020,10-16999,2880,"Culture, Learning & Libraries (Midl"
Nottinghamshire County Council,1111/1001,Children and Young People,CYP,Third Party Payments,EFA,15/01/2020,10-17009,3919.5,Holgate Academy
Nottinghamshire County Council,1111/1001,Children and Young People,CYP,Third Party Payments,EFA,15/01/2020,10-17032,20664.99,Acacia Hall (Kisimul)
Nottinghamshire County Council,1111/1001,Children and Young People,CYP,Third Party Payments,EFA,16/01/2020,10-17015,"3,542.99",Cambian Childcare Ltd
Nottinghamshire County Council,1111/1001,Children and Young People,CYP,Third Party Payments,EFA,16/01/2020,10-17041,"3,542.99",Cambian Childcare Ltd
Nottinghamshire County Council,1111/1001,Children and Young People,CYP,Third Party Payments,EFA,17/01/2020,10-16695,1831.68,Switch Up CIC
Nottinghamshire County Council,1111/1001,Children and Young People,CYP,Third Party Payments,EFA,17/01/2020,10-17031,11413,Mary Hare School
Nottinghamshire County Council,1111/1001,Children and Young People,CYP,Third Party Payments,EFA,17/01/2020,10-17058,2280,Learn Solutions Ltd T/A TLC Live
Nottinghamshire County Council,1111/1001,Children and Young People,CYP,Third Party Payments,EFA,17/01/2020,10-17059,"2,432.00",Learn Solutions Ltd T/A TLC Live
Nottinghamshire County Council,1111/1001,Children and Young People,CYP,Third Party Payments,EFA,17/01/2020,10-17109,"470,800.00",REAL Independent School Ltd
Nottinghamshire County Council,1111/1001,Children and Young People,CYP,Third Party Payments,EFA,17/01/2020,10-17110,63700,REAL Independent School Ltd
Nottinghamshire County Council,1111/1001,Children and Young People,CYP,Third Party Payments,EFA,20/01/2020,10-17117,"22,446.15",Independent Educational Services Lt
Nottinghamshire County Council,1111/1001,Children and Young People,CYP,Third Party Payments,EFA,20/01/2020,10-17119,"1,403.20",Teaching Personnel Ltd
Nottinghamshire County Council,1111/1001,Children and Young People,CYP,Third Party Payments,EFA,20/01/2020,10-17120,1403.2,Teaching Personnel Ltd
Nottinghamshire County Council,1111/1001,Children and Young People,CYP,Third Party Payments,EFA,20/01/2020,10-17123,1415,Baby T Workshops Ltd
Nottinghamshire County Council,1111/1001,Children and Young People,CYP,Third Party Payments,EFA,20/01/2020,10-17125,"24,833.00",First Class Tailored Solutions Ltd
Nottinghamshire County Council,1111/1001,Children and Young People,CYP,Third Party Payments,EFA,20/01/2020,10-17138,3262.5,Teaching Personnel Ltd
Nottinghamshire County Council,1111/1001,Children and Young People,CYP,Third Party Payments,EFA,20/01/2020,10-17147,46360.49,First Class Tailored Solutions Ltd
Nottinghamshire County Council,1111/1001,Children and Young People,CYP,Third Party Payments,EFA,20/01/2020,10-17149,3262.5,Teaching Personnel Ltd
Nottinghamshire County Council,1111/1001,Children and Young People,CYP,Third Party Payments,EFA,20/01/2020,10-17178,"2,280.00",New Roots Care & Education Ltd
Nottinghamshire County Council,1111/1001,Children and Young People,CYP,Third Party Payments,EFA,22/01/2020,10-17247,"30,529.24",Nova Centric Ltd
Nottinghamshire County Council,1111/1001,Children and Young People,CYP,Third Party Payments,EFA,23/01/2020,10-17295,6535,I Can Services Ltd
Nottinghamshire County Council,1111/1001,Children and Young People,CYP,Third Party Payments,EFA,23/01/2020,10-17296,3094,Teaching Personnel Ltd
Nottinghamshire County Council,1111/1001,Children and Young People,CYP,Third Party Payments,EFA,23/01/2020,10-17301,"6,535.00",I Can Services Ltd
Nottinghamshire County Council,1111/1001,Children and Young People,CYP,Third Party Payments,EFA,23/01/2020,10-17302,"6,535.00",I Can Services Ltd
Nottinghamshire County Council,1111/1001,Children and Young People,CYP,Third Party Payments,EFA,23/01/2020,10-17303,"6,535.00",I Can Services Ltd
Nottinghamshire County Council,1111/1001,Children and Young People,CYP,Third Party Payments,EFA,23/01/2020,10-17304,"6,535.00",I Can Services Ltd
Nottinghamshire County Council,1111/1001,Children and Young People,CYP,Third Party Payments,EFA,23/01/2020,10-17305,"6,535.00",I Can Services Ltd
Nottinghamshire County Council,1111/1001,Children and Young People,CYP,Third Party Payments,EFA,23/01/2020,10-17306,"6,535.00",I Can Services Ltd
Nottinghamshire County Council,1111/1001,Children and Young People,CYP,Third Party Payments,EFA,23/01/2020,10-17307,6535,I Can Services Ltd
Nottinghamshire County Council,1111/1001,Children and Young People,CYP,Third Party Payments,EFA,23/01/2020,10-17308,"6,535.00",I Can Services Ltd
Nottinghamshire County Council,1111/1001,Children and Young People,CYP,Third Party Payments,EFA,24/01/2020,10-16698,2180,Prime8 Education
Nottinghamshire County Council,1111/1001,Children and Young People,CYP,Third Party Payments,EFA,24/01/2020,10-16775,"2,500.00",Prime8 Education
Nottinghamshire County Council,1111/1001,Children and Young People,CYP,Third Party Payments,EFA,24/01/2020,10-16794,1770,Prime8 Education
Nottinghamshire County Council,1111/1001,Children and Young People,CYP,Third Party Payments,EFA,24/01/2020,10-17327,5940,TBAC Consultants Ltd
Nottinghamshire County Council,1111/1001,Children and Young People,CYP,Third Party Payments,EFA,24/01/2020,10-17328,1403.2,Teaching Personnel Ltd
Nottinghamshire County Council,1111/1001,Children and Young People,CYP,Third Party Payments,EFA,24/01/2020,10-17329,38966.44,Real Education Ltd
Nottinghamshire County Council,1111/1001,Children and Young People,CYP,Third Party Payments,EFA,24/01/2020,10-17332,27658.76,Real Education Ltd
Nottinghamshire County Council,1111/1001,Children and Young People,CYP,Third Party Payments,EFA,27/01/2020,10-15956,"9,777.00",Beech Academy
Nottinghamshire County Council,1111/1001,Children and Young People,CYP,Third Party Payments,EFA,27/01/2020,10-17386,3000,A Place To Call Our Own Ltd
Nottinghamshire County Council,1111/1001,Children and Young People,CYP,Third Party Payments,EFA,28/01/2020,10-17387,3000,A Place To Call Our Own Ltd
Nottinghamshire County Council,1111/1001,Children and Young People,CYP,Third Party Payments,EFA,28/01/2020,10-17388,"3,000.00",A Place To Call Our Own Ltd
Nottinghamshire County Council,1111/1001,Children and Young People,CYP,Third Party Payments,EFA,28/01/2020,10-17389,"3,000.00",A Place To Call Our Own Ltd
Nottinghamshire County Council,1111/1001,Children and Young People,CYP,Third Party Payments,EFA,28/01/2020,10-17390,3000,A Place To Call Our Own Ltd
Nottinghamshire County Council,1111/1001,Children and Young People,CYP,Third Party Payments,EFA,28/01/2020,10-17394,"3,000.00",A Place To Call Our Own Ltd
Nottinghamshire County Council,1111/1001,Children and Young People,CYP,Third Party Payments,EFA,28/01/2020,10-17395,3000,A Place To Call Our Own Ltd
Nottinghamshire County Council,1111/1001,Children and Young People,CYP,Third Party Payments,EFA,28/01/2020,10-17396,3000,A Place To Call Our Own Ltd
Nottinghamshire County Council,1111/1001,Children and Young People,CYP,Third Party Payments,EFA,28/01/2020,10-17408,"3,094.00",Teaching Personnel Ltd
Nottinghamshire County Council,1111/1001,Children and Young People,CYP,Third Party Payments,EFA,29/01/2020,10-17427,"3,375.00",Good Apple Independent School Ltd(S
Nottinghamshire County Council,1111/1001,Children and Young People,CYP,Third Party Payments,EFA,30/01/2020,10-16849,4782,Brooksby Melton College
Nottinghamshire County Council,1111/1001,Children and Young People,CYP,Third Party Payments,EFA,30/01/2020,10-16902,"3,919.50",Holgate Academy
Nottinghamshire County Council,1111/1001,Children and Young People,CYP,Third Party Payments,EFA,30/01/2020,10-17121,4586.37,Real Education Ltd
Nottinghamshire County Council,1111/1001,Children and Young People,CYP,Third Party Payments,EFA,30/01/2020,10-17124,2160,Pollyteach Ltd
Nottinghamshire County Council,1111/1001,Children and Young People,CYP,Third Party Payments,EFA,30/01/2020,10-17309,"27,658.76",Real Education Ltd
Nottinghamshire County Council,1111/1001,Children and Young People,CYP,Third Party Payments,EFA,30/01/2020,10-17398,975.00,Tuxford Academy
Nottinghamshire County Council,1111/1001,Children and Young People,CYP,Third Party Payments,EFA,30/01/2020,10-17426,24963,Pollyteach Ltd
Nottinghamshire County Council,1111/1001,Children and Young People,CYP,Third Party Payments,EFA,31/01/2020,10-16734,"2,620.50",FUEL (First Universal Enterprises L
Nottinghamshire County Council,1111/1001,Children and Young People,CYP,Third Party Payments,EFA,31/01/2020,10-16861,7374.45,FUEL (First Universal Enterprises L
Nottinghamshire County Council,1111/1001,Children and Young People,CYP,Third Party Payments,EFA,31/01/2020,10-17131,"67,500.00",R.E.A.L Alternative Provision Schoo
Nottinghamshire County Council,1111/1001,Children and Young People,CYP,Third Party Payments,EFA,31/01/2020,10-17133,"393,000.00",R.E.A.L Alternative Provision Schoo
Nottinghamshire County Council,1111/1001,Children and Young People,CYP,Third Party Payments,EGA,02/01/2020,10-16627,4714.29,Young People First Ltd
Nottinghamshire County Council,1111/1001,Children and Young People,CYP,Third Party Payments,EGA,02/01/2020,10-16641,24490,Platform Childcare Ltd
Nottinghamshire County Council,1111/1001,Children and Young People,CYP,Third Party Payments,EGA,02/01/2020,10-16642,24490,Platform Childcare Ltd
Nottinghamshire County Council,1111/1001,Children and Young People,CYP,Third Party Payments,EGA,02/01/2020,10-16652,712.96,Newport City Council
Nottinghamshire County Council,1111/1001,Children and Young People,CYP,Third Party Payments,EGA,02/01/2020,10-16660,2671.58,Fostering Dimensions Ltd
Nottinghamshire County Council,1111/1001,Children and Young People,CYP,Third Party Payments,EGA,02/01/2020,10-16661,"2,671.58",Fostering Dimensions Ltd
Nottinghamshire County Council,1111/1001,Children and Young People,CYP,Third Party Payments,EGA,02/01/2020,10-16666,"4,207.14",Young People First Ltd
Nottinghamshire County Council,1111/1001,Children and Young People,CYP,Third Party Payments,EGA,02/01/2020,10-16670,13641.43,Kedleston (Wings Education) Ltd
Nottinghamshire County Council,1111/1001,Children and Young People,CYP,Third Party Payments,EGA,03/01/2020,10-16629,7700,Cove Care Residential Ltd
Nottinghamshire County Council,1111/1001,Children and Young People,CYP,Third Party Payments,EGA,03/01/2020,10-16689,"3,281.72",New Roots Housing Project
Nottinghamshire County Council,1111/1001,Children and Young People,CYP,Third Party Payments,EGA,06/01/2020,10-16657,2025.83,Centre For Sport & Learning
Nottinghamshire County Council,1111/1001,Children and Young People,CYP,Third Party Payments,EGA,06/01/2020,10-16731,"4,494.86",Jordan Xavier Ltd
Nottinghamshire County Council,1111/1001,Children and Young People,CYP,Third Party Payments,EGA,06/01/2020,10-16747,"861,741.00",Nottinghamshire Healthcare Nhs F Tr
Nottinghamshire County Council,1111/1001,Children and Young People,CYP,Third Party Payments,EGA,07/01/2020,10-16795,"2,982.60",Key2 Futures Ltd
Nottinghamshire County Council,1111/1001,Children and Young People,CYP,Third Party Payments,EGA,07/01/2020,10-16796,"2,982.60",Key2 Futures Ltd
Nottinghamshire County Council,1111/1001,Children and Young People,CYP,Third Party Payments,EGA,07/01/2020,10-16797,"2,982.60",Key2 Futures Ltd
Nottinghamshire County Council,1111/1001,Children and Young People,CYP,Third Party Payments,EGA,07/01/2020,10-16798,"2,982.60",Key2 Futures Ltd
Nottinghamshire County Council,1111/1001,Children and Young People,CYP,Third Party Payments,EGA,08/01/2020,10-16811,23571.42,Sunrise Homes Services Ltd
Nottinghamshire County Council,1111/1001,Children and Young People,CYP,Third Party Payments,EGA,08/01/2020,10-16821,10602,Integrated Services Programme
Nottinghamshire County Council,1111/1001,Children and Young People,CYP,Third Party Payments,EGA,08/01/2020,10-16823,2360.07,Fusion Fostering Ltd
Nottinghamshire County Council,1111/1001,Children and Young People,CYP,Third Party Payments,EGA,08/01/2020,10-16824,"2,360.07",Fusion Fostering Ltd
Nottinghamshire County Council,1111/1001,Children and Young People,CYP,Third Party Payments,EGA,08/01/2020,10-16844,845.00,Oasis Community Church Centre & Gar
Nottinghamshire County Council,1111/1001,Children and Young People,CYP,Third Party Payments,EGA,08/01/2020,10-16845,845,Oasis Community Church Centre & Gar
Nottinghamshire County Council,1111/1001,Children and Young People,CYP,Third Party Payments,EGA,08/01/2020,10-16846,845.00,Oasis Community Church Centre & Gar
Nottinghamshire County Council,1111/1001,Children and Young People,CYP,Third Party Payments,EGA,08/01/2020,10-16847,845,Oasis Community Church Centre & Gar
Nottinghamshire County Council,1111/1001,Children and Young People,CYP,Third Party Payments,EGA,09/01/2020,10-11746,20164.28,Carlton & Gedling Day Nursery
Nottinghamshire County Council,1111/1001,Children and Young People,CYP,Third Party Payments,EGA,09/01/2020,10-11747,12811.03,Arnold House Day Nursery
Nottinghamshire County Council,1111/1001,Children and Young People,CYP,Third Party Payments,EGA,09/01/2020,10-11748,14000.9,Stapleford Day Nursery
Nottinghamshire County Council,1111/1001,Children and Young People,CYP,Third Party Payments,EGA,09/01/2020,10-11749,1369.69,Making Memories Childminding
Nottinghamshire County Council,1111/1001,Children and Young People,CYP,Third Party Payments,EGA,09/01/2020,10-16807,"10,881.00",The National Fostering Agency
Nottinghamshire County Council,1111/1001,Children and Young People,CYP,Third Party Payments,EGA,09/01/2020,10-16828,"8,649.00",Nexus Fostering Ltd
Nottinghamshire County Council,1111/1001,Children and Young People,CYP,Third Party Payments,EGA,09/01/2020,10-16868,"12,895.71",Total Care Matters Ltd
Nottinghamshire County Council,1111/1001,Children and Young People,CYP,Third Party Payments,EGA,09/01/2020,10-16869,"12,895.71",Total Care Matters Ltd
Nottinghamshire County Council,1111/1001,Children and Young People,CYP,Third Party Payments,EGA,09/01/2020,10-16871,107367.57,Castle Homes Care Ltd
Nottinghamshire County Council,1111/1001,Children and Young People,CYP,Third Party Payments,EGA,09/01/2020,10-16872,17492.99,Care 4 Children Residential Service
Nottinghamshire County Council,1111/1001,Children and Young People,CYP,Third Party Payments,EGA,09/01/2020,10-16873,"17,492.99",Care 4 Children Residential Service
Nottinghamshire County Council,1111/1001,Children and Young People,CYP,Third Party Payments,EGA,09/01/2020,10-16874,17492.99,Care 4 Children Residential Service
Nottinghamshire County Council,1111/1001,Children and Young People,CYP,Third Party Payments,EGA,09/01/2020,10-16879,40811.19,The National Fostering Agency
Nottinghamshire County Council,1111/1001,Children and Young People,CYP,Third Party Payments,EGA,09/01/2020,10-16880,"20,772.79",Stanfield Care Services Ltd
Nottinghamshire County Council,1111/1001,Children and Young People,CYP,Third Party Payments,EGA,10/01/2020,10-16746,"26,128.57",Children & Adolescents Placement Pr
Nottinghamshire County Council,1111/1001,Children and Young People,CYP,Third Party Payments,EGA,10/01/2020,10-16829,"4,415.29",Ethelbert Childrens Services
Nottinghamshire County Council,1111/1001,Children and Young People,CYP,Third Party Payments,EGA,10/01/2020,10-16898,1378.21,Nurture Care Ltd
Nottinghamshire County Council,1111/1001,Children and Young People,CYP,Third Party Payments,EGA,10/01/2020,10-16899,78304.85,Compass Fostering Central Ltd
Nottinghamshire County Council,1111/1001,Children and Young People,CYP,Third Party Payments,EGA,10/01/2020,10-16907,"78,304.85",Compass Fostering Central Ltd
Nottinghamshire County Council,1111/1001,Children and Young People,CYP,Third Party Payments,EGA,10/01/2020,10-16913,"6,653.40",Berry Gifford Ltd
Nottinghamshire County Council,1111/1001,Children and Young People,CYP,Third Party Payments,EGA,10/01/2020,10-16919,"3,658.00",Affinity Fostering Service Ltd
Nottinghamshire County Council,1111/1001,Children and Young People,CYP,Third Party Payments,EGA,10/01/2020,10-16928,"14,096.00",Kedleston (Wings Education) Ltd
Nottinghamshire County Council,1111/1001,Children and Young People,CYP,Third Party Payments,EGA,13/01/2020,10-16930,"19,928.57",Mixed Foundations Holistic Homes (p
Nottinghamshire County Council,1111/1001,Children and Young People,CYP,Third Party Payments,EGA,14/01/2020,10-12171,615,Little Nippers Pre-School
Nottinghamshire County Council,1111/1001,Children and Young People,CYP,Third Party Payments,EGA,14/01/2020,10-12172,615,Happy Days Childcare Services Ltd
Nottinghamshire County Council,1111/1001,Children and Young People,CYP,Third Party Payments,EGA,15/01/2020,10-16825,"2,360.07",Fusion Fostering Ltd
Nottinghamshire County Council,1111/1001,Children and Young People,CYP,Third Party Payments,EGA,15/01/2020,10-16826,2360.07,Fusion Fostering Ltd
Nottinghamshire County Council,1111/1001,Children and Young People,CYP,Third Party Payments,EGA,15/01/2020,10-17005,5814.18,Compass Fostering Central Ltd
Nottinghamshire County Council,1111/1001,Children and Young People,CYP,Third Party Payments,EGA,16/01/2020,10-12271,"3,294.90",Wollaton Village Day Nurseries Ltd
Nottinghamshire County Council,1111/1001,Children and Young People,CYP,Third Party Payments,EGA,16/01/2020,10-12272,"1,019.85",Wolds Childcare Ltd
Nottinghamshire County Council,1111/1001,Children and Young People,CYP,Third Party Payments,EGA,16/01/2020,10-17014,3542.99,Cambian Childcare Ltd
Nottinghamshire County Council,1111/1001,Children and Young People,CYP,Third Party Payments,EGA,16/01/2020,10-17039,"31,387.72",Eden Supported Living Ltd
Nottinghamshire County Council,1111/1001,Children and Young People,CYP,Third Party Payments,EGA,16/01/2020,10-17050,"9,280.44",Regional Foster Families Ltd
Nottinghamshire County Council,1111/1001,Children and Young People,CYP,Third Party Payments,EGA,17/01/2020,10-16712,"20,772.79",Stanfield Care Services Ltd
Nottinghamshire County Council,1111/1001,Children and Young People,CYP,Third Party Payments,EGA,17/01/2020,10-16713,7528.35,Abbey Green Therapeutic Childrens S
Nottinghamshire County Council,1111/1001,Children and Young People,CYP,Third Party Payments,EGA,17/01/2020,10-16714,"16,828.66",Abbey Green Therapeutic Childrens S
Nottinghamshire County Council,1111/1001,Children and Young People,CYP,Third Party Payments,EGA,17/01/2020,10-16719,"16,828.66",Abbey Green Therapeutic Childrens S
Nottinghamshire County Council,1111/1001,Children and Young People,CYP,Third Party Payments,EGA,17/01/2020,10-16767,"14,171.43",A&M Care Solutions Ltd/Metropolitan
Nottinghamshire County Council,1111/1001,Children and Young People,CYP,Third Party Payments,EGA,17/01/2020,10-16768,"15,721.43",A&M Care Solutions Ltd/Metropolitan
Nottinghamshire County Council,1111/1001,Children and Young People,CYP,Third Party Payments,EGA,17/01/2020,10-16900,"2,360.07",Fusion Fostering Ltd
Nottinghamshire County Council,1111/1001,Children and Young People,CYP,Third Party Payments,EGA,17/01/2020,10-16903,2360.07,Fusion Fostering Ltd
Nottinghamshire County Council,1111/1001,Children and Young People,CYP,Third Party Payments,EGA,17/01/2020,10-16975,24857.06,Skyline Child Care
Nottinghamshire County Council,1111/1001,Children and Young People,CYP,Third Party Payments,EGA,17/01/2020,10-17062,14171.65,East Midlands Care Matters (Head Of
Nottinghamshire County Council,1111/1001,Children and Young People,CYP,Third Party Payments,EGA,17/01/2020,10-17076,5314.02,True Fostering Ltd
Nottinghamshire County Council,1111/1001,Children and Young People,CYP,Third Party Payments,EGA,17/01/2020,10-17092,16499.18,Capstone Foster Care Ltd
Nottinghamshire County Council,1111/1001,Children and Young People,CYP,Third Party Payments,EGA,17/01/2020,10-17094,"14,390.60",Capstone Care Provider Ltd
Nottinghamshire County Council,1111/1001,Children and Young People,CYP,Third Party Payments,EGA,17/01/2020,10-17096,16055.14,Barnardos (HO)
Nottinghamshire County Council,1111/1001,Children and Young People,CYP,Third Party Payments,EGA,17/01/2020,10-17097,16055.14,Barnardos (HO)
Nottinghamshire County Council,1111/1001,Children and Young People,CYP,Third Party Payments,EGA,17/01/2020,10-17098,16055.14,Barnardos (HO)
Nottinghamshire County Council,1111/1001,Children and Young People,CYP,Third Party Payments,EGA,17/01/2020,10-17101,17157.6,Anglia Fostering Agency Ltd
Nottinghamshire County Council,1111/1001,Children and Young People,CYP,Third Party Payments,EGA,20/01/2020,10-17088,583,Miller Freeman & Sons (Nottingham)
Nottinghamshire County Council,1111/1001,Children and Young People,CYP,Third Party Payments,EGA,20/01/2020,10-17115,1771,Appropriate Adult Service Ltd
Nottinghamshire County Council,1111/1001,Children and Young People,CYP,Third Party Payments,EGA,20/01/2020,10-17126,1771,Appropriate Adult Service Ltd
Nottinghamshire County Council,1111/1001,Children and Young People,CYP,Third Party Payments,EGA,20/01/2020,10-17135,9280.44,Regional Foster Families Ltd
Nottinghamshire County Council,1111/1001,Children and Young People,CYP,Third Party Payments,EGA,20/01/2020,10-17136,22796.91,TACT
Nottinghamshire County Council,1111/1001,Children and Young People,CYP,Third Party Payments,EGA,20/01/2020,10-17159,684.38,Sensory Learning & Play CIC
Nottinghamshire County Council,1111/1001,Children and Young People,CYP,Third Party Payments,EGA,20/01/2020,10-17160,555.00,I Can Charity
Nottinghamshire County Council,1111/1001,Children and Young People,CYP,Third Party Payments,EGA,20/01/2020,10-17161,"2,026.63",Sensory Learning & Play CIC
Nottinghamshire County Council,1111/1001,Children and Young People,CYP,Third Party Payments,EGA,21/01/2020,10-16990,"3,150.00",UK Fostering Ltd
Nottinghamshire County Council,1111/1001,Children and Young People,CYP,Third Party Payments,EGA,21/01/2020,10-17179,792.81,Framework Housing Association
Nottinghamshire County Council,1111/1001,Children and Young People,CYP,Third Party Payments,EGA,21/01/2020,10-17186,792.81,Framework Housing Association
Nottinghamshire County Council,1111/1001,Children and Young People,CYP,Third Party Payments,EGA,21/01/2020,10-17187,792.81,Framework Housing Association
Nottinghamshire County Council,1111/1001,Children and Young People,CYP,Third Party Payments,EGA,21/01/2020,10-17188,792.81,Framework Housing Association
Nottinghamshire County Council,1111/1001,Children and Young People,CYP,Third Party Payments,EGA,21/01/2020,10-17192,93624.52,Pathway Care Solutions II Ltd
Nottinghamshire County Council,1111/1001,Children and Young People,CYP,Third Party Payments,EGA,21/01/2020,10-17193,"45,198.89",Pathway Care Solutions Ltd
Nottinghamshire County Council,1111/1001,Children and Young People,CYP,Third Party Payments,EGA,21/01/2020,10-17202,5449.5,Bespoke Transitions Ltd
Nottinghamshire County Council,1111/1001,Children and Young People,CYP,Third Party Payments,EGA,22/01/2020,10-15315,"1,000.00",Killisick Pre-School
Nottinghamshire County Council,1111/1001,Children and Young People,CYP,Third Party Payments,EGA,22/01/2020,10-15316,1000,Ryan House Day Nursery
Nottinghamshire County Council,1111/1001,Children and Young People,CYP,Third Party Payments,EGA,22/01/2020,10-15317,1000,Secret Garden Childcare Ltd
Nottinghamshire County Council,1111/1001,Children and Young People,CYP,Third Party Payments,EGA,22/01/2020,10-15318,"1,000.00",Lime Trees (Kirkby West)
Nottinghamshire County Council,1111/1001,Children and Young People,CYP,Third Party Payments,EGA,22/01/2020,10-15319,"1,000.00",Lime Trees (Forest Town)
Nottinghamshire County Council,1111/1001,Children and Young People,CYP,Third Party Payments,EGA,22/01/2020,10-15320,1000,Pre-School Learning Alliance (HO)
Nottinghamshire County Council,1111/1001,Children and Young People,CYP,Third Party Payments,EGA,22/01/2020,10-15433,"9,419.09",Rainbows Day Nursery
Nottinghamshire County Council,1111/1001,Children and Young People,CYP,Third Party Payments,EGA,22/01/2020,10-15434,5940.7,Zoe's Childcare Ltd
Nottinghamshire County Council,1111/1001,Children and Young People,CYP,Third Party Payments,EGA,22/01/2020,10-15435,3658.37,Zoes Childcare Ltd
Nottinghamshire County Council,1111/1001,Children and Young People,CYP,Third Party Payments,EGA,22/01/2020,10-16772,87649.9,Foster Care Associates Ltd
Nottinghamshire County Council,1111/1001,Children and Young People,CYP,Third Party Payments,EGA,22/01/2020,10-17151,3542.99,Cambian Childcare Ltd
Nottinghamshire County Council,1111/1001,Children and Young People,CYP,Third Party Payments,EGA,22/01/2020,10-17153,"3,542.99",Cambian Childcare Ltd
Nottinghamshire County Council,1111/1001,Children and Young People,CYP,Third Party Payments,EGA,22/01/2020,10-17156,3542.99,Cambian Childcare Ltd
Nottinghamshire County Council,1111/1001,Children and Young People,CYP,Third Party Payments,EGA,22/01/2020,10-17229,792.81,Framework Housing Association
Nottinghamshire County Council,1111/1001,Children and Young People,CYP,Third Party Payments,EGA,22/01/2020,10-17230,792.81,Framework Housing Association
Nottinghamshire County Council,1111/1001,Children and Young People,CYP,Third Party Payments,EGA,22/01/2020,10-17231,792.81,Framework Housing Association
Nottinghamshire County Council,1111/1001,Children and Young People,CYP,Third Party Payments,EGA,22/01/2020,10-17232,792.81,Framework Housing Association
Nottinghamshire County Council,1111/1001,Children and Young People,CYP,Third Party Payments,EGA,22/01/2020,10-17233,792.81,Framework Housing Association
Nottinghamshire County Council,1111/1001,Children and Young People,CYP,Third Party Payments,EGA,22/01/2020,10-17234,792.81,Framework Housing Association
Nottinghamshire County Council,1111/1001,Children and Young People,CYP,Third Party Payments,EGA,22/01/2020,10-17235,792.81,Framework Housing Association
Nottinghamshire County Council,1111/1001,Children and Young People,CYP,Third Party Payments,EGA,22/01/2020,10-17236,792.81,Framework Housing Association
Nottinghamshire County Council,1111/1001,Children and Young People,CYP,Third Party Payments,EGA,22/01/2020,10-17237,792.81,Framework Housing Association
Nottinghamshire County Council,1111/1001,Children and Young People,CYP,Third Party Payments,EGA,22/01/2020,10-17238,792.81,Framework Housing Association
Nottinghamshire County Council,1111/1001,Children and Young People,CYP,Third Party Payments,EGA,22/01/2020,10-17239,792.81,Framework Housing Association
Nottinghamshire County Council,1111/1001,Children and Young People,CYP,Third Party Payments,EGA,22/01/2020,10-17240,792.81,Framework Housing Association
Nottinghamshire County Council,1111/1001,Children and Young People,CYP,Third Party Payments,EGA,22/01/2020,10-17241,792.81,Framework Housing Association
Nottinghamshire County Council,1111/1001,Children and Young People,CYP,Third Party Payments,EGA,22/01/2020,10-17242,792.81,Framework Housing Association
Nottinghamshire County Council,1111/1001,Children and Young People,CYP,Third Party Payments,EGA,22/01/2020,10-17243,792.81,Framework Housing Association
Nottinghamshire County Council,1111/1001,Children and Young People,CYP,Third Party Payments,EGA,22/01/2020,10-17244,792.81,Framework Housing Association
Nottinghamshire County Council,1111/1001,Children and Young People,CYP,Third Party Payments,EGA,23/01/2020,10-16848,845,Oasis Community Church Centre & Gar
Nottinghamshire County Council,1111/1001,Children and Young People,CYP,Third Party Payments,EGA,23/01/2020,10-17245,"93,624.52",Pathway Care Solutions II Ltd
Nottinghamshire County Council,1111/1001,Children and Young People,CYP,Third Party Payments,EGA,23/01/2020,10-17265,"9,297.79",Safe Haven Accommodation Ltd
Nottinghamshire County Council,1111/1001,Children and Young People,CYP,Third Party Payments,EGA,23/01/2020,10-17266,13395,Safe Haven Accommodation Ltd
Nottinghamshire County Council,1111/1001,Children and Young People,CYP,Third Party Payments,EGA,23/01/2020,10-17267,"11,685.00",Safe Haven Accommodation Ltd
Nottinghamshire County Council,1111/1001,Children and Young People,CYP,Third Party Payments,EGA,23/01/2020,10-17271,"12,074.50",Safe Haven Accommodation Ltd
Nottinghamshire County Council,1111/1001,Children and Young People,CYP,Third Party Payments,EGA,23/01/2020,10-17272,7410,Safe Haven Accommodation Ltd
Nottinghamshire County Council,1111/1001,Children and Young People,CYP,Third Party Payments,EGA,23/01/2020,10-17273,"7,657.00",Safe Haven Accommodation Ltd
Nottinghamshire County Council,1111/1001,Children and Young People,CYP,Third Party Payments,EGA,23/01/2020,10-17276,"10,402.50",Safe Haven Accommodation Ltd
Nottinghamshire County Council,1111/1001,Children and Young People,CYP,Third Party Payments,EGA,23/01/2020,10-17277,12662.14,Safe Haven Accommodation Ltd
Nottinghamshire County Council,1111/1001,Children and Young People,CYP,Third Party Payments,EGA,23/01/2020,10-17278,"9,877.29",Safe Haven Accommodation Ltd
Nottinghamshire County Council,1111/1001,Children and Young People,CYP,Third Party Payments,EGA,23/01/2020,10-17283,17492.99,Care 4 Children Residential Service
Nottinghamshire County Council,1111/1001,Children and Young People,CYP,Third Party Payments,EGA,23/01/2020,10-17284,93624.52,Pathway Care Solutions II Ltd
Nottinghamshire County Council,1111/1001,Children and Young People,CYP,Third Party Payments,EGA,23/01/2020,10-17285,45198.89,Pathway Care Solutions Ltd
Nottinghamshire County Council,1111/1001,Children and Young People,CYP,Third Party Payments,EGA,23/01/2020,10-17286,43253.5,Acacia Hall (Kisimul)
Nottinghamshire County Council,1111/1001,Children and Young People,CYP,Third Party Payments,EGA,23/01/2020,10-17287,"43,253.50",Acacia Hall (Kisimul)
Nottinghamshire County Council,1111/1001,Children and Young People,CYP,Third Party Payments,EGA,23/01/2020,10-17289,1378.21,Nurture Care Ltd
Nottinghamshire County Council,1111/1001,Children and Young People,CYP,Third Party Payments,EGA,23/01/2020,10-17291,"18,200.00",Maze Independent Care Ltd
Nottinghamshire County Council,1111/1001,Children and Young People,CYP,Third Party Payments,EGA,23/01/2020,10-17292,3542.99,Cambian Childcare Ltd
Nottinghamshire County Council,1111/1001,Children and Young People,CYP,Third Party Payments,EGA,23/01/2020,10-17310,3542.99,Cambian Childcare Ltd
Nottinghamshire County Council,1111/1001,Children and Young People,CYP,Third Party Payments,EGA,23/01/2020,10-17311,"3,542.99",Cambian Childcare Ltd
Nottinghamshire County Council,1111/1001,Children and Young People,CYP,Third Party Payments,EGA,23/01/2020,10-17312,"3,542.99",Cambian Childcare Ltd
Nottinghamshire County Council,1111/1001,Children and Young People,CYP,Third Party Payments,EGA,23/01/2020,10-17317,1170,Little Wrens Day Nursery & Pre Scho
Nottinghamshire County Council,1111/1001,Children and Young People,CYP,Third Party Payments,EGA,23/01/2020,10-17325,194252.2,Homes 2 Inspire Ltd
Nottinghamshire County Council,1111/1001,Children and Young People,CYP,Third Party Payments,EGA,24/01/2020,10-17023,"3,609.33",Child Care Bureau Ltd
Nottinghamshire County Council,1111/1001,Children and Young People,CYP,Third Party Payments,EGA,24/01/2020,10-17024,"3,492.90",Child Care Bureau Ltd
Nottinghamshire County Council,1111/1001,Children and Young People,CYP,Third Party Payments,EGA,24/01/2020,10-17025,"3,453.00",Child Care Bureau Ltd
Nottinghamshire County Council,1111/1001,Children and Young People,CYP,Third Party Payments,EGA,24/01/2020,10-17026,"3,609.33",Child Care Bureau Ltd
Nottinghamshire County Council,1111/1001,Children and Young People,CYP,Third Party Payments,EGA,24/01/2020,10-17027,"3,568.10",Child Care Bureau Ltd
Nottinghamshire County Council,1111/1001,Children and Young People,CYP,Third Party Payments,EGA,24/01/2020,10-17028,3568.1,Child Care Bureau Ltd
Nottinghamshire County Council,1111/1001,Children and Young People,CYP,Third Party Payments,EGA,24/01/2020,10-17319,1832.14,Safe Haven Accommodation Ltd
Nottinghamshire County Council,1111/1001,Children and Young People,CYP,Third Party Payments,EGA,27/01/2020,10-16988,"3,255.00",UK Fostering Ltd
Nottinghamshire County Council,1111/1001,Children and Young People,CYP,Third Party Payments,EGA,27/01/2020,10-16989,4271.33,UK Fostering Ltd
Nottinghamshire County Council,1111/1001,Children and Young People,CYP,Third Party Payments,EGA,27/01/2020,10-17263,22376.96,Swiis Foster Care Ltd
Nottinghamshire County Council,1111/1001,Children and Young People,CYP,Third Party Payments,EGA,27/01/2020,10-17359,20805,Safe Haven Accommodation Ltd
Nottinghamshire County Council,1111/1001,Children and Young People,CYP,Third Party Payments,EGA,27/01/2020,10-17363,10402.5,Safe Haven Accommodation Ltd
Nottinghamshire County Council,1111/1001,Children and Young People,CYP,Third Party Payments,EGA,27/01/2020,10-17391,1714.32,Fostering Dimensions Ltd
Nottinghamshire County Council,1111/1001,Children and Young People,CYP,Third Party Payments,EGA,28/01/2020,10-15321,1000,Sherwood East Childrens Centre (RNN
Nottinghamshire County Council,1111/1001,Children and Young People,CYP,Third Party Payments,EGA,28/01/2020,10-17399,93624.52,Pathway Care Solutions II Ltd
Nottinghamshire County Council,1111/1001,Children and Young People,CYP,Third Party Payments,EGA,28/01/2020,10-17400,"93,624.52",Pathway Care Solutions II Ltd
Nottinghamshire County Council,1111/1001,Children and Young People,CYP,Third Party Payments,EGA,28/01/2020,10-17401,45198.89,Pathway Care Solutions Ltd
Nottinghamshire County Council,1111/1001,Children and Young People,CYP,Third Party Payments,EGA,28/01/2020,10-17402,45198.89,Pathway Care Solutions Ltd
Nottinghamshire County Council,1111/1001,Children and Young People,CYP,Third Party Payments,EGA,28/01/2020,10-17403,900.00,Coram
Nottinghamshire County Council,1111/1001,Children and Young People,CYP,Third Party Payments,EGA,28/01/2020,10-17404,"93,624.52",Pathway Care Solutions II Ltd
Nottinghamshire County Council,1111/1001,Children and Young People,CYP,Third Party Payments,EGA,28/01/2020,10-17405,"20,371.42",One To One Crisis Intervention Ltd
Nottinghamshire County Council,1111/1001,Children and Young People,CYP,Third Party Payments,EGA,28/01/2020,10-17406,1532.95,Eastwood Grange Priory
Nottinghamshire County Council,1111/1001,Children and Young People,CYP,Third Party Payments,EGA,29/01/2020,10-17095,17692.01,Absolute Children�s Services Ltd
Nottinghamshire County Council,1111/1001,Children and Young People,CYP,Third Party Payments,EGA,29/01/2020,10-17106,"2,800.00",Horizon Care & Education Group Ltd
Nottinghamshire County Council,1111/1001,Children and Young People,CYP,Third Party Payments,EGA,29/01/2020,10-17108,"2,800.00",Horizon Care & Education Group Ltd
Nottinghamshire County Council,1111/1001,Children and Young People,CYP,Third Party Payments,EGA,29/01/2020,10-17412,"13,110.00",Safe Haven Accommodation Ltd
Nottinghamshire County Council,1111/1001,Children and Young People,CYP,Third Party Payments,EGA,29/01/2020,10-17413,"13,841.50",Safe Haven Accommodation Ltd
Nottinghamshire County Council,1111/1001,Children and Young People,CYP,Third Party Payments,EGA,29/01/2020,10-17414,"13,395.00",Safe Haven Accommodation Ltd
Nottinghamshire County Council,1111/1001,Children and Young People,CYP,Third Party Payments,EGA,29/01/2020,10-17415,11485.5,Safe Haven Accommodation Ltd
Nottinghamshire County Council,1111/1001,Children and Young People,CYP,Third Party Payments,EGA,29/01/2020,10-17416,10269.5,Safe Haven Accommodation Ltd
Nottinghamshire County Council,1111/1001,Children and Young People,CYP,Third Party Payments,EGA,29/01/2020,10-17417,"11,115.00",Safe Haven Accommodation Ltd
Nottinghamshire County Council,1111/1001,Children and Young People,CYP,Third Party Payments,EGA,29/01/2020,10-17418,13395,Safe Haven Accommodation Ltd
Nottinghamshire County Council,1111/1001,Children and Young People,CYP,Third Party Payments,EGA,29/01/2020,10-17419,13395,Safe Haven Accommodation Ltd
Nottinghamshire County Council,1111/1001,Children and Young People,CYP,Third Party Payments,EGA,30/01/2020,10-16102,"11,118.00",Sunnydale Nursery Ltd
Nottinghamshire County Council,1111/1001,Children and Young People,CYP,Third Party Payments,EGA,30/01/2020,10-16103,"1,024.48",[Redacted]
Nottinghamshire County Council,1111/1001,Children and Young People,CYP,Third Party Payments,EGA,30/01/2020,10-16104,542.85,[Redacted]
Nottinghamshire County Council,1111/1001,Children and Young People,CYP,Third Party Payments,EGA,30/01/2020,10-16105,722.45,Kays Childminding
Nottinghamshire County Council,1111/1001,Children and Young People,CYP,Third Party Payments,EGA,30/01/2020,10-16106,"1,673.14",[Redacted]
Nottinghamshire County Council,1111/1001,Children and Young People,CYP,Third Party Payments,EGA,30/01/2020,10-16107,"1,907.47",[Redacted]
Nottinghamshire County Council,1111/1001,Children and Young People,CYP,Third Party Payments,EGA,30/01/2020,10-16108,542.85,Little Tots
Nottinghamshire County Council,1111/1001,Children and Young People,CYP,Third Party Payments,EGA,30/01/2020,10-16109,"9,728.47",All Saints C Of E Primary School
Nottinghamshire County Council,1111/1001,Children and Young People,CYP,Third Party Payments,EGA,30/01/2020,10-16110,"9,854.36",Wolds Childcare Ltd
Nottinghamshire County Council,1111/1001,Children and Young People,CYP,Third Party Payments,EGA,30/01/2020,10-16111,"14,312.86",Longdale Nursery School
Nottinghamshire County Council,1111/1001,Children and Young People,CYP,Third Party Payments,EGA,30/01/2020,10-16112,"8,010.72",Wollaton Village Day Nurseries
Nottinghamshire County Council,1111/1001,Children and Young People,CYP,Third Party Payments,EGA,30/01/2020,10-16113,"4,261.34",Misson Pre-School
Nottinghamshire County Council,1111/1001,Children and Young People,CYP,Third Party Payments,EGA,30/01/2020,10-16114,1469.71,Cheeky Monkeys Childminding
Nottinghamshire County Council,1111/1001,Children and Young People,CYP,Third Party Payments,EGA,30/01/2020,10-16115,3977.21,Toddlers University (Bee)
Nottinghamshire County Council,1111/1001,Children and Young People,CYP,Third Party Payments,EGA,30/01/2020,10-16116,860.05,Jammie Dodgers Childminding Group
Nottinghamshire County Council,1111/1001,Children and Young People,CYP,Third Party Payments,EGA,30/01/2020,10-16117,26835.32,Papermoon Day Nursery
Nottinghamshire County Council,1111/1001,Children and Young People,CYP,Third Party Payments,EGA,30/01/2020,10-16118,26160.29,Children 1st @ Breedon House (Plumt
Nottinghamshire County Council,1111/1001,Children and Young People,CYP,Third Party Payments,EGA,30/01/2020,10-16119,608.51,[Redacted]
Nottinghamshire County Council,1111/1001,Children and Young People,CYP,Third Party Payments,EGA,30/01/2020,10-16120,7554.17,Willow Brook Pre-School
Nottinghamshire County Council,1111/1001,Children and Young People,CYP,Third Party Payments,EGA,30/01/2020,10-16121,4554.96,Nottinghamshire Healthcare Nhs F Tr
Nottinghamshire County Council,1111/1001,Children and Young People,CYP,Third Party Payments,EGA,30/01/2020,10-16122,573.46,[Redacted]
Nottinghamshire County Council,1111/1001,Children and Young People,CYP,Third Party Payments,EGA,30/01/2020,10-16123,24338.17,Daisies Day Nursery
Nottinghamshire County Council,1111/1001,Children and Young People,CYP,Third Party Payments,EGA,30/01/2020,10-16124,963.26,[Redacted]
Nottinghamshire County Council,1111/1001,Children and Young People,CYP,Third Party Payments,EGA,30/01/2020,10-16125,9376.53,Lime Trees - Burton Joyce
Nottinghamshire County Council,1111/1001,Children and Young People,CYP,Third Party Payments,EGA,30/01/2020,10-16126,8629.13,Wellin Lane Playgroup
Nottinghamshire County Council,1111/1001,Children and Young People,CYP,Third Party Payments,EGA,30/01/2020,10-16127,6523.84,Little Kites Playgroup
Nottinghamshire County Council,1111/1001,Children and Young People,CYP,Third Party Payments,EGA,30/01/2020,10-16128,11239.21,Kidzgrove
Nottinghamshire County Council,1111/1001,Children and Young People,CYP,Third Party Payments,EGA,30/01/2020,10-16129,24682.44,Grosvenor House Day Nursery
Nottinghamshire County Council,1111/1001,Children and Young People,CYP,Third Party Payments,EGA,30/01/2020,10-16130,"65,839.90",Pre-School Learning Alliance (HO)
Nottinghamshire County Council,1111/1001,Children and Young People,CYP,Third Party Payments,EGA,30/01/2020,10-16131,561.91,[Redacted]
Nottinghamshire County Council,1111/1001,Children and Young People,CYP,Third Party Payments,EGA,30/01/2020,10-16132,"9,019.05",Appleton Childcare Ltd
Nottinghamshire County Council,1111/1001,Children and Young People,CYP,Third Party Payments,EGA,30/01/2020,10-16133,1055.09,[Redacted]
Nottinghamshire County Council,1111/1001,Children and Young People,CYP,Third Party Payments,EGA,30/01/2020,10-16134,"5,110.22",Lady Bay Pre School Playgroup
Nottinghamshire County Council,1111/1001,Children and Young People,CYP,Third Party Payments,EGA,30/01/2020,10-16135,"16,374.82",All Aboard Nursery Ltd
Nottinghamshire County Council,1111/1001,Children and Young People,CYP,Third Party Payments,EGA,30/01/2020,10-16136,"24,662.29",Carlton & Gedling Day Nursery
Nottinghamshire County Council,1111/1001,Children and Young People,CYP,Third Party Payments,EGA,30/01/2020,10-16137,17879.71,Arnold House Day Nursery
Nottinghamshire County Council,1111/1001,Children and Young People,CYP,Third Party Payments,EGA,30/01/2020,10-16138,"11,820.62",Alphabet House Day Nurseries Ltd-Lo
Nottinghamshire County Council,1111/1001,Children and Young People,CYP,Third Party Payments,EGA,30/01/2020,10-16139,10991.72,Beeston Nursery
Nottinghamshire County Council,1111/1001,Children and Young People,CYP,Third Party Payments,EGA,30/01/2020,10-16140,"5,180.97",Gotham Pre-School Playgroup
Nottinghamshire County Council,1111/1001,Children and Young People,CYP,Third Party Payments,EGA,30/01/2020,10-16141,10327.22,Killisick Pre-School
Nottinghamshire County Council,1111/1001,Children and Young People,CYP,Third Party Payments,EGA,30/01/2020,10-16142,9556.46,Hucknall Pre-School Playgroup
Nottinghamshire County Council,1111/1001,Children and Young People,CYP,Third Party Payments,EGA,30/01/2020,10-16143,"3,371.41",Jesters Childcare Ltd
Nottinghamshire County Council,1111/1001,Children and Young People,CYP,Third Party Payments,EGA,30/01/2020,10-16144,"4,182.63",Allsorts Preschool Underwood
Nottinghamshire County Council,1111/1001,Children and Young People,CYP,Third Party Payments,EGA,30/01/2020,10-16145,5015.5,Collingham & District Pre-School
Nottinghamshire County Council,1111/1001,Children and Young People,CYP,Third Party Payments,EGA,30/01/2020,10-16146,"14,207.62",Westdale Pre-School
Nottinghamshire County Council,1111/1001,Children and Young People,CYP,Third Party Payments,EGA,30/01/2020,10-16147,26726.07,Discovery Day Nursery
Nottinghamshire County Council,1111/1001,Children and Young People,CYP,Third Party Payments,EGA,30/01/2020,10-16148,5719.23,Pea Pod Day Nursery Ltd
Nottinghamshire County Council,1111/1001,Children and Young People,CYP,Third Party Payments,EGA,30/01/2020,10-16149,34606.29,Shaping Futures Day Nursery
Nottinghamshire County Council,1111/1001,Children and Young People,CYP,Third Party Payments,EGA,30/01/2020,10-16150,16775.99,Applegarth Day Nurseries Ltd
Nottinghamshire County Council,1111/1001,Children and Young People,CYP,Third Party Payments,EGA,30/01/2020,10-16151,"4,916.35",Learning Ladder Childcare Ltd
Nottinghamshire County Council,1111/1001,Children and Young People,CYP,Third Party Payments,EGA,30/01/2020,10-16152,5249.63,Thrumpton Kids Clubs
Nottinghamshire County Council,1111/1001,Children and Young People,CYP,Third Party Payments,EGA,30/01/2020,10-16153,7165.39,Radcliffe On Trent Pre School Playg
Nottinghamshire County Council,1111/1001,Children and Young People,CYP,Third Party Payments,EGA,30/01/2020,10-16154,7759.02,Staunton Montessori Nursery School
Nottinghamshire County Council,1111/1001,Children and Young People,CYP,Third Party Payments,EGA,30/01/2020,10-16155,"27,000.03",Fernwood Day Nursery Ltd
Nottinghamshire County Council,1111/1001,Children and Young People,CYP,Third Party Payments,EGA,30/01/2020,10-16156,963.26,[Redacted]
Nottinghamshire County Council,1111/1001,Children and Young People,CYP,Third Party Payments,EGA,30/01/2020,10-16157,8871.98,Honey Pot Day Private Day Nursery L
Nottinghamshire County Council,1111/1001,Children and Young People,CYP,Third Party Payments,EGA,30/01/2020,10-16158,33352.78,Busy Bees (Daybrook)
Nottinghamshire County Council,1111/1001,Children and Young People,CYP,Third Party Payments,EGA,30/01/2020,10-16159,"11,173.83",Little Nippers Pre-School
Nottinghamshire County Council,1111/1001,Children and Young People,CYP,Third Party Payments,EGA,30/01/2020,10-16160,5954.22,North Muskham Playgroup
Nottinghamshire County Council,1111/1001,Children and Young People,CYP,Third Party Payments,EGA,30/01/2020,10-16161,5413.74,Hermitage Pre-School
Nottinghamshire County Council,1111/1001,Children and Young People,CYP,Third Party Payments,EGA,30/01/2020,10-16162,8648.85,Highfields School & Nursery
Nottinghamshire County Council,1111/1001,Children and Young People,CYP,Third Party Payments,EGA,30/01/2020,10-16163,6272.74,Horsendale Playgroup
Nottinghamshire County Council,1111/1001,Children and Young People,CYP,Third Party Payments,EGA,30/01/2020,10-16164,13141.79,Quinton Day Nurseries T/A Honey Bee
Nottinghamshire County Council,1111/1001,Children and Young People,CYP,Third Party Payments,EGA,30/01/2020,10-16165,"4,380.56",St Giles Pre-school
Nottinghamshire County Council,1111/1001,Children and Young People,CYP,Third Party Payments,EGA,30/01/2020,10-16166,8444.94,St Mary's Pre-School
Nottinghamshire County Council,1111/1001,Children and Young People,CYP,Third Party Payments,EGA,30/01/2020,10-16167,"11,785.46",Homestead Day Nursery Ltd
Nottinghamshire County Council,1111/1001,Children and Young People,CYP,Third Party Payments,EGA,30/01/2020,10-16168,4947.05,Kimberley Pre-School Playgroup
Nottinghamshire County Council,1111/1001,Children and Young People,CYP,Third Party Payments,EGA,30/01/2020,10-16169,4546.77,Leahurst Road Pre-School
Nottinghamshire County Council,1111/1001,Children and Young People,CYP,Third Party Payments,EGA,30/01/2020,10-16170,"17,294.33",Leen Mills Pre School Playgroup
Nottinghamshire County Council,1111/1001,Children and Young People,CYP,Third Party Payments,EGA,30/01/2020,10-16171,"11,294.61",Leos Childrens Nurseries Ltd
Nottinghamshire County Council,1111/1001,Children and Young People,CYP,Third Party Payments,EGA,30/01/2020,10-16172,12967.16,Children 1st @ Breedon House (Toton
Nottinghamshire County Council,1111/1001,Children and Young People,CYP,Third Party Payments,EGA,30/01/2020,10-16173,"13,802.25",Westbourne House Nursery School
Nottinghamshire County Council,1111/1001,Children and Young People,CYP,Third Party Payments,EGA,30/01/2020,10-16174,"7,847.17",Lowdham & Epperstone Pre-School
Nottinghamshire County Council,1111/1001,Children and Young People,CYP,Third Party Payments,EGA,30/01/2020,10-16175,3447.24,Saville House School
Nottinghamshire County Council,1111/1001,Children and Young People,CYP,Third Party Payments,EGA,30/01/2020,10-16176,"7,131.33",Young Rascals Day Nursery
Nottinghamshire County Council,1111/1001,Children and Young People,CYP,Third Party Payments,EGA,30/01/2020,10-16177,"10,528.65",Millfield Nursery School
Nottinghamshire County Council,1111/1001,Children and Young People,CYP,Third Party Payments,EGA,30/01/2020,10-16178,7317.85,Mulberry Bush Day Nursery
Nottinghamshire County Council,1111/1001,Children and Young People,CYP,Third Party Payments,EGA,30/01/2020,10-16179,"13,974.84",Alphabet House Day Nursery Worksop
Nottinghamshire County Council,1111/1001,Children and Young People,CYP,Third Party Payments,EGA,30/01/2020,10-16180,6903.29,Noahs Ark Playgroup
Nottinghamshire County Council,1111/1001,Children and Young People,CYP,Third Party Payments,EGA,30/01/2020,10-16181,3139.15,North Leverton Pre-School Playgroup
Nottinghamshire County Council,1111/1001,Children and Young People,CYP,Third Party Payments,EGA,30/01/2020,10-16182,17357.2,Tiny World Mansfield
Nottinghamshire County Council,1111/1001,Children and Young People,CYP,Third Party Payments,EGA,30/01/2020,10-16183,6181.25,Old Cooperative Day Nursery
Nottinghamshire County Council,1111/1001,Children and Young People,CYP,Third Party Payments,EGA,30/01/2020,10-16184,"28,531.32",The Orchard Day Nursery
Nottinghamshire County Council,1111/1001,Children and Young People,CYP,Third Party Payments,EGA,30/01/2020,10-16185,5785.5,Puddleducks Pre-School
Nottinghamshire County Council,1111/1001,Children and Young People,CYP,Third Party Payments,EGA,30/01/2020,10-16186,"8,723.03",Cherubs Childrens Centre Pleasley
Nottinghamshire County Council,1111/1001,Children and Young People,CYP,Third Party Payments,EGA,30/01/2020,10-16187,13381.71,Beacon Hill Day Nursery
Nottinghamshire County Council,1111/1001,Children and Young People,CYP,Third Party Payments,EGA,30/01/2020,10-16188,2151.29,Orchard School Nursery
Nottinghamshire County Council,1111/1001,Children and Young People,CYP,Third Party Payments,EGA,30/01/2020,10-16189,"14,389.45",Papermoon Day Nursery
Nottinghamshire County Council,1111/1001,Children and Young People,CYP,Third Party Payments,EGA,30/01/2020,10-16190,"5,504.40",Plumtree School
Nottinghamshire County Council,1111/1001,Children and Young People,CYP,Third Party Payments,EGA,30/01/2020,10-16191,5355.24,Prebend Pre-School Playgroup
Nottinghamshire County Council,1111/1001,Children and Young People,CYP,Third Party Payments,EGA,30/01/2020,10-16192,12615.69,Railway Children Playgroup
Nottinghamshire County Council,1111/1001,Children and Young People,CYP,Third Party Payments,EGA,30/01/2020,10-16193,"5,096.53",Worksop College
Nottinghamshire County Council,1111/1001,Children and Young People,CYP,Third Party Payments,EGA,30/01/2020,10-16194,"32,535.02",Cherubs Day Nursery
Nottinghamshire County Council,1111/1001,Children and Young People,CYP,Third Party Payments,EGA,30/01/2020,10-16195,"16,188.68",Granby House Nursery
Nottinghamshire County Council,1111/1001,Children and Young People,CYP,Third Party Payments,EGA,30/01/2020,10-16196,"2,259.16",Salterford House School
Nottinghamshire County Council,1111/1001,Children and Young People,CYP,Third Party Payments,EGA,30/01/2020,10-16197,"13,053.06",Scotts Wood Private Day Nursery
Nottinghamshire County Council,1111/1001,Children and Young People,CYP,Third Party Payments,EGA,30/01/2020,10-16198,14686.02,Treetops Nursery (Toton)
Nottinghamshire County Council,1111/1001,Children and Young People,CYP,Third Party Payments,EGA,30/01/2020,10-16199,7150.98,Arnold St Mary's Pre-School
Nottinghamshire County Council,1111/1001,Children and Young People,CYP,Third Party Payments,EGA,30/01/2020,10-16200,"13,876.01",Tiny Talkers Day Nursery
Nottinghamshire County Council,1111/1001,Children and Young People,CYP,Third Party Payments,EGA,30/01/2020,10-16201,5532.18,Carousel Under 5'S Playgroup
Nottinghamshire County Council,1111/1001,Children and Young People,CYP,Third Party Payments,EGA,30/01/2020,10-16202,19799.63,Oceans Day Nursery
Nottinghamshire County Council,1111/1001,Children and Young People,CYP,Third Party Payments,EGA,30/01/2020,10-16203,11327.22,The Secret Garden Private Day Nurse
Nottinghamshire County Council,1111/1001,Children and Young People,CYP,Third Party Payments,EGA,30/01/2020,10-16204,7178.03,St Johns Playgroup
Nottinghamshire County Council,1111/1001,Children and Young People,CYP,Third Party Payments,EGA,30/01/2020,10-16205,4395.54,Walesby School Playgroup
Nottinghamshire County Council,1111/1001,Children and Young People,CYP,Third Party Payments,EGA,30/01/2020,10-16206,13832.05,Cherubs Childcare Centre (Mansfield
Nottinghamshire County Council,1111/1001,Children and Young People,CYP,Third Party Payments,EGA,30/01/2020,10-16207,5742.36,Sutton Bonington Playgroup
Nottinghamshire County Council,1111/1001,Children and Young People,CYP,Third Party Payments,EGA,30/01/2020,10-16208,"5,733.81",Portland Place Pre-School
Nottinghamshire County Council,1111/1001,Children and Young People,CYP,Third Party Payments,EGA,30/01/2020,10-16209,8400.3,Tollerton Playgroup
Nottinghamshire County Council,1111/1001,Children and Young People,CYP,Third Party Payments,EGA,30/01/2020,10-16210,9735.6,Pre-School 345
Nottinghamshire County Council,1111/1001,Children and Young People,CYP,Third Party Payments,EGA,30/01/2020,10-16211,"5,713.14",Lambley Day Nursery Ltd
Nottinghamshire County Council,1111/1001,Children and Young People,CYP,Third Party Payments,EGA,30/01/2020,10-16212,"11,686.78",Alphabet House Day Nurseries Ltd-Be
Nottinghamshire County Council,1111/1001,Children and Young People,CYP,Third Party Payments,EGA,30/01/2020,10-16213,"3,636.73",Trowell Pre School
Nottinghamshire County Council,1111/1001,Children and Young People,CYP,Third Party Payments,EGA,30/01/2020,10-16214,10827.67,Carlton Preschool Playgroup
Nottinghamshire County Council,1111/1001,Children and Young People,CYP,Third Party Payments,EGA,30/01/2020,10-16215,17045.01,Village Day Nursery
Nottinghamshire County Council,1111/1001,Children and Young People,CYP,Third Party Payments,EGA,30/01/2020,10-16216,"5,565.16",Watnall Pre-School Playgroup
Nottinghamshire County Council,1111/1001,Children and Young People,CYP,Third Party Payments,EGA,30/01/2020,10-16217,"14,698.12",Weaverthorpe Pre-School Playgroup
Nottinghamshire County Council,1111/1001,Children and Young People,CYP,Third Party Payments,EGA,30/01/2020,10-16218,"24,242.32",The Rocking Horse Child Care Centre
Nottinghamshire County Council,1111/1001,Children and Young People,CYP,Third Party Payments,EGA,30/01/2020,10-16219,"9,640.94",Attenborough Church Pre-School
Nottinghamshire County Council,1111/1001,Children and Young People,CYP,Third Party Payments,EGA,30/01/2020,10-16220,"6,434.24",Awsworth Schoolhouse Day Nursery
Nottinghamshire County Council,1111/1001,Children and Young People,CYP,Third Party Payments,EGA,30/01/2020,10-16221,15634.14,Balderton Pre-School
Nottinghamshire County Council,1111/1001,Children and Young People,CYP,Third Party Payments,EGA,30/01/2020,10-16222,12086.4,Balderton Village Day Nursery
Nottinghamshire County Council,1111/1001,Children and Young People,CYP,Third Party Payments,EGA,30/01/2020,10-16223,"9,034.07",Bingham Day Nursery & Pre School
Nottinghamshire County Council,1111/1001,Children and Young People,CYP,Third Party Payments,EGA,30/01/2020,10-16224,17776.17,West Bridgford Out Of School Care L
Nottinghamshire County Council,1111/1001,Children and Young People,CYP,Third Party Payments,EGA,30/01/2020,10-16225,5787.61,West Street Pre-School
Nottinghamshire County Council,1111/1001,Children and Young People,CYP,Third Party Payments,EGA,30/01/2020,10-16226,"14,234.45",Alphabet House Day Nurseries Ltd-Wh
Nottinghamshire County Council,1111/1001,Children and Young People,CYP,Third Party Payments,EGA,30/01/2020,10-16227,"16,532.55",Whitehouse Day Nursery
Nottinghamshire County Council,1111/1001,Children and Young People,CYP,Third Party Payments,EGA,30/01/2020,10-16228,2680.13,Willoughby On The Wolds Playgroup
Nottinghamshire County Council,1111/1001,Children and Young People,CYP,Third Party Payments,EGA,30/01/2020,10-16229,"7,010.49",Willow Pre-School Playgroup
Nottinghamshire County Council,1111/1001,Children and Young People,CYP,Third Party Payments,EGA,30/01/2020,10-16230,"7,088.56",Windmill Kindergarten Playgroup
Nottinghamshire County Council,1111/1001,Children and Young People,CYP,Third Party Payments,EGA,30/01/2020,10-16231,"3,612.16",Inham Park Pre School Playgroup
Nottinghamshire County Council,1111/1001,Children and Young People,CYP,Third Party Payments,EGA,30/01/2020,10-16232,35336.49,Papermoon Day Nursery Sutton In Ash
Nottinghamshire County Council,1111/1001,Children and Young People,CYP,Third Party Payments,EGA,30/01/2020,10-16233,"11,042.74",Buttercross Pre School
Nottinghamshire County Council,1111/1001,Children and Young People,CYP,Third Party Payments,EGA,30/01/2020,10-16234,"7,389.69",Bramcote Pre-School Playgroup
Nottinghamshire County Council,1111/1001,Children and Young People,CYP,Third Party Payments,EGA,30/01/2020,10-16235,"12,858.14",Bright Sparks Day Nursery
Nottinghamshire County Council,1111/1001,Children and Young People,CYP,Third Party Payments,EGA,30/01/2020,10-16236,"19,063.61",Cared 4 Ltd T/A Brookhill House Day
Nottinghamshire County Council,1111/1001,Children and Young People,CYP,Third Party Payments,EGA,30/01/2020,10-16237,"22,661.05",Brooklyn Day Nursery
Nottinghamshire County Council,1111/1001,Children and Young People,CYP,Third Party Payments,EGA,30/01/2020,10-16238,11771.13,Woodborough Village Pre School
Nottinghamshire County Council,1111/1001,Children and Young People,CYP,Third Party Payments,EGA,30/01/2020,10-16239,26329.27,Woodthorpe Day Nursery Ltd
Nottinghamshire County Council,1111/1001,Children and Young People,CYP,Third Party Payments,EGA,30/01/2020,10-16240,14008.73,Hollies Day Nurseries Ltd
Nottinghamshire County Council,1111/1001,Children and Young People,CYP,Third Party Payments,EGA,30/01/2020,10-16241,1765.99,Hickling Pre-School
Nottinghamshire County Council,1111/1001,Children and Young People,CYP,Third Party Payments,EGA,30/01/2020,10-16242,40540.31,Serendipity's Day Nursery
Nottinghamshire County Council,1111/1001,Children and Young People,CYP,Third Party Payments,EGA,30/01/2020,10-16243,"16,443.81",Coteswood House School
Nottinghamshire County Council,1111/1001,Children and Young People,CYP,Third Party Payments,EGA,30/01/2020,10-16244,24888.82,Bizzy Kidz
Nottinghamshire County Council,1111/1001,Children and Young People,CYP,Third Party Payments,EGA,30/01/2020,10-16245,14421.12,Cherubs Childrens Centre Wynndale
Nottinghamshire County Council,1111/1001,Children and Young People,CYP,Third Party Payments,EGA,30/01/2020,10-16246,8847.76,Wishing Well Day Nursery
Nottinghamshire County Council,1111/1001,Children and Young People,CYP,Third Party Payments,EGA,30/01/2020,10-16247,23442.88,Little Oaks Nursery
Nottinghamshire County Council,1111/1001,Children and Young People,CYP,Third Party Payments,EGA,30/01/2020,10-16248,16431.29,The Learning Tree Day Nursery 2
Nottinghamshire County Council,1111/1001,Children and Young People,CYP,Third Party Payments,EGA,30/01/2020,10-16249,15499.61,Ruddington Nursery & Pre-School
Nottinghamshire County Council,1111/1001,Children and Young People,CYP,Third Party Payments,EGA,30/01/2020,10-16250,10432,Papplewick Pre-School Playgroup
Nottinghamshire County Council,1111/1001,Children and Young People,CYP,Third Party Payments,EGA,30/01/2020,10-16251,4917.3,Little Friends Day Nursery
Nottinghamshire County Council,1111/1001,Children and Young People,CYP,Third Party Payments,EGA,30/01/2020,10-16252,16852.78,Stapleford Day Nursery
Nottinghamshire County Council,1111/1001,Children and Young People,CYP,Third Party Payments,EGA,30/01/2020,10-16253,13614.67,Rocking Horse Nursery Butlers Hill
Nottinghamshire County Council,1111/1001,Children and Young People,CYP,Third Party Payments,EGA,30/01/2020,10-16254,"12,343.39",Treetops Nurseries (Workop)
Nottinghamshire County Council,1111/1001,Children and Young People,CYP,Third Party Payments,EGA,30/01/2020,10-16255,"6,121.82",Chetwynd Little Troopers Nursery &
Nottinghamshire County Council,1111/1001,Children and Young People,CYP,Third Party Payments,EGA,30/01/2020,10-16256,"6,256.21",Christchurch Hall Pre-School Playgr
Nottinghamshire County Council,1111/1001,Children and Young People,CYP,Third Party Payments,EGA,30/01/2020,10-16257,12986.78,Carnarvon Pre-School
Nottinghamshire County Council,1111/1001,Children and Young People,CYP,Third Party Payments,EGA,30/01/2020,10-16258,"2,756.94",Costock Pre School
Nottinghamshire County Council,1111/1001,Children and Young People,CYP,Third Party Payments,EGA,30/01/2020,10-16259,"7,044.11",Rainbow Day Nursery
Nottinghamshire County Council,1111/1001,Children and Young People,CYP,Third Party Payments,EGA,30/01/2020,10-16260,"16,220.43",Papermoon Day Nursery
Nottinghamshire County Council,1111/1001,Children and Young People,CYP,Third Party Payments,EGA,30/01/2020,10-16261,4918.79,Haywood Road Pre-School
